TRANS.No,Service Area Categorisation,Service Division Categorisation,Responsible Unit,Unit Code,Expenses Type,Expenses Sub Type,Expense Code,Narrative,Amount,Invoice Date,Cap/rev,SupplierName
1,Central Services,Corporate Mangmt not separated,Chief Exec's Office,A01001,Supplies & Services           ,Catering                      ,DB50,Refreshment at Meetings                 ,640,02/09/2014,REV,GOSTO FINO PORTUGAL PATISSERIE
2,Central Services,SupS Chief Execs,Local Involvement Network,A01039,Third Party Payments          ,Private Contractors           ,EH10,Contract Payments                       ,10423.75,04/09/2014,REV,MERTON VOLUNTARY SERV COUNCIL 
3,Central Services,SupS Chief Execs,Local Involvement Network,A01039,Third Party Payments          ,Private Contractors           ,EH10,Contract Payments                       ,828,31/08/2014,REV,VOICEABILITY                  
4,Cultural Env Reg&Plan Services,Comm Safety (Crime Reduction),Crime and Strategy Team,A01100,Third Party Payments          ,Private Contractors           ,EH02,Miscellaneous Hired Services            ,1527.83,03/08/2014,REV,GLOBAL MSC SECURITY LTD       
5,Cultural Env Reg&Plan Services,Comm Safety (Crime Reduction),CCTV,A01200,Supplies & Services           ,Equip Furniture/Materials     ,DA01,Equipment - R & M                       ,3448.84,27/07/2014,REV,EUROVIA INFRASTRUCTURE LTD    
6,Cultural Env Reg&Plan Services,Comm Safety (Crime Reduction),CCTV,A01200,Supplies & Services           ,Equip Furniture/Materials     ,DA01,Equipment - R & M                       ,3448.84,26/07/2014,REV,EUROVIA INFRASTRUCTURE LTD    
7,Cultural Env Reg&Plan Services,Comm Safety (Crime Reduction),CCTV,A01200,Supplies & Services           ,Equip Furniture/Materials     ,DA01,Equipment - R & M                       ,3448.84,28/07/2014,REV,EUROVIA INFRASTRUCTURE LTD    
8,Cultural Env Reg&Plan Services,Comm Safety (Crime Reduction),CCTV,A01200,Supplies & Services           ,Equip Furniture/Materials     ,DA01,Equipment - R & M                       ,3448.84,25/07/2014,REV,EUROVIA INFRASTRUCTURE LTD    
9,Cultural Env Reg&Plan Services,Comm Safety (Crime Reduction),CCTV,A01200,Supplies & Services           ,Equip Furniture/Materials     ,DA01,Equipment - R & M                       ,3448.84,26/08/2014,REV,EUROVIA INFRASTRUCTURE LTD    
10,Cultural Env Reg&Plan Services,Comm Safety (Crime Reduction),CCTV,A01200,Supplies & Services           ,Services                      ,DF57,Consulting Engineers Fees               ,2325.68,01/09/2014,REV,GLOBAL MSC SECURITY LTD       
11,Central Services,SupS Chief Execs,NON-STATUTORY MARKETING & COMM,A02019,Supplies & Services           ,Prntng Stnry Gen Off Exp      ,DE22,Marketing                               ,1510.23,09/09/2014,REV,ROYAL MAIL GROUP LTD          
12,Central Services,SupS Chief Execs,NON-STATUTORY MARKETING & COMM,A02019,Supplies & Services           ,Services                      ,DF02,Misc Advertising/Publicity              ,537.5,27/08/2014,REV,JCDECAUX UNITED KINGDOM       
13,Central Services,SupS Chief Execs,NON-STATUTORY MARKETING & COMM,A02019,Supplies & Services           ,Services                      ,DF02,Misc Advertising/Publicity              ,1200,06/09/2014,REV,WANDSWORTH CORPORATION        
14,Central Services,SupS Chief Execs,NON-STATUTORY MARKETING & COMM,A02019,Supplies & Services           ,Services                      ,DF02,Misc Advertising/Publicity              ,537.5,24/04/2014,REV,JCDECAUX UNITED KINGDOM       
15,Central Services,SupS Chief Execs,NON-STATUTORY MARKETING & COMM,A02019,Supplies & Services           ,Services                      ,DF35,Graphic Design                          ,750,31/08/2014,REV,CUBIQUITY MEDIA               
16,Central Services,SupS Chief Execs,NON-STATUTORY MARKETING & COMM,A02019,Supplies & Services           ,Services                      ,DF35,Graphic Design                          ,962.5,31/07/2014,REV,DOMINO 4 LIMITED              
17,Central Services,SupS Chief Execs,NON-STATUTORY MARKETING & COMM,A02019,Supplies & Services           ,Services                      ,DF35,Graphic Design                          ,9800,15/09/2014,REV,THE BIG IDEA 
18,Central Services,SupS Chief Execs,Democratic Services,A02023,Supplies & Services           ,Expenses                      ,DH63,Members Expenses                        ,500,26/09/2014,REV,INFORMATION COMMISSIONER      
19,Central Services,SupS Chief Execs,Press and Public Relations.,A02026,Supplies & Services           ,Prntng Stnry Gen Off Exp      ,DE20,Council Magazine                        ,3850,02/09/2014,REV,DOMINO 4 LIMITED              
20,Central Services,SupS Chief Execs,Press and Public Relations.,A02026,Supplies & Services           ,Prntng Stnry Gen Off Exp      ,DE20,Council Magazine                        ,3892,22/09/2014,REV,LONDON LETTERBOX MARKETING    
21,CS -Oth Operating Inc & Expend,T/A Corporate Services,Prtng Jobs - Ext Agncy,A03041,Supplies & Services           ,Prntng Stnry Gen Off Exp      ,DE01,External Printing                       ,579,11/09/2014,REV,CLIFFE ENTERPRISE             
22,CS -Oth Operating Inc & Expend,T/A Corporate Services,Prtng Jobs - Ext Agncy,A03041,Supplies & Services           ,Prntng Stnry Gen Off Exp      ,DE01,External Printing                       ,1674,27/08/2014,REV,TAURUS PRINT & DESIGN LTD     
23,CS -Oth Operating Inc & Expend,T/A Corporate Services,Prtng Jobs - Ext Agncy,A03041,Supplies & Services           ,Prntng Stnry Gen Off Exp      ,DE01,External Printing                       ,757,10/09/2014,REV,IMPRESS PRINT SERVICES LTD    
24,CS -Oth Operating Inc & Expend,T/A Corporate Services,Prtng Jobs - Ext Agncy,A03041,Supplies & Services           ,Prntng Stnry Gen Off Exp      ,DE01,External Printing                       ,555,05/09/2014,REV,FINANCIAL DATA MANAGEMENT PLC 
25,CS -Oth Operating Inc & Expend,T/A Corporate Services,Prtng Jobs - Ext Agncy,A03041,Supplies & Services           ,Prntng Stnry Gen Off Exp      ,DE01,External Printing                       ,831,22/08/2014,REV,SEFTON TRANSMAIL              
26,CS -Oth Operating Inc & Expend,T/A Corporate Services,Prtng Jobs - Ext Agncy,A03041,Supplies & Services           ,Prntng Stnry Gen Off Exp      ,DE01,External Printing                       ,710.01,29/08/2014,REV,ENNISFIELD                    
27,CS -Oth Operating Inc & Expend,T/A Corporate Services,Prtng Jobs - Ext Agncy,A03041,Supplies & Services           ,Prntng Stnry Gen Off Exp      ,DE01,External Printing                       ,561,04/09/2014,REV,LIMETREE OFFSET LTD           
28,CS -Oth Operating Inc & Expend,T/A Corporate Services,Prtng Jobs - Ext Agncy,A03041,Supplies & Services           ,Prntng Stnry Gen Off Exp      ,DE01,External Printing                       ,630,21/09/2014,REV,IMPRESS PRINT SERVICES LTD    
29,CS -Oth Operating Inc & Expend,T/A Corporate Services,Prtng Jobs - Ext Agncy,A03041,Supplies & Services           ,Prntng Stnry Gen Off Exp      ,DE01,External Printing                       ,730,28/08/2014,REV,ULTIMATE INVOICE FINANCE LTD  
30,CS -Oth Operating Inc & Expend,T/A Corporate Services,Prtng Jobs - Ext Agncy,A03041,Supplies & Services           ,Prntng Stnry Gen Off Exp      ,DE01,External Printing                       ,555,16/09/2014,REV,LIMETREE OFFSET LTD           
31,CS -Oth Operating Inc & Expend,T/A Corporate Services,Prtng Jobs - Ext Agncy,A03041,Supplies & Services           ,Prntng Stnry Gen Off Exp      ,DE01,External Printing                       ,7922,11/09/2014,REV,CLIFFE ENTERPRISE             
32,CS -Oth Operating Inc & Expend,T/A Corporate Services,PrintUnit-HighVolPhtcopying,A03042,Supplies & Services           ,Equip Furniture/Materials     ,DA01,Equipment - R & M                       ,510,28/08/2014,REV,HEIDELBERG GRAPHIC EQUIPM LTD 
33,CS -Oth Operating Inc & Expend,T/A Corporate Services,Translation Services,A04060,Supplies & Services           ,Services                      ,DF45,Payment of Sessional Workers            ,2955,31/08/2014,REV,COSMIC EUROPE LIMTED          
34,Central Services,Grants - Voluntary Groups,VOLUNTARY SECTOR COORDINATION,A04082,Supplies & Services           ,Grants and Subscriptions      ,DJ01,Grants                                  ,33548,08/08/2014,REV,MERTON VOLUNTARY SERV COUNCIL 
35,Central Services,Grants - Voluntary Groups,VOLUNTARY SECTOR COORDINATION,A04082,Supplies & Services           ,Grants and Subscriptions      ,DJ04,Subscriptions                           ,54763,22/09/2014,REV,LONDON COUNCILS               
36,Central Services,SupS Comm and Member Services,COMMERICIAL SERVICES,A04085,Employees                     ,Direct Employee Expenses      ,AA17,Agency Staff & Casual Paymts            ,3390,22/08/2014,REV,HAYS RECRUITING EXPERTS       
37,Central Services,SupS Comm and Member Services,COMMERICIAL SERVICES,A04085,Employees                     ,Direct Employee Expenses      ,AA17,Agency Staff & Casual Paymts            ,2712,10/09/2014,REV,HAYS RECRUITING EXPERTS       
38,Central Services,SupS Comm and Member Services,COMMERICIAL SERVICES,A04085,Employees                     ,Direct Employee Expenses      ,AA17,Agency Staff & Casual Paymts            ,2712,03/09/2014,REV,HAYS RECRUITING EXPERTS       
39,Central Services,SupS Comm and Member Services,COMMERICIAL SERVICES,A04085,Employees                     ,Direct Employee Expenses      ,AA17,Agency Staff & Casual Paymts            ,2712,27/08/2014,REV,HAYS RECRUITING EXPERTS       
40,Highways & Transport Services,On-street parking,Blue Badge Service,A04088,Supplies & Services           ,Comms and Computing           ,DG15,Network Maintenance                     ,650.4,01/09/2014,REV,NORTHGATE INFORMATION SOLUTION
41,Central Services,Registn Birth/Death/Marriage,Reg of B. Deaths & Ms,B06143,Employees                     ,Direct Employee Expenses      ,AA04,Shared Services Salaries                ,13413.09,28/11/2013,REV,LONDON BOROUGH OF SUTTON      
42,Central Services,SupS Health & Safety,Learning and Development,B06146,Employees                     ,Indirect Employee Expenses    ,AB57,EXTERNAL TRAINING COSTS                 ,605.98,28/08/2014,REV,MISCO                         
43,Central Services,SupS Health & Safety,Learning and Development,B06146,Employees                     ,Indirect Employee Expenses    ,AB57,EXTERNAL TRAINING COSTS                 ,548.1,23/09/2014,REV,SHARED SERVICE ARCHITECTS     
44,Central Services,SupS Health & Safety,Learning and Development,B06146,Employees                     ,Indirect Employee Expenses    ,AB57,EXTERNAL TRAINING COSTS                 ,720,15/08/2014,REV,PLANET TRAINING               
45,Central Services,SupS Health & Safety,Learning and Development,B06146,Employees                     ,Indirect Employee Expenses    ,AB57,EXTERNAL TRAINING COSTS                 ,540,11/07/2014,REV,TCR TRAINING LTD              
46,Central Services,SupS Health & Safety,Learning and Development,B06146,Employees                     ,Indirect Employee Expenses    ,AB57,EXTERNAL TRAINING COSTS                 ,550,12/07/2014,REV,KW TRAINING SERVICES          
47,Central Services,SupS Health & Safety,Learning and Development,B06146,Employees                     ,Indirect Employee Expenses    ,AB57,EXTERNAL TRAINING COSTS                 ,1560,19/06/2014,REV,NATIONAL DRIVING CENTRE       
48,Central Services,SupS Health & Safety,Learning and Development,B06146,Employees                     ,Indirect Employee Expenses    ,AB57,EXTERNAL TRAINING COSTS                 ,1560,24/07/2014,REV,NATIONAL DRIVING CENTRE       
49,Central Services,SupS Health & Safety,Learning and Development,B06146,Employees                     ,Indirect Employee Expenses    ,AB57,EXTERNAL TRAINING COSTS                 ,1715,10/09/2014,REV,CIPFA                         
50,Central Services,SupS Health & Safety,Learning and Development,B06146,Employees                     ,Indirect Employee Expenses    ,AB57,EXTERNAL TRAINING COSTS                 ,540,27/06/2014,REV,TCR TRAINING LTD              
51,Central Services,SupS Health & Safety,Learning and Development,B06146,Employees                     ,Indirect Employee Expenses    ,AB57,EXTERNAL TRAINING COSTS                 ,900,25/09/2014,REV,CHANGE CONSULTANCY            
52,Central Services,SupS Health & Safety,Learning and Development,B06146,Employees                     ,Indirect Employee Expenses    ,AB57,EXTERNAL TRAINING COSTS                 ,67737.31,16/09/2014,REV,LONDON BOROUGH OF SUTTON      
53,Central Services,SupS Health & Safety,Learning and Development,B06146,Employees                     ,Indirect Employee Expenses    ,AB57,EXTERNAL TRAINING COSTS                 ,720,22/09/2014,REV,PLANET TRAINING               
54,Central Services,SupS Health & Safety,Learning and Development,B06146,Employees                     ,Indirect Employee Expenses    ,AB57,EXTERNAL TRAINING COSTS                 ,4400,24/06/2014,REV,PRCA                          
55,Central Services,SupS Health & Safety,Learning and Development,B06146,Employees                     ,Indirect Employee Expenses    ,AB57,EXTERNAL TRAINING COSTS                 ,5150,11/09/2014,REV,BOURNEMOUTH UNIVERSITY        
56,Central Services,SupS Health & Safety,Learning and Development,B06146,Supplies & Services           ,Comms and Computing           ,DG09,Computer Purchases - Misc               ,935.4,20/08/2014,REV,SPECIALIST COMPUTER CENT. PLC 
57,Central Services,SupS Health & Safety,Learning and Development,B06146,Supplies & Services           ,Grants and Subscriptions      ,DJ04,Subscriptions                           ,20000,11/04/2014,REV,LONDON BOROUGH OF SUTTON      
58,Central Services,SupS Health & Safety,Departmental HR - CSF,B06148,Employees                     ,Indirect Employee Expenses    ,AB02,Recruitment Adverts                     ,600,02/09/2014,REV,LONDON BOROUGH OF SUTTON      
132,,,8 Wilton Road                           ,CC017AA,New Construction Conversion and Renovation,,B4,Contractor - Site works                 ,21077.52,11/07/2014,CAP,OAKLAND BUILDING SERVICES LTD 
133,,,8 Wilton Road                           ,CC017AA,New Construction Conversion and Renovation,,B4,Contractor - Site works                 ,11198.28,16/09/2014,CAP,OAKLAND BUILDING SERVICES LTD 
134,,,Laptops for Other Staff                 ,CC018EB,Vehicles Plant Equipment and Machinery,,D3,Equipment                               ,935.4,15/08/2014,CAP,SPECIALIST COMPUTER CENT. PLC 
135,,,B678 Commonside East                    ,CE001FA,New Construction Conversion and Renovation,,B4,Contractor - Site works                 ,16000,19/09/2014,CAP,FM CONWAY LTD                 
136,,,Disabled Facilities Grant DCLG          ,CE004RA,Other Capital Expenditure,,E1,Grants                                  ,630,03/09/2014,CAP,PES (SOUTHERN) LTD            
137,,,Disabled Facilities Grant DCLG          ,CE004RA,Other Capital Expenditure,,E1,Grants                                  ,1845.17,02/09/2014,CAP,CBS ADAPTATION                
138,,,Disabled Facilities Grant DCLG          ,CE004RA,Other Capital Expenditure,,E1,Grants                                  ,2861.74,02/09/2014,CAP,CBS ADAPTATION                
139,,,Disabled Facilities Grant DCLG          ,CE004RA,Other Capital Expenditure,,E1,Grants                                  ,6230.77,18/09/2014,CAP,AQUANEED LIMITED              
140,,,Disabled Facilities Grant DCLG          ,CE004RA,Other Capital Expenditure,,E1,Grants                                  ,7566,09/09/2014,CAP,AQUANEED LIMITED              
141,,,Disabled Facilities Grant DCLG          ,CE004RA,Other Capital Expenditure,,E1,Grants                                  ,1396.04,02/09/2014,CAP,CBS ADAPTATION                
142,,,Parks Investment                        ,CE013SA,New Construction Conversion and Renovation,,B4,Contractor - Site works                 ,879,02/09/2014,CAP,SILL LEUCHTEN GMBH            
143,,,Parks Investment                        ,CE013SA,New Construction Conversion and Renovation,,B4,Contractor - Site works                 ,3389,08/09/2014,CAP,TAYLOR BUILDING COMPANY LTD   
144,,,Parks Investment                        ,CE013SA,New Construction Conversion and Renovation,,B4,Contractor - Site works                 ,845,16/09/2014,CAP,REDACTED
145,,,S106 South Park Gardens B346            ,CE015CB,New Construction Conversion and Renovation,,B1,Consultants Fees D&S Structure          ,750,22/08/2014,CAP,MATTHEW CHILDS DESIGN         
146,,,Borough Roads Maintenance               ,CE026FA,New Construction Conversion and Renovation,,B4,Contractor - Site works                 ,945,26/08/2014,CAP,URETEK UK LTD                 
147,,,Borough Roads Maintenance               ,CE026FA,New Construction Conversion and Renovation,,B4,Contractor - Site works                 ,150000,01/09/2014,CAP,FM CONWAY LTD                 
148,,,Borough Roads Maintenance               ,CE026FA,New Construction Conversion and Renovation,,B4,Contractor - Site works                 ,877.6,29/08/2014,CAP,FM CONWAY LTD                 
149,,,TFL Projected Slippage                  ,CE026SA,New Construction Conversion and Renovation,,B4,Contractor - Site works                 ,6905.24,29/08/2014,CAP,FM CONWAY LTD                 
150,,,TFL Projected Slippage                  ,CE026SA,New Construction Conversion and Renovation,,B4,Contractor - Site works                 ,4995.83,18/08/2014,CAP,MAY GURNEY LTD T/A CARTLEDGE  
151,,,TFL Projected Slippage                  ,CE026SA,New Construction Conversion and Renovation,,B4,Contractor - Site works                 ,17000,18/08/2014,CAP,MAY GURNEY LTD T/A CARTLEDGE  
152,,,TFL Projected Slippage                  ,CE026SA,New Construction Conversion and Renovation,,B4,Contractor - Site works                 ,3315.06,29/08/2014,CAP,FM CONWAY LTD                 
153,,,Repairs to Footways                     ,CE029FA,New Construction Conversion and Renovation,,B4,Contractor - Site works                 ,8006.32,19/09/2014,CAP,FM CONWAY LTD                 
154,,,Leisure Centre Plant & Machine          ,CE038MA,New Construction Conversion and Renovation,,B4,Contractor - Site works                 ,2160,16/09/2014,CAP,REDACTED
155,,,Leisure Centre Plant & Machine          ,CE038MA,New Construction Conversion and Renovation,,B4,Contractor - Site works                 ,1640,22/08/2014,CAP,NATIONCARE WINDOWS LTD        
156,,,Leisure Centre Plant & Machine          ,CE038MA,New Construction Conversion and Renovation,,B4,Contractor - Site works                 ,1790,22/08/2014,CAP,NATIONCARE WINDOWS LTD        
157,,,Leisure Centre Plant & Machine          ,CE038MA,New Construction Conversion and Renovation,,B4,Contractor - Site works                 ,6800,11/09/2014,CAP,SALTASH ENTERPRISES LTD       
158,,,Multi Use Games Area at Canons          ,CE055CA,New Construction Conversion and Renovation,,B4,Contractor - Site works                 ,62304.02,27/07/2014,CAP,BLAKEDOWN SPORT & PLAY LTD    
159,,,Street scene enhancements               ,CE066FE,New Construction Conversion and Renovation,,B4,Contractor - Site works                 ,4150,15/09/2014,CAP,REDACTED
160,,,Street Lighting Replacement Pr          ,CE068FA,New Construction Conversion and Renovation,,B4,Contractor - Site works                 ,1236.41,16/09/2014,CAP,MAY GURNEY LTD T/A CARTLEDGE  
161,,,Street Lighting Replacement Pr          ,CE068FA,New Construction Conversion and Renovation,,B4,Contractor - Site works                 ,539.9,28/08/2014,CAP,MAY GURNEY LTD T/A CARTLEDGE  
162,,,Street Lighting Replacement Pr          ,CE068FA,New Construction Conversion and Renovation,,B6,Other Costs - Site works                ,734,08/08/2014,CAP,UK POWER NETWORKS (OPERATIONS)
163,,,Street Lighting Replacement Pr          ,CE068FA,New Construction Conversion and Renovation,,B6,Other Costs - Site works                ,578,02/09/2014,CAP,UK POWER NETWORKS (OPERATIONS)
164,,,Street Lighting Replacement Pr          ,CE068FA,New Construction Conversion and Renovation,,B6,Other Costs - Site works                ,958,02/09/2014,CAP,UK POWER NETWORKS (OPERATIONS)
165,,,Accesibility Programme                  ,CE104FD,New Construction Conversion and Renovation,,B4,Contractor - Site works                 ,3200.23,29/08/2014,CAP,FM CONWAY LTD                 
166,,,Casualty Reduction & Schools            ,CE104RA,New Construction Conversion and Renovation,,B6,Other Costs - Site works                ,642,02/09/2014,CAP,UK POWER NETWORKS (OPERATIONS)
167,,,BCP Cycle Parking                       ,CE128FB,New Construction Conversion and Renovation,,B4,Contractor - Site works                 ,9000,29/08/2014,CAP,FM CONWAY LTD                 
168,,,Civic Centre- Upgrading lifts           ,CF001AL,New Construction Conversion and Renovation,,B1,Consultants Fees D&S Structure          ,1440,05/08/2014,CAP,BUTLER & YOUNG LIFT CONSULTANT
169,,,Civic Centre- Upgrading lifts           ,CF001AL,New Construction Conversion and Renovation,,B1,Consultants Fees D&S Structure          ,2088,05/08/2014,CAP,BUTLER & YOUNG LIFT CONSULTANT
170,,,Repair and Maintenance                  ,CF004SA,New Construction Conversion and Renovation,,B4,Contractor - Site works                 ,26252,11/09/2014,CAP,SALTASH ENTERPRISES LTD       
171,,,Repair and Maintenance                  ,CF004SA,New Construction Conversion and Renovation,,B4,Contractor - Site works                 ,23132,11/08/2014,CAP,SALTASH ENTERPRISES LTD       
172,,,Repair and Maintenance                  ,CF004SA,New Construction Conversion and Renovation,,B4,Contractor - Site works                 ,3000,03/07/2014,CAP,SALTASH ENTERPRISES LTD       
173,,,St Mary's expansion                     ,CS008RA,New Construction Conversion and Renovation,,B1,Consultants Fees D&S Structure          ,4152,10/09/2014,CAP,NPS PROPERTY CONSULTANTS LTD  
174,,,St Mary's expansion                     ,CS008RA,New Construction Conversion and Renovation,,B4,Contractor - Site works                 ,472836,01/09/2014,CAP,MANSELL CONSTRUCTION SERVICES 
175,,,Cranmer expansion                       ,CS010AA,New Construction Conversion and Renovation,,B4,Contractor - Site works                 ,81229,11/09/2014,CAP,WILLMOTT DIXON CONSTRUCT'N LTD
176,,,Cranmer expansion                       ,CS010AA,New Construction Conversion and Renovation,,B4,Contractor - Site works                 ,4272.37,11/09/2014,CAP,WILLMOTT DIXON CONSTRUCT'N LTD
177,,,Cranmer expansion                       ,CS010AA,New Construction Conversion and Renovation,,B4,Contractor - Site works                 ,1289.6,11/09/2014,CAP,WILLMOTT DIXON CONSTRUCT'N LTD
178,,,Gorringe Park expansion                 ,CS018AB,New Construction Conversion and Renovation,,B4,Contractor - Site works                 ,1028.26,19/09/2014,CAP,STAMFORD CONTRACTS LIMITED    
179,,,Hillcross School Expansion              ,CS020AC,New Construction Conversion and Renovation,,B1,Consultants Fees D&S Structure          ,1925,29/08/2014,CAP,STACE LLP                     
180,,,Hillcross School Expansion              ,CS020AC,New Construction Conversion and Renovation,,B4,Contractor - Site works                 ,159867.83,01/09/2014,CAP,MANSELL CONSTRUCTION SERVICES 
181,,,Merton Abbey Temp Accomodation          ,CS022AC,New Construction Conversion and Renovation,,B1,Consultants Fees D&S Structure          ,3764.12,29/08/2014,CAP,PELLINGS LLP                  
182,,,Merton Abbey Temp Accomodation          ,CS022AC,New Construction Conversion and Renovation,,B2,Site Surveys D&S Structure              ,628.32,29/08/2014,CAP,KEEGANS LIMITED               
183,,,Merton Abbey Temp Accomodation          ,CS022AC,New Construction Conversion and Renovation,,B4,Contractor - Site works                 ,326559.3,22/08/2014,CAP,MANSELL CONSTRUCTION SERVICES 
184,,,Pelham School Expansion                 ,CS023AC,New Construction Conversion and Renovation,,B1,Consultants Fees D&S Structure          ,7215,29/08/2014,CAP,HAVERSTOCK ASSOCIATES LLP     
185,,,Pelham School Expansion                 ,CS023AC,New Construction Conversion and Renovation,,B1,Consultants Fees D&S Structure          ,1975,02/09/2014,CAP,STACE LLP                     
186,,,Pelham School Expansion                 ,CS023AC,New Construction Conversion and Renovation,,B4,Contractor - Site works                 ,176673.18,01/09/2014,CAP,MANSELL CONSTRUCTION SERVICES 
187,,,Dundonald expansion                     ,CS031AC,New Construction Conversion and Renovation,,B1,Consultants Fees D&S Structure          ,1570,29/08/2014,CAP,SYNERGY CPC LLP               
188,,,Free School Meals                       ,CS033AB,New Construction Conversion and Renovation,,B4,Contractor - Site works                 ,6951.37,11/09/2014,CAP,WILLMOTT DIXON CONSTRUCT'N LTD
189,,,Free School Meals                       ,CS033AB,Vehicles Plant Equipment and Machinery,,D3,Equipment                               ,8621,12/06/2014,CAP,DF20 LTD                      
190,,,Free School Meals                       ,CS033AB,Vehicles Plant Equipment and Machinery,,D3,Equipment                               ,2128,08/09/2014,CAP,DF20 LTD                      
191,,,Free School Meals                       ,CS033AB,Vehicles Plant Equipment and Machinery,,D3,Equipment                               ,2289,31/07/2014,CAP,DF20 LTD                      
192,,,Free School Meals                       ,CS033AB,Vehicles Plant Equipment and Machinery,,D3,Equipment                               ,3660,19/08/2014,CAP,DF20 LTD                      
193,,,Free School Meals                       ,CS033AB,Vehicles Plant Equipment and Machinery,,D3,Equipment                               ,6859,08/09/2014,CAP,DF20 LTD                      
194,,,Free School Meals                       ,CS033AB,Vehicles Plant Equipment and Machinery,,D3,Equipment                               ,1170,08/09/2014,CAP,DF20 LTD                      
195,,,Free School Meals                       ,CS033AB,Vehicles Plant Equipment and Machinery,,D3,Equipment                               ,10617,16/07/2014,CAP,DF20 LTD                      
196,,,Free School Meals                       ,CS033AB,Vehicles Plant Equipment and Machinery,,D3,Equipment                               ,4591,16/07/2014,CAP,DF20 LTD                      
197,,,Free School Meals                       ,CS033AB,Vehicles Plant Equipment and Machinery,,D3,Equipment                               ,8810,16/07/2014,CAP,DF20 LTD                      
198,,,Free School Meals                       ,CS033AB,Vehicles Plant Equipment and Machinery,,D3,Equipment                               ,7120,19/08/2014,CAP,DF20 LTD                      
199,,,Free School Meals                       ,CS033AB,Vehicles Plant Equipment and Machinery,,D3,Equipment                               ,8626,17/07/2014,CAP,DF20 LTD                      
200,,,Free School Meals                       ,CS033AB,Vehicles Plant Equipment and Machinery,,D3,Equipment                               ,6435,14/08/2014,CAP,DF20 LTD                      
201,,,Free School Meals                       ,CS033AB,Vehicles Plant Equipment and Machinery,,D3,Equipment                               ,3435,08/09/2014,CAP,DF20 LTD                      
202,,,Free School Meals                       ,CS033AB,Vehicles Plant Equipment and Machinery,,D3,Equipment                               ,1252,08/09/2014,CAP,DF20 LTD                      
203,,,Free School Meals                       ,CS033AB,Vehicles Plant Equipment and Machinery,,D3,Equipment                               ,4522,31/07/2014,CAP,DF20 LTD                      
204,,,Free School Meals                       ,CS033AB,Vehicles Plant Equipment and Machinery,,D3,Equipment                               ,2883,14/08/2014,CAP,DF20 LTD                      
205,,,Free School Meals                       ,CS033AB,Vehicles Plant Equipment and Machinery,,D3,Equipment                               ,2409,12/06/2014,CAP,DF20 LTD                      
206,,,Free School Meals                       ,CS033AB,Vehicles Plant Equipment and Machinery,,D3,Equipment                               ,3352,08/09/2014,CAP,DF20 LTD                      
207,,,Free School Meals                       ,CS033AB,Vehicles Plant Equipment and Machinery,,D3,Equipment                               ,3755,08/09/2014,CAP,DF20 LTD                      
208,,,Free School Meals                       ,CS033AB,Vehicles Plant Equipment and Machinery,,D3,Equipment                               ,3221,17/07/2014,CAP,DF20 LTD                      
209,,,Free School Meals                       ,CS033AB,Vehicles Plant Equipment and Machinery,,D3,Equipment                               ,899,08/09/2014,CAP,DF20 LTD                      
210,,,Poplar Permanent Expansion              ,CS034AB,New Construction Conversion and Renovation,,B1,Consultants Fees D&S Structure          ,3312.12,29/08/2014,CAP,PELLINGS LLP                  
211,,,Poplar Permanent Expansion              ,CS034AB,New Construction Conversion and Renovation,,B2,Site Surveys D&S Structure              ,504.51,30/08/2014,CAP,KEEGANS LIMITED               
212,,,Poplar Permanent Expansion              ,CS034AB,New Construction Conversion and Renovation,,B4,Contractor - Site works                 ,235549.6,22/08/2014,CAP,MANSELL CONSTRUCTION SERVICES 
213,,,Singlegate expansion                    ,CS049AA,New Construction Conversion and Renovation,,B1,Consultants Fees D&S Structure          ,22897.66,29/08/2014,CAP,ATKINS LIMITED                
214,,,Singlegate expansion                    ,CS049AA,New Construction Conversion and Renovation,,B1,Consultants Fees D&S Structure          ,750,20/08/2014,CAP,SYNERGY CPC LLP               
215,,,Singlegate expansion                    ,CS049AA,New Construction Conversion and Renovation,,B4,Contractor - Site works                 ,213172.05,15/08/2014,CAP,MANSELL CONSTRUCTION SERVICES 
216,,,Wimbledon Park expansion                ,CS050AA,New Construction Conversion and Renovation,,B1,Consultants Fees D&S Structure          ,1500,31/08/2014,CAP,SYNERGY CPC LLP               
217,,,Wimbledon Park expansion                ,CS050AA,New Construction Conversion and Renovation,,B1,Consultants Fees D&S Structure          ,2295,31/08/2014,CAP,SYNERGY CPC LLP               
218,,,Wimbledon Park expansion                ,CS050AA,New Construction Conversion and Renovation,,B4,Contractor - Site works                 ,73102.1,19/09/2014,CAP,KELLY CONTRACTORS UK LTD      
219,,,Wimbledon Park expansion                ,CS050AA,Vehicles Plant Equipment and Machinery,,D4,Specialist furniture                    ,1698,29/08/2014,CAP,SOUTHERNS OFFICE INTERIORS    
220,,,Wimbledon Park expansion                ,CS050AA,Vehicles Plant Equipment and Machinery,,D4,Specialist furniture                    ,-1620,29/08/2014,CAP,SOUTHERNS OFFICE INTERIORS    
221,,,Wimbledon Park expansion                ,CS050AA,Vehicles Plant Equipment and Machinery,,D4,Specialist furniture                    ,16456.5,22/08/2014,CAP,SOUTHERNS OFFICE INTERIORS    
222,,,Schs Cap Maint & Accessibility          ,CS080SD,New Construction Conversion and Renovation,,B4,Contractor - Site works                 ,25958.37,29/08/2014,CAP,STAMFORD CONTRACTS LIMITED    
223,,,Schs Cap Maint & Accessibility          ,CS080SD,New Construction Conversion and Renovation,,B4,Contractor - Site works                 ,2500,09/09/2014,CAP,KC DRAINS LTD                 
224,,,Schs Cap Maint & Accessibility          ,CS080SD,New Construction Conversion and Renovation,,B4,Contractor - Site works                 ,12402.14,29/08/2014,CAP,STAMFORD CONTRACTS LIMITED    
225,,,Schs Cap Maint & Accessibility          ,CS080SD,New Construction Conversion and Renovation,,B4,Contractor - Site works                 ,888,01/09/2014,CAP,P G MARSHALL & SONS LTD       
226,,,Schs Cap Maint & Accessibility          ,CS080SD,New Construction Conversion and Renovation,,B4,Contractor - Site works                 ,18760,01/09/2014,CAP,P G MARSHALL & SONS LTD       
227,,,Schs Cap Maint & Accessibility          ,CS080SD,New Construction Conversion and Renovation,,B4,Contractor - Site works                 ,31323.92,29/08/2014,CAP,STAMFORD CONTRACTS LIMITED    
228,,,Schs Cap Maint & Accessibility          ,CS080SD,New Construction Conversion and Renovation,,B4,Contractor - Site works                 ,50677.57,29/08/2014,CAP,STAMFORD CONTRACTS LIMITED    
229,,,Schs Cap Maint & Accessibility          ,CS080SD,New Construction Conversion and Renovation,,B6,Other Costs - Site works                ,2700,30/07/2014,CAP,WESTFIELD GROUP UK LTD        
230,,,Schs Cap Maint & Accessibility          ,CS080SD,New Construction Conversion and Renovation,,B6,Other Costs - Site works                ,2700,03/08/2014,CAP,WESTFIELD GROUP UK LTD        
231,,,Primary school autism unit              ,CS081SA,New Construction Conversion and Renovation,,B1,Consultants Fees D&S Structure          ,10647,30/08/2014,CAP,NPS PROPERTY CONSULTANTS LTD  
232,,,Primary school autism unit              ,CS081SA,New Construction Conversion and Renovation,,B2,Site Surveys D&S Structure              ,630,12/09/2014,CAP,BARRELL TREECARE LTD          
233,,,Wimb Chase-Dining Hall Roof             ,CS091AH,New Construction Conversion and Renovation,,B4,Contractor - Site works                 ,759.78,19/09/2014,CAP,STAMFORD CONTRACTS LIMITED    
234,,,Perseid                                 ,CS092AA,New Construction Conversion and Renovation,,B2,Site Surveys D&S Structure              ,2841,19/08/2014,CAP,ASHDOWN SITE INVESTIGATION    
235,,,Disaster recovery                       ,CT003EA,Vehicles Plant Equipment and Machinery,,D3,Equipment                               ,3086.57,26/02/2014,CAP,LONDON GRID FOR LEARNING TRUST
236,,,IT Equipment                            ,CT006EA,Vehicles Plant Equipment and Machinery,,D3,Equipment                               ,5040,13/08/2014,CAP,INCOM TELECOMMUNICATIONS      
237,,,Replacement Social Care System          ,CT007EA,Vehicles Plant Equipment and Machinery,,D5,Software                                ,164024,29/08/2014,CAP,CORELOGIC                     
238,,,Data Labling                            ,CT023NA,Vehicles Plant Equipment and Machinery,,D3,Equipment                               ,21415.91,21/08/2014,CAP,SPECIALIST COMPUTER CENT. PLC 
239,,,Data Labling                            ,CT023NA,Vehicles Plant Equipment and Machinery,,D5,Software                                ,5000,29/07/2014,CAP,APPERCEPTION                  
240,Central Services,Council tax collection,Local Taxation Services,E02100,Supplies & Services           ,Services                      ,DF09,Miscellaneous Fees                      ,549.68,28/08/2014,REV,PS&P                          
241,Central Services,Council tax collection,Local Taxation Services,E02100,Supplies & Services           ,Services                      ,DF11,Counsel's Fees                          ,575,04/08/2014,REV,REDACTED
242,Central Services,Council tax collection,Local Taxation Services,E02100,Supplies & Services           ,Services                      ,DF11,Counsel's Fees                          ,1030,26/08/2014,REV,WELBECK LAW LLP               
243,Central Services,Council tax collection,Local Taxation Services,E02100,Supplies & Services           ,Services                      ,DF11,Counsel's Fees                          ,1030,31/07/2014,REV,WELBECK LAW LLP               
244,Central Services,Council tax collection,Local Taxation Services,E02100,Supplies & Services           ,Services                      ,DF11,Counsel's Fees                          ,500,27/08/2014,REV,WELBECK LAW LLP               
245,Central Services,Council tax collection,Local Taxation Services,E02100,Supplies & Services           ,Comms and Computing           ,DG09,Computer Purchases - Misc               ,16200,12/09/2014,REV,CIVICA UK LIMITED             
246,Central Services,Council tax collection,Local Taxation Services,E02100,Supplies & Services           ,Comms and Computing           ,DG09,Computer Purchases - Misc               ,725,11/09/2014,REV,MAG:NET SOLUTIONS             
247,Housing Services,HB Administration,Benefits Administration,E02120,Supplies & Services           ,Comms and Computing           ,DG09,Computer Purchases - Misc               ,1982.26,18/09/2014,REV,CIVICA UK LIMITED             
248,Housing Services,HB Administration,Local Welfare Support,E02123,Transfer Payments             ,Housing Benefits              ,FA95,Other Payments                          ,738.77,25/09/2014,REV,THE VINE PROJECT              
249,Housing Services,HB Administration,Local Welfare Support,E02123,Transfer Payments             ,Housing Benefits              ,FA95,Other Payments                          ,560,08/09/2014,REV,THE VINE PROJECT              
250,Housing Services,HB Administration,Local Welfare Support,E02123,Transfer Payments             ,Housing Benefits              ,FA95,Other Payments                          ,678.77,22/09/2014,REV,THE VINE PROJECT              
251,Housing Services,HB Administration,Local Welfare Support,E02123,Transfer Payments             ,Housing Benefits              ,FA95,Other Payments                          ,738.77,16/09/2014,REV,THE VINE PROJECT              
252,Housing Services,HB Administration,Local Welfare Support,E02123,Transfer Payments             ,Housing Benefits              ,FA95,Other Payments                          ,648.57,16/09/2014,REV,THE VINE PROJECT              
253,Housing Services,HB Administration,Local Welfare Support,E02123,Transfer Payments             ,Housing Benefits              ,FA95,Other Payments                          ,572.57,21/08/2014,REV,THE VINE PROJECT              
254,Central Services,SupS Payroll,Payroll,E02140,Supplies & Services           ,Services                      ,DF04,Miscellaneous Expenses                  ,1200,05/09/2014,REV,MARKS AND SPENCER GIFT VOUCHER
255,Central Services,SupS Payroll,Payroll,E02140,Third Party Payments          ,Private Contractors           ,EH10,Contract Payments                       ,5715.16,02/09/2014,REV,LONDON BOROUGH OF SUTTON      
256,Central Services,SupS Facilities,Post Room,E02220,Supplies & Services           ,Comms and Computing           ,DG04,Postage - General                       ,744.99,23/06/2014,REV,STREETWISE COURIERS           
257,Central Services,SupS Facilities,Post Room,E02220,Supplies & Services           ,Comms and Computing           ,DG04,Postage - General                       ,831.06,08/09/2014,REV,STREETWISE COURIERS           
258,Central Services,SupS Facilities,Security Services,E02221,Employees                     ,Direct Employee Expenses      ,AA17,Agency Staff & Casual Paymts            ,2024.1,01/09/2014,REV,REDACTED
259,Central Services,SupS Facilities,Security Services,E02221,Employees                     ,Direct Employee Expenses      ,AA17,Agency Staff & Casual Paymts            ,3393,01/09/2014,REV,REDACTED
260,Central Services,SupS Facilities,Security Services,E02221,Employees                     ,Direct Employee Expenses      ,AA17,Agency Staff & Casual Paymts            ,2000.7,01/09/2014,REV,REDACTED
261,Central Services,SupS Facilities,Security Services,E02221,Employees                     ,Direct Employee Expenses      ,AA17,Agency Staff & Casual Paymts            ,2398.5,01/09/2014,REV,REDACTED
262,Central Services,SupS Facilities,Civic Centre,E02222,Premises Related Expenditure  ,RepairsAlterations&MtceOfBldgs,BA29,BUILD MAINT MGT FEES                    ,2736,10/09/2014,REV,FORBO FLOORING UK LTD         
263,Central Services,SupS Facilities,Facilities,E02231,Premises Related Expenditure  ,RepairsAlterations&MtceOfBldgs,BA01,DDM - General Building                  ,3180,24/04/2014,REV,SALTASH ENTERPRISES LTD       
264,Central Services,SupS Facilities,Facilities,E02231,Premises Related Expenditure  ,RepairsAlterations&MtceOfBldgs,BA02,ENERGY CONSERVATION                     ,1917,01/08/2014,REV,BERGEN ENERGI                 
265,Central Services,SupS Facilities,Facilities,E02231,Premises Related Expenditure  ,RepairsAlterations&MtceOfBldgs,BA02,ENERGY CONSERVATION                     ,1917,01/09/2014,REV,BERGEN ENERGI                 
266,Central Services,SupS Facilities,Facilities,E02231,Premises Related Expenditure  ,RepairsAlterations&MtceOfBldgs,BA29,Build Maint Mgt Fees                    ,4500,31/03/2014,REV,UNIQUE OFFICE SOLUTIONS LTD   
267,Central Services,SupS Facilities,Facilities,E02231,Premises Related Expenditure  ,RepairsAlterations&MtceOfBldgs,BA29,Build Maint Mgt Fees                    ,2602.8,31/03/2014,REV,UNIQUE OFFICE SOLUTIONS LTD   
268,Central Services,SupS Facilities,Facilities,E02231,Premises Related Expenditure  ,RepairsAlterations&MtceOfBldgs,BA29,Build Maint Mgt Fees                    ,8232,31/03/2014,REV,UNIQUE OFFICE SOLUTIONS LTD   
269,Central Services,SupS Facilities,Facilities,E02231,Premises Related Expenditure  ,RepairsAlterations&MtceOfBldgs,BA29,Build Maint Mgt Fees                    ,1384.6,31/03/2014,REV,UNIQUE OFFICE SOLUTIONS LTD   
270,Central Services,SupS Facilities,Facilities,E02231,Premises Related Expenditure  ,RepairsAlterations&MtceOfBldgs,BA29,Build Maint Mgt Fees                    ,1716.1,31/03/2014,REV,UNIQUE OFFICE SOLUTIONS LTD   
271,Central Services,SupS Facilities,Facilities,E02231,Premises Related Expenditure  ,RepairsAlterations&MtceOfBldgs,BA29,Build Maint Mgt Fees                    ,3201.08,31/03/2014,REV,UNIQUE OFFICE SOLUTIONS LTD   
272,Central Services,SupS Facilities,Facilities,E02231,Premises Related Expenditure  ,RepairsAlterations&MtceOfBldgs,BA29,Build Maint Mgt Fees                    ,22000,31/03/2014,REV,UNIQUE OFFICE SOLUTIONS LTD   
273,Central Services,SupS Facilities,Facilities,E02231,Premises Related Expenditure  ,RepairsAlterations&MtceOfBldgs,BA29,Build Maint Mgt Fees                    ,3601.8,31/03/2014,REV,UNIQUE OFFICE SOLUTIONS LTD   
274,Central Services,SupS Facilities,Facilities,E02231,Premises Related Expenditure  ,RepairsAlterations&MtceOfBldgs,BA84,Asbestos                                ,720,28/08/2014,REV,LUCION ENVIRONMENTAL LTD      
275,Central Services,SupS Facilities,Facilities,E02231,Premises Related Expenditure  ,RepairsAlterations&MtceOfBldgs,BA90,Water Hygiene                           ,5521,31/07/2014,REV,HYDRO-X WATER TREATMENT LTD   
276,Central Services,SupS Facilities,Facilities,E02231,Supplies & Services           ,Services                      ,DF09,Miscellaneous Fees                      ,11448,04/09/2014,REV,DEPT ENERGY & CLIMATE CHANGE  
277,Central Services,SupS Facilities,Facilities,E02231,Supplies & Services           ,Services                      ,DF09,Miscellaneous Fees                      ,129900,04/09/2014,REV,DEPT ENERGY & CLIMATE CHANGE  
278,Central Services,SupS Facilities,FM External Fees,E02239,Premises Related Expenditure  ,RepairsAlterations&MtceOfBldgs,BA29,Build Maint Mgt Fees                    ,735,28/07/2014,REV,PRIORITY RISK LTD             
279,Central Services,SupS Facilities,Corporate Services Buildings,E02240,Premises Related Expenditure  ,RepairsAlterations&MtceOfBldgs,BA03,DDM - Mechanical                        ,500,31/07/2014,REV,EUROPA NATIONWIDE TECH.SER.LTD
280,Central Services,SupS Facilities,Corporate Services Buildings,E02240,Premises Related Expenditure  ,RepairsAlterations&MtceOfBldgs,BA03,DDM - Mechanical                        ,1218.5,08/09/2014,REV,C S TODD & ASSOCIATES LIMITED 
281,Central Services,SupS Facilities,Corporate Services Buildings,E02240,Premises Related Expenditure  ,RepairsAlterations&MtceOfBldgs,BA05,DDM - Electrical                        ,2233.71,31/07/2014,REV,EUROPA NATIONWIDE TECH.SER.LTD
282,Central Services,SupS Facilities,Corporate Services Buildings,E02240,Premises Related Expenditure  ,RepairsAlterations&MtceOfBldgs,BA05,DDM - Electrical                        ,785,02/09/2014,REV,SSD LIMITED                   
283,Central Services,SupS Facilities,Corporate Services Buildings,E02240,Premises Related Expenditure  ,RepairsAlterations&MtceOfBldgs,BA05,DDM - Electrical                        ,1192,19/08/2014,REV,EDMUNDSON ELECTRICAL LTD      
284,Central Services,SupS Facilities,Corporate Services Buildings,E02240,Premises Related Expenditure  ,Energy Costs                  ,BB02,Electricity                             ,9542.25,05/09/2014,REV,SCOTTISHPOWER                 
285,Central Services,SupS Facilities,Corporate Services Buildings,E02240,Premises Related Expenditure  ,Energy Costs                  ,BB03,Gas (incl. Butane)                      ,8361.34,04/09/2014,REV,GAZPROM MARKETING&TRADING LTD 
286,Central Services,SupS Facilities,Corporate Services Buildings,E02240,Premises Related Expenditure  ,Water Services                ,BE01,Use of Water (Metered)                  ,1830.44,29/08/2014,REV,SUTTON AND EAST SURREY WATER  
287,Adult Social Care,OP 65 & Over Day Care,Pollards Hill Day Centre,E02270,Premises Related Expenditure  ,RepairsAlterations&MtceOfBldgs,BA06,Repairs & Maintenance General           ,2251,15/09/2014,REV,R.J.H.WELDING                 
288,Adult Social Care,OP 65 & Over Day Care,Pollards Hill Day Centre,E02270,Premises Related Expenditure  ,Cleaning and Domestic Supplies,BH01,Cleaning Materials                      ,504,08/09/2014,REV,GREENHAM                      
289,Adult Social Care,OP 65 & Over Day Care,Pollards Hill Day Centre,E02270,Premises Related Expenditure  ,Cleaning and Domestic Supplies,BH03,Cleaning Services                       ,1492.52,01/09/2014,REV,BIRKIN CLEANING SERVICES LTD  
290,Adult Social Care,OP 65 & Over Day Care,Pollards Hill Day Centre,E02270,Premises Related Expenditure  ,Cleaning and Domestic Supplies,BH03,Cleaning Services                       ,1222.2,01/09/2014,REV,BIRKIN CLEANING SERVICES LTD  
291,Adult Social Care,OP 65 & Over Day Care,Pollards Hill Day Centre,E02270,Premises Related Expenditure  ,Cleaning and Domestic Supplies,BH03,Cleaning Services                       ,6596.17,01/09/2014,REV,BIRKIN CLEANING SERVICES LTD  
292,Adult Social Care,OP 65 & Over Day Care,Pollards Hill Day Centre,E02270,Premises Related Expenditure  ,Cleaning and Domestic Supplies,BH03,Cleaning Services                       ,3093.61,01/09/2014,REV,BIRKIN CLEANING SERVICES LTD  
293,Adult Social Care,OP 65 & Over Day Care,Pollards Hill Day Centre,E02270,Premises Related Expenditure  ,Cleaning and Domestic Supplies,BH03,Cleaning Services                       ,-1738.6,04/08/2014,REV,BIRKIN CLEANING SERVICES LTD  
294,Adult Social Care,OP 65 & Over Day Care,Pollards Hill Day Centre,E02270,Premises Related Expenditure  ,Cleaning and Domestic Supplies,BH03,Cleaning Services                       ,1540.02,01/09/2014,REV,BIRKIN CLEANING SERVICES LTD  
295,Adult Social Care,OP 65 & Over Day Care,Pollards Hill Day Centre,E02270,Premises Related Expenditure  ,Cleaning and Domestic Supplies,BH03,Cleaning Services                       ,1673.61,01/09/2014,REV,BIRKIN CLEANING SERVICES LTD  
296,Adult Social Care,OP 65 & Over Day Care,Pollards Hill Day Centre,E02270,Premises Related Expenditure  ,Cleaning and Domestic Supplies,BH03,Cleaning Services                       ,835.04,01/09/2014,REV,BIRKIN CLEANING SERVICES LTD  
297,Adult Social Care,OP 65 & Over Day Care,Pollards Hill Day Centre,E02270,Premises Related Expenditure  ,Cleaning and Domestic Supplies,BH03,Cleaning Services                       ,1239.08,01/09/2014,REV,BIRKIN CLEANING SERVICES LTD  
298,Adult Social Care,OP 65 & Over Day Care,Pollards Hill Day Centre,E02270,Premises Related Expenditure  ,Cleaning and Domestic Supplies,BH03,Cleaning Services                       ,1421.8,01/09/2014,REV,BIRKIN CLEANING SERVICES LTD  
299,Cultural Env Reg&Plan Services,Parks & Open Spaces,E & R Buildings,E02344,Premises Related Expenditure  ,RepairsAlterations&MtceOfBldgs,BA01,DDM - General Building                  ,824.54,26/08/2014,REV,SALTASH ENTERPRISES LTD       
300,Cultural Env Reg&Plan Services,Parks & Open Spaces,Leisure Buildings,E02350,Premises Related Expenditure  ,RepairsAlterations&MtceOfBldgs,BA01,DDM - General Building                  ,1725,27/03/2014,REV,SALTASH ENTERPRISES LTD       
301,Cultural Env Reg&Plan Services,Parks & Open Spaces,Leisure Buildings,E02350,Premises Related Expenditure  ,RepairsAlterations&MtceOfBldgs,BA01,DDM - General Building                  ,546,06/08/2014,REV,SALTASH ENTERPRISES LTD       
302,Cultural Env Reg&Plan Services,Parks & Open Spaces,Leisure Buildings,E02350,Premises Related Expenditure  ,RepairsAlterations&MtceOfBldgs,BA01,DDM - General Building                  ,760,04/07/2014,REV,NATIONCARE WINDOWS LTD        
303,Central Services,SupS DOF,Director of Corporate Services,E04060,Supplies & Services           ,Services                      ,DF11,Counsel's Fees                          ,1662.5,30/09/2014,REV,REDACTED
304,Central Services,SupS DOF,AD RESOURCES,E04061,Employees                     ,Indirect Employee Expenses    ,AB02,Recruitment Adverts                     ,9599.2,29/08/2014,REV,PENNA COMMUNICATIONS (NO 2 A/C
305,Central Services,SupS DOF,AD RESOURCES,E04061,Employees                     ,Indirect Employee Expenses    ,AB02,Recruitment Adverts                     ,4166,26/08/2014,REV,PENNA COMMUNICATIONS (NO 2 A/C
306,Central Services,SupS DOF,AD RESOURCES,E04061,Supplies & Services           ,Services                      ,DF03,CONSULTANTS                             ,7360,08/09/2014,REV,PUBLIC SECTOR CONSULTANTS     
307,Central Services,SupS Corporate Finance,Corporate Accountancy,E06209,Supplies & Services           ,Services                      ,DF58,Audit Fee                               ,16400,26/08/2014,REV,ERNST & YOUNG LLP             
308,Central Services,SupS Corporate Finance,Corporate Accountancy,E06209,Supplies & Services           ,Services                      ,DF58,Audit Fee                               ,56623,31/07/2014,REV,ERNST & YOUNG LLP             
309,Central Services,SupS Strategic Finance,Business Planning,E06221,Employees                     ,Indirect Employee Expenses    ,AB02,Recruitment Adverts                     ,1780,11/09/2014,REV,PENNA COMMUNICATIONS (NO 2 A/C
310,Central Services,SupS Strategic Finance,Treasury & Insurance,E06222,Employees                     ,Direct Employee Expenses      ,AA17,Agency Staff & Casual Paymts            ,11280,15/09/2014,REV,REDACTED
311,Central Services,SupS Strategic Finance,Treasury & Insurance,E06222,Supplies & Services           ,Comms and Computing           ,DG02,Software Licences                       ,2880.4,04/09/2014,REV,LOGOTECH SYSTEMS              
312,Central Services,GENERATED ACCOUNT,Parking Cash Collect'n Contrct,E06225,Third Party Payments          ,Private Contractors           ,EH02,Miscellaneous Hired Services            ,8151,31/08/2014,REV,BANKING AUTOMATION LTD        
313,Central Services,SupS DOF,Service Accountancy,E06227,Employees                     ,Direct Employee Expenses      ,AA17,Agency Staff & Casual Paymts            ,5520,15/09/2014,REV,REDACTED
314,Central Services,SupS Legal,Legal Services,E10282,Supplies & Services           ,Services                      ,DF11,Counsel's fees                          ,845,02/04/2014,REV,REDACTED
315,Central Services,SupS Legal,Legal Services,E10282,Supplies & Services           ,Services                      ,DF28,Court Fees                              ,735,08/09/2014,REV,REDACTED
316,Central Services,SupS Legal,Legal Services,E10282,Supplies & Services           ,Services                      ,DF28,Court Fees                              ,1475,08/09/2014,REV,REDACTED
317,Central Services,SupS Legal,Legal Services,E10282,Supplies & Services           ,Services                      ,DF28,Court Fees                              ,2055,08/09/2014,REV,REDACTED
318,Central Services,SupS Legal,Legal Services,E10282,Supplies & Services           ,Services                      ,DF28,Court Fees                              ,2320,08/09/2014,REV,REDACTED
319,Central Services,SupS Legal,Legal Services,E10282,Supplies & Services           ,Services                      ,DF28,Court Fees                              ,510,08/09/2014,REV,REDACTED
320,Central Services,SupS Legal,Legal Services,E10282,Supplies & Services           ,Services                      ,DF28,Court Fees                              ,560,08/09/2014,REV,REDACTED
321,Central Services,SupS Legal,Legal Services,E10282,Supplies & Services           ,Services                      ,DF28,Court Fees                              ,610,08/09/2014,REV,REDACTED
322,Central Services,SupS Legal,Legal Services,E10282,Supplies & Services           ,Services                      ,DF28,Court Fees                              ,610,08/09/2014,REV,REDACTED
323,Central Services,SupS Legal,Legal Services,E10282,Supplies & Services           ,Services                      ,DF28,Court Fees                              ,930,08/09/2014,REV,REDACTED
324,Central Services,SupS Legal,Legal Services,E10282,Supplies & Services           ,Services                      ,DF28,Court Fees                              ,2055,08/09/2014,REV,REDACTED
325,Central Services,SupS Legal,Legal Services,E10282,Supplies & Services           ,Services                      ,DF28,Court Fees                              ,2055,08/09/2014,REV,REDACTED
326,Central Services,SupS Legal,Legal Services,E10282,Supplies & Services           ,Services                      ,DF28,Court Fees                              ,2665,08/09/2014,REV,REDACTED
327,Central Services,SupS Legal,Legal Services,E10282,Supplies & Services           ,Services                      ,DF28,Court Fees                              ,2725,08/09/2014,REV,REDACTED
328,Central Services,SupS Legal,Legal Services,E10282,Supplies & Services           ,Services                      ,DF28,Court Fees                              ,4070,08/09/2014,REV,REDACTED
329,Central Services,SupS Legal,Legal Services,E10282,Supplies & Services           ,Services                      ,DF28,Court Fees                              ,557,08/09/2014,REV,REDACTED
330,Central Services,SupS Legal,Legal Services,E10282,Supplies & Services           ,Services                      ,DF28,Court Fees                              ,640,08/09/2014,REV,REDACTED
331,Central Services,SupS Legal,Legal Services,E10282,Supplies & Services           ,Services                      ,DF28,Court Fees                              ,760,08/09/2014,REV,REDACTED
332,Central Services,SupS Legal,Legal Services,E10282,Supplies & Services           ,Services                      ,DF28,Court Fees                              ,775,08/09/2014,REV,REDACTED
333,Central Services,SupS Legal,Legal Services,E10282,Supplies & Services           ,Services                      ,DF28,Court Fees                              ,900,08/09/2014,REV,REDACTED
334,Central Services,SupS Legal,Legal Services,E10282,Supplies & Services           ,Services                      ,DF28,Court Fees                              ,2055,10/09/2014,REV,REDACTED
335,Central Services,SupS Legal,Legal Services,E10282,Supplies & Services           ,Services                      ,DF28,Court Fees                              ,2165,08/09/2014,REV,REDACTED
336,Central Services,SupS Legal,Legal Services,E10282,Supplies & Services           ,Services                      ,DF28,Court Fees                              ,2365,08/09/2014,REV,REDACTED
337,Central Services,SupS Legal,Legal Services,E10282,Supplies & Services           ,Services                      ,DF28,Court Fees                              ,2060,08/09/2014,REV,REDACTED
338,Central Services,SupS Legal,Legal Services,E10282,Supplies & Services           ,Services                      ,DF28,Court Fees                              ,2165,08/09/2014,REV,REDACTED
339,Central Services,SupS Legal,Legal Services,E10282,Supplies & Services           ,Services                      ,DF28,Court Fees                              ,2260,08/09/2014,REV,REDACTED
340,Central Services,SupS Legal,Legal Services,E10282,Supplies & Services           ,Services                      ,DF28,Court Fees                              ,2505,12/09/2014,REV,REDACTED
341,Central Services,Conducting elections,Election Expenses,E10284,Supplies & Services           ,Prntng Stnry Gen Off Exp      ,DE01,External Printing                       ,13179.72,01/07/2014,REV,FINANCIAL DATA MANAGEMENT PLC 
342,Central Services,Conducting elections,Election Expenses,E10284,Supplies & Services           ,Prntng Stnry Gen Off Exp      ,DE01,External Printing                       ,17783.2,01/07/2014,REV,FINANCIAL DATA MANAGEMENT PLC 
343,Central Services,Conducting elections,Election Expenses,E10284,Supplies & Services           ,Prntng Stnry Gen Off Exp      ,DE01,External Printing                       ,1375,01/07/2014,REV,FINANCIAL DATA MANAGEMENT PLC 
344,Central Services,Conducting elections,Election Expenses,E10284,Supplies & Services           ,Prntng Stnry Gen Off Exp      ,DE01,External Printing                       ,4353,01/07/2014,REV,FINANCIAL DATA MANAGEMENT PLC 
345,Central Services,Conducting elections,Election Expenses,E10284,Supplies & Services           ,Prntng Stnry Gen Off Exp      ,DE30,General Office Expense                  ,2910,15/08/2014,REV,LONDON BOROUGH OF SUTTON      
346,Central Services,Registration of electors,Electoral Registration,E10285,Employees                     ,Indirect Employee Expenses    ,AB02,Recruitment Adverts                     ,789,11/09/2014,REV,PENNA COMMUNICATIONS (NO 2 A/C
347,Central Services,Registration of electors,Electoral Registration,E10285,Supplies & Services           ,Prntng Stnry Gen Off Exp      ,DE02,General Publications                    ,949,22/08/2014,REV,LEXIS NEXIS                   
348,Central Services,Registration of electors,Electoral Registration,E10285,Supplies & Services           ,Prntng Stnry Gen Off Exp      ,DE03,Stationery                              ,1396.15,11/09/2014,REV,FINANCIAL DATA MANAGEMENT PLC 
349,Central Services,Registration of electors,Electoral Registration,E10285,Supplies & Services           ,Comms and Computing           ,DG04,Postage - General                       ,1761.48,27/08/2014,REV,FINANCIAL DATA MANAGEMENT PLC 
350,Central Services,Registration of electors,Electoral Registration,E10285,Supplies & Services           ,Comms and Computing           ,DG07,Computer Software                       ,1500,17/07/2014,REV,HALAROSE LIMITED              
351,Central Services,SupS Legal,Shared Legal Service,E10288,Supplies & Services           ,Prntng Stnry Gen Off Exp      ,DE03,Stationery                              ,662.5,19/09/2014,REV,OFFICE DEPOT UK LTD           
352,Central Services,SupS Legal,Shared Legal Service,E10288,Supplies & Services           ,Services                      ,DF11,Counsel's Fees                          ,-750,05/12/2013,REV,REDACTED
353,Central Services,SupS Legal,Shared Legal Service,E10288,Supplies & Services           ,Services                      ,DF95,Services from Provider                  ,1700,31/03/2014,REV,GOODWIN MALATESTA LEGAL SERVS 
354,Central Services,SupS Legal,Shared Legal Service,E10288,Supplies & Services           ,Comms and Computing           ,DG02,Software Licences                       ,3378.75,05/09/2014,REV,ZYLPHA LIMITED                
355,Central Services,SupS Legal,Shared Legal Service,E10288,Supplies & Services           ,Comms and Computing           ,DG04,Postage - General                       ,1300,28/08/2014,REV,DX NETWORK SERVICES LTD       
356,Central Services,SupS Legal,Shared Legal Service,E10288,Supplies & Services           ,Comms and Computing           ,DG04,Postage - General                       ,7050,28/08/2014,REV,DX NETWORK SERVICES LTD       
357,Central Services,SupS Legal,Richmond Legal,E10289,Supplies & Services           ,Services                      ,DF11,Counsel's Fees                          ,6200,30/07/2014,REV,REDACTED
358,Central Services,SupS Legal,Richmond Legal,E10289,Supplies & Services           ,Services                      ,DF11,Counsel's Fees                          ,1000,10/09/2014,REV,REDACTED
359,Central Services,SupS Legal,Richmond Legal,E10289,Supplies & Services           ,Services                      ,DF11,Counsel's Fees                          ,1625,09/09/2014,REV,REDACTED
360,Central Services,SupS Legal,Richmond Legal,E10289,Supplies & Services           ,Services                      ,DF11,Counsel's Fees                          ,5600,15/09/2014,REV,REDACTED
361,Central Services,SupS Legal,Richmond Legal,E10289,Supplies & Services           ,Services                      ,DF95,Services from Provider                  ,1227.75,04/08/2014,REV,REDACTED
362,Central Services,SupS Legal,Richmond Legal,E10289,Supplies & Services           ,Services                      ,DF95,Services from Provider                  ,752,27/08/2014,REV,REDACTED
363,Central Services,SupS Legal,Richmond Legal,E10289,Supplies & Services           ,Services                      ,DF95,Services from Provider                  ,4809.5,30/06/2014,REV,SHARPE PRITCHARD SOLICITORS   
364,Central Services,SupS Legal,Richmond Legal,E10289,Supplies & Services           ,Services                      ,DF95,Services from Provider                  ,1500,07/08/2014,REV,AVIVA CENTRAL SERVICES        
365,Central Services,SupS Legal,K&S Shared Legal                        ,E10291,Supplies & Services           ,Comms and Computing           ,DG02,Software Licences                       ,3378.75,05/09/2014,REV,ZYLPHA LIMITED                
366,Central Services,SupS Legal,K&S Shared Legal                        ,E10291,Supplies & Services           ,Comms and Computing           ,DG04,Postage - General                       ,7050,28/08/2014,REV,DX NETWORK SERVICES LTD       
367,Central Services,SupS Legal,K&S Shared Legal                        ,E10291,Supplies & Services           ,Comms and Computing           ,DG04,Postage - General                       ,1300,28/08/2014,REV,DX NETWORK SERVICES LTD       
368,Central Services,SupS Legal,K&S Shared Legal                        ,E10291,Third Party Payments          ,Other Local Authorities       ,EB01,Payments to OLAs                        ,16400,19/09/2014,REV,RB OF KINGSTON UPON THAMES    
369,Central Services,SupS Legal,Kingston Legal                          ,E10292,Supplies & Services           ,Services                      ,DF11,Counsel's Fees                          ,6000,05/09/2014,REV,REDACTED
370,Central Services,SupS Legal,Kingston Legal                          ,E10292,Supplies & Services           ,Services                      ,DF11,Counsel's Fees                          ,1215,22/09/2014,REV,REDACTED
371,Central Services,SupS Legal,Kingston Legal                          ,E10292,Supplies & Services           ,Services                      ,DF11,Counsel's Fees                          ,3500,07/08/2014,REV,REDACTED
372,Central Services,SupS Legal,Kingston Legal                          ,E10292,Supplies & Services           ,Services                      ,DF11,Counsel's Fees                          ,700,07/08/2014,REV,REDACTED
373,Central Services,SupS Legal,Kingston Legal                          ,E10292,Supplies & Services           ,Services                      ,DF95,Services from Provider                  ,870,03/09/2014,REV,KEYSTONE LAW LIMITED          
374,Central Services,SupS Legal,Sutton Legal                            ,E10293,Supplies & Services           ,Services                      ,DF11,Counsel's Fees                          ,800,18/08/2014,REV,REDACTED
375,Central Services,SupS Legal,Sutton Legal                            ,E10293,Supplies & Services           ,Services                      ,DF11,Counsel's Fees                          ,1591.25,15/08/2014,REV,REDACTED
376,Central Services,SupS Legal,Sutton Legal                            ,E10293,Supplies & Services           ,Services                      ,DF11,Counsel's Fees                          ,950,15/09/2014,REV,REDACTED
377,Central Services,SupS Legal,Sutton Legal                            ,E10293,Supplies & Services           ,Services                      ,DF11,Counsel's Fees                          ,520,07/08/2014,REV,REDACTED
378,Central Services,SupS Legal,Sutton Legal                            ,E10293,Supplies & Services           ,Services                      ,DF11,Counsel's Fees                          ,3847.5,18/08/2014,REV,REDACTED
379,Central Services,SupS Legal,Sutton Legal                            ,E10293,Supplies & Services           ,Services                      ,DF11,Counsel's Fees                          ,1500,11/09/2014,REV,REDACTED
380,Central Services,SupS Legal,Sutton Legal                            ,E10293,Supplies & Services           ,Services                      ,DF11,Counsel's Fees                          ,1850,15/07/2014,REV,REDACTED
381,Central Services,SupS Legal,Sutton Legal                            ,E10293,Supplies & Services           ,Services                      ,DF11,Counsel's Fees                          ,610,07/08/2014,REV,REDACTED
382,Central Services,SupS Legal,Sutton Legal                            ,E10293,Supplies & Services           ,Services                      ,DF11,Counsel's Fees                          ,1500,12/08/2014,REV,REDACTED
383,Central Services,SupS Legal,Sutton Legal                            ,E10293,Supplies & Services           ,Services                      ,DF11,Counsel's Fees                          ,712.5,18/08/2014,REV,REDACTED
384,Central Services,SupS Legal,Sutton Legal                            ,E10293,Supplies & Services           ,Services                      ,DF11,Counsel's Fees                          ,6093.75,18/08/2014,REV,REDACTED
385,Central Services,SupS Legal,Sutton Legal                            ,E10293,Supplies & Services           ,Services                      ,DF11,Counsel's Fees                          ,1200,01/09/2014,REV,REDACTED
386,Central Services,SupS Legal,Sutton Legal                            ,E10293,Supplies & Services           ,Services                      ,DF11,Counsel's Fees                          ,520,14/08/2014,REV,REDACTED
387,Central Services,SupS Legal,Sutton Legal                            ,E10293,Supplies & Services           ,Services                      ,DF11,Counsel's Fees                          ,925,28/07/2014,REV,REDACTED
388,Central Services,SupS Legal,Sutton Legal                            ,E10293,Supplies & Services           ,Services                      ,DF14,Doctors and Other Fees                  ,2944.51,09/07/2014,REV,WEALDEN PSYCHOLOGY LTD        
389,Central Services,SupS Legal,Sutton Legal                            ,E10293,Supplies & Services           ,Services                      ,DF14,Doctors and Other Fees                  ,1575,29/07/2014,REV,REDACTED
390,Central Services,SupS Legal,Sutton Legal                            ,E10293,Supplies & Services           ,Services                      ,DF14,Doctors and Other Fees                  ,1404,04/09/2014,REV,REDACTED
391,Central Services,SupS Legal,Sutton Legal                            ,E10293,Supplies & Services           ,Services                      ,DF14,Doctors and Other Fees                  ,2665.6,21/07/2014,REV,CF SOCIAL WORK                
392,Central Services,SupS Legal,Sutton Legal                            ,E10293,Supplies & Services           ,Services                      ,DF14,Doctors and Other Fees                  ,565.82,09/05/2014,REV,ALLEN ASSOCIATES              
393,Central Services,SupS Legal,Sutton Legal                            ,E10293,Supplies & Services           ,Services                      ,DF14,Doctors and Other Fees                  ,761.26,14/04/2014,REV,REDACTED
394,Central Services,SupS Legal,Sutton Legal                            ,E10293,Supplies & Services           ,Services                      ,DF14,Doctors and Other Fees                  ,976,29/08/2014,REV,PSYCHOLOGY EXPERTS LTD        
395,Central Services,SupS Legal,Sutton Legal                            ,E10293,Supplies & Services           ,Services                      ,DF14,Doctors and Other Fees                  ,614.33,31/07/2014,REV,REDACTED
396,Central Services,SupS Legal,Sutton Legal                            ,E10293,Supplies & Services           ,Services                      ,DF95,Services from Provider                  ,1548,07/08/2014,REV,SYMBOL FAMILY SUPPORT SERVICES
397,Central Services,SupS Legal,Sutton Legal                            ,E10293,Supplies & Services           ,Services                      ,DF95,Services from Provider                  ,3350,30/06/2014,REV,REDACTED
398,Central Services,SupS Legal,Sutton Legal                            ,E10293,Supplies & Services           ,Services                      ,DF95,Services from Provider                  ,1000,29/05/2014,REV,SYMBOL FAMILY SUPPORT SERVICES
399,Central Services,SupS Legal,Sutton Legal                            ,E10293,Supplies & Services           ,Services                      ,DF95,Services from Provider                  ,1130.28,07/08/2014,REV,RUSSELL -  COOKE LLP          
400,Central Services,SupS Legal,Sutton Legal                            ,E10293,Supplies & Services           ,Services                      ,DF95,Services from Provider                  ,8342.5,23/07/2014,REV,SYMBOL FAMILY SUPPORT SERVICES
401,Central Services,SupS Legal,Sutton Housing Partnership(SHP          ,E10294,Supplies & Services           ,Services                      ,DF11,Counsel's Fees                          ,1375,25/08/2014,REV,REDACTED
402,Central Services,SupS Legal,Sutton Housing Partnership(SHP          ,E10294,Supplies & Services           ,Services                      ,DF11,Counsel's Fees                          ,750,25/08/2014,REV,REDACTED
403,Central Services,SupS Legal,Achieving for Children (AFC),E10295,Supplies & Services           ,Services                      ,DF11,Counsel's Fees                          ,840,15/09/2014,REV,REDACTED
404,Central Services,SupS Legal,Achieving for Children (AFC),E10295,Supplies & Services           ,Services                      ,DF11,Counsel's Fees                          ,510,19/08/2014,REV,REDACTED
405,Central Services,SupS Legal,Achieving for Children (AFC),E10295,Supplies & Services           ,Services                      ,DF11,Counsel's Fees                          ,900,15/09/2014,REV,REDACTED
406,Central Services,SupS Legal,Achieving for Children (AFC),E10295,Supplies & Services           ,Services                      ,DF11,Counsel's Fees                          ,840,04/09/2014,REV,REDACTED
407,Central Services,SupS Legal,Achieving for Children (AFC),E10295,Supplies & Services           ,Services                      ,DF11,Counsel's Fees                          ,520,04/09/2014,REV,REDACTED
408,Central Services,SupS Legal,Achieving for Children (AFC),E10295,Supplies & Services           ,Services                      ,DF11,Counsel's Fees                          ,520,10/09/2014,REV,REDACTED
409,Central Services,SupS Legal,Achieving for Children (AFC),E10295,Supplies & Services           ,Services                      ,DF11,Counsel's Fees                          ,900,31/07/2014,REV,REDACTED
410,Central Services,SupS Legal,Achieving for Children (AFC),E10295,Supplies & Services           ,Services                      ,DF11,Counsel's Fees                          ,702.5,26/06/2014,REV,REDACTED
411,Central Services,SupS Legal,Achieving for Children (AFC),E10295,Supplies & Services           ,Services                      ,DF11,Counsel's Fees                          ,1350,15/09/2014,REV,REDACTED
412,Central Services,SupS Legal,Achieving for Children (AFC),E10295,Supplies & Services           ,Services                      ,DF11,Counsel's Fees                          ,585,16/09/2014,REV,REDACTED
413,Central Services,SupS Legal,Achieving for Children (AFC),E10295,Supplies & Services           ,Services                      ,DF11,Counsel's Fees                          ,1000,17/09/2014,REV,REDACTED
414,Central Services,SupS Legal,Achieving for Children (AFC),E10295,Supplies & Services           ,Services                      ,DF11,Counsel's Fees                          ,520,19/08/2014,REV,REDACTED
415,Central Services,SupS Legal,Achieving for Children (AFC),E10295,Supplies & Services           ,Services                      ,DF11,Counsel's Fees                          ,1218.31,07/07/2014,REV,REDACTED
416,Central Services,SupS Legal,Achieving for Children (AFC),E10295,Supplies & Services           ,Services                      ,DF11,Counsel's Fees                          ,520,04/09/2014,REV,REDACTED
417,Central Services,SupS Legal,Achieving for Children (AFC),E10295,Supplies & Services           ,Services                      ,DF11,Counsel's Fees                          ,1025,03/06/2014,REV,REDACTED
418,Central Services,SupS Legal,Achieving for Children (AFC),E10295,Supplies & Services           ,Services                      ,DF11,Counsel's Fees                          ,1500,21/08/2014,REV,REDACTED
419,Central Services,SupS Legal,Achieving for Children (AFC),E10295,Supplies & Services           ,Services                      ,DF14,Doctors and Other Fees                  ,560.31,18/06/2014,REV,REDACTED
420,Central Services,SupS Legal,Achieving for Children (AFC),E10295,Supplies & Services           ,Services                      ,DF14,Doctors and Other Fees                  ,957.6,08/07/2014,REV,PARENTING PROFILES LTD        
421,Central Services,SupS Legal,Achieving for Children (AFC),E10295,Supplies & Services           ,Services                      ,DF14,Doctors and Other Fees                  ,1395.63,03/07/2014,REV,REDACTED
422,Central Services,SupS Legal,Achieving for Children (AFC),E10295,Supplies & Services           ,Services                      ,DF14,Doctors and Other Fees                  ,2894.63,18/01/2014,REV,REDACTED
423,Central Services,SupS IT,Social Care Info System (SCI)           ,E14357,Employees                     ,Direct Employee Expenses      ,AA17,Agency Staff & Casual Paymts            ,3107.5,30/07/2014,REV,HAYS RECRUITING EXPERTS       
424,Central Services,SupS IT,Social Care Info System (SCI)           ,E14357,Employees                     ,Direct Employee Expenses      ,AA17,Agency Staff & Casual Paymts            ,3025,17/09/2014,REV,HAYS RECRUITING EXPERTS       
425,Central Services,SupS IT,Social Care Info System (SCI)           ,E14357,Employees                     ,Direct Employee Expenses      ,AA17,Agency Staff & Casual Paymts            ,2420,03/09/2014,REV,HAYS RECRUITING EXPERTS       
426,Central Services,SupS IT,Social Care Info System (SCI)           ,E14357,Employees                     ,Direct Employee Expenses      ,AA17,Agency Staff & Casual Paymts            ,3025,03/09/2014,REV,HAYS RECRUITING EXPERTS       
427,Central Services,SupS IT,Social Care Info System (SCI)           ,E14357,Employees                     ,Direct Employee Expenses      ,AA17,Agency Staff & Casual Paymts            ,3025,20/08/2014,REV,HAYS RECRUITING EXPERTS       
428,Central Services,SupS IT,Social Care Info System (SCI)           ,E14357,Employees                     ,Direct Employee Expenses      ,AA17,Agency Staff & Casual Paymts            ,3025,13/08/2014,REV,HAYS RECRUITING EXPERTS       
429,Central Services,SupS IT,BI IT Projects,E14360,Employees                     ,Direct Employee Expenses      ,AA17,Agency Staff & Casual Paymts            ,7222.2,04/09/2014,REV,REDACTED
430,Central Services,SupS IT,AD I&T,E14363,Employees                     ,Direct Employee Expenses      ,AA17,Agency Staff & Casual Paymts            ,1875,21/05/2014,REV,REDACTED
431,Central Services,SupS IT,AD I&T,E14363,Employees                     ,Direct Employee Expenses      ,AA17,Agency Staff & Casual Paymts            ,2062.5,29/05/2014,REV,REDACTED
432,Central Services,SupS IT,AD I&T,E14363,Employees                     ,Direct Employee Expenses      ,AA17,Agency Staff & Casual Paymts            ,1875,28/05/2014,REV,REDACTED
433,Central Services,SupS IT,AD I&T,E14363,Employees                     ,Direct Employee Expenses      ,AA17,Agency Staff & Casual Paymts            ,2062.5,16/07/2014,REV,REDACTED
434,Central Services,SupS IT,AD I&T,E14363,Supplies & Services           ,Equip Furniture/Materials     ,DA01,Equipment - R & M                       ,1200,12/09/2014,REV,COMPUTER FORENSICS            
435,Central Services,SupS IT,Systems & Projects,E14366,Employees                     ,Direct Employee Expenses      ,AA17,Agency Staff & Casual Paymts            ,1100,29/08/2014,REV,REDACTED
436,Central Services,SupS IT,Systems & Projects,E14366,Employees                     ,Direct Employee Expenses      ,AA17,Agency Staff & Casual Paymts            ,1285.8,04/08/2014,REV,NUMBER 10 INTERIM LTD         
437,Central Services,SupS IT,Systems & Projects,E14366,Employees                     ,Direct Employee Expenses      ,AA17,Agency Staff & Casual Paymts            ,1500.1,04/08/2014,REV,NUMBER 10 INTERIM LTD         
438,Central Services,SupS IT,Systems & Projects,E14366,Employees                     ,Direct Employee Expenses      ,AA17,Agency Staff & Casual Paymts            ,3000.2,21/08/2014,REV,NUMBER 10 INTERIM LTD         
439,Central Services,SupS IT,Systems & Projects,E14366,Employees                     ,Direct Employee Expenses      ,AA17,Agency Staff & Casual Paymts            ,2764.47,08/09/2014,REV,NUMBER 10 INTERIM LTD         
440,Central Services,SupS IT,Systems & Projects,E14366,Employees                     ,Direct Employee Expenses      ,AA17,Agency Staff & Casual Paymts            ,1500.1,29/08/2014,REV,NUMBER 10 INTERIM LTD         
441,Central Services,SupS IT,Systems & Projects,E14366,Employees                     ,Direct Employee Expenses      ,AA17,Agency Staff & Casual Paymts            ,1375,15/08/2014,REV,REDACTED
442,Central Services,SupS IT,Systems & Projects,E14366,Employees                     ,Indirect Employee Expenses    ,AB02,Recruitment Adverts                     ,4936,23/09/2014,REV,PENNA COMMUNICATIONS (NO 2 A/C
443,Central Services,SupS IT,Systems & Projects,E14366,Supplies & Services           ,Services                      ,DF03,Consultants                             ,2250,08/08/2014,REV,CIVICA UK LIMITED             
444,Central Services,SupS IT,Systems & Projects,E14366,Supplies & Services           ,Services                      ,DF03,Consultants                             ,750,08/08/2014,REV,CIVICA UK LIMITED             
445,Central Services,SupS IT,Systems & Projects,E14366,Supplies & Services           ,Comms and Computing           ,DG02,Software Licences                       ,2400,13/07/2014,REV,FIBONACCI LTD                 
446,Central Services,SupS IT,Systems & Projects,E14366,Supplies & Services           ,Comms and Computing           ,DG07,Computer Software                       ,516.78,23/07/2014,REV,CIVICA UK LIMITED             
447,Central Services,SupS IT,Systems & Projects,E14366,Supplies & Services           ,Comms and Computing           ,DG07,Computer Software                       ,516.78,23/07/2014,REV,CIVICA UK LIMITED             
448,Central Services,SupS IT,Systems & Projects,E14366,Supplies & Services           ,Comms and Computing           ,DG50,Other IT Expenditure                    ,18406.69,31/08/2014,REV,INFOR GLOBAL SOLUTIONS-FRIMLEY
449,Central Services,SupS IT,Systems & Projects,E14366,Supplies & Services           ,Comms and Computing           ,DG61,Computer Servs Special                  ,77193.91,20/08/2014,REV,PITNEY BOWES SOFTWARE LTD     
450,Central Services,SupS IT,Systems & Projects,E14366,Supplies & Services           ,Comms and Computing           ,DG63,Software Licences - Data                ,815.94,23/07/2014,REV,CIVICA UK LIMITED             
451,Central Services,SupS IT,Operations & Telecomms,E14367,Employees                     ,Direct Employee Expenses      ,AA17,Agency Staff & Casual Paymts            ,3570,05/09/2014,REV,REDACTED
452,Central Services,SupS IT,Operations & Telecomms,E14367,Supplies & Services           ,Equip Furniture/Materials     ,DA01,Equipment - R & M                       ,875,27/08/2014,REV,SHENTON GROUP                 
453,Central Services,SupS IT,Operations & Telecomms,E14367,Supplies & Services           ,Comms and Computing           ,DG54,Corporate Telephones                    ,5345.25,04/09/2014,REV,T MOBILE (UK)                 
454,Central Services,SupS IT,Operations & Telecomms,E14367,Supplies & Services           ,Comms and Computing           ,DG54,Corporate Telephones                    ,4156.11,17/09/2014,REV,ORANGE P'MENT PRO'SING AIRTIME
455,Central Services,SupS IT,Operations & Telecomms,E14367,Supplies & Services           ,Comms and Computing           ,DG54,Corporate Telephones                    ,43659.06,27/08/2014,REV,BRITISH TELECOMMUNICATIONS PLC
456,Central Services,SupS IT,Operations & Telecomms,E14367,Supplies & Services           ,Comms and Computing           ,DG54,Corporate Telephones                    ,4212.71,17/08/2014,REV,ORANGE P'MENT PRO'SING AIRTIME
457,Central Services,SupS IT,Operations & Telecomms,E14367,Supplies & Services           ,Comms and Computing           ,DG54,Corporate Telephones                    ,2452.32,02/09/2014,REV,COLT TELECOMMUNICATIONS       
458,Central Services,SupS IT,Operations & Telecomms,E14367,Supplies & Services           ,Comms and Computing           ,DG54,Corporate Telephones                    ,2592.05,01/07/2014,REV,VIRGIN MEDIA PAYMENTS LIMITED 
459,Central Services,SupS IT,Operations & Telecomms,E14367,Supplies & Services           ,Comms and Computing           ,DG54,Corporate Telephones                    ,1094.22,29/08/2014,REV,O2 (UK) LIMITED               
460,Central Services,SupS IT,Distributed Services,E14368,Supplies & Services           ,Comms and Computing           ,DG63,Software Licences - Data                ,3500,29/08/2014,REV,SOFTCAT LTD                   
461,Central Services,SupS IT,Distributed Services,E14368,Supplies & Services           ,Comms and Computing           ,DG63,Software Licences - Data                ,590.4,28/07/2014,REV,V-SUB SOLUTIONS               
462,Central Services,SupS IT,Corp Saving-IT Consolidation,E14370,Premises Related Expenditure  ,RepairsAlterations&MtceOfBldgs,BA01,DDM - General Building                  ,625,11/09/2014,REV,SALTASH ENTERPRISES LTD       
463,Central Services,SupS IT,Corp Saving-IT Consolidation,E14370,Premises Related Expenditure  ,RepairsAlterations&MtceOfBldgs,BA01,DDM - General Building                  ,3552,11/09/2014,REV,SALTASH ENTERPRISES LTD       
464,Central Services,SupS IT,Corp Saving-IT Consolidation,E14370,Premises Related Expenditure  ,RepairsAlterations&MtceOfBldgs,BA01,DDM - General Building                  ,24565.3,12/11/2013,REV,SALTASH ENTERPRISES LTD       
465,Central Services,SupS IT,Corp Saving-IT Consolidation,E14370,Premises Related Expenditure  ,RepairsAlterations&MtceOfBldgs,BA01,DDM - General Building                  ,5687.5,04/09/2014,REV,SALTASH ENTERPRISES LTD       
466,Central Services,SupS IT,Corp Saving-IT Consolidation,E14370,Premises Related Expenditure  ,RepairsAlterations&MtceOfBldgs,BA01,DDM - General Building                  ,9781.25,11/09/2014,REV,SALTASH ENTERPRISES LTD       
467,Central Services,SupS IT,No longer used,E14371,Employees                     ,Direct Employee Expenses      ,AA17,Agency Staff & Casual Paymts            ,3390,17/09/2014,REV,HAYS RECRUITING EXPERTS       
468,Central Services,SupS IT,No longer used,E14371,Employees                     ,Direct Employee Expenses      ,AA17,Agency Staff & Casual Paymts            ,2060,08/07/2014,REV,REDACTED
469,Central Services,SupS IT,No longer used,E14371,Employees                     ,Direct Employee Expenses      ,AA17,Agency Staff & Casual Paymts            ,2060,22/07/2014,REV,REDACTED
470,Central Services,SupS IT,No longer used,E14371,Employees                     ,Direct Employee Expenses      ,AA17,Agency Staff & Casual Paymts            ,3390,12/09/2014,REV,HAYS RECRUITING EXPERTS       
471,Central Services,SupS IT,No longer used,E14371,Employees                     ,Direct Employee Expenses      ,AA17,Agency Staff & Casual Paymts            ,1572,15/07/2014,REV,REDACTED
472,Central Services,SupS IT,No longer used,E14371,Employees                     ,Direct Employee Expenses      ,AA17,Agency Staff & Casual Paymts            ,2060,29/07/2014,REV,REDACTED
473,Central Services,SupS IT,No longer used,E14371,Employees                     ,Direct Employee Expenses      ,AA17,Agency Staff & Casual Paymts            ,2712,12/09/2014,REV,HAYS RECRUITING EXPERTS       
474,Central Services,SupS IT,No longer used,E14371,Employees                     ,Direct Employee Expenses      ,AA17,Agency Staff & Casual Paymts            ,2060,12/08/2014,REV,REDACTED
475,Central Services,SupS IT,No longer used,E14371,Supplies & Services           ,Services                      ,DF03,Consultants                             ,9882.5,20/08/2014,REV,V4 SERVICES LIMITED           
476,Central Services,SupS IT,No longer used,E14371,Supplies & Services           ,Services                      ,DF03,Consultants                             ,817.5,20/08/2014,REV,V4 SERVICES LIMITED           
477,Cultural Env Reg&Plan Services,Mgt & Support (Env),Senior Mgt. - E.S.C.,G00100,Supplies & Services           ,Services                      ,DF95,Services from Provider                  ,650,10/09/2014,REV,BUDE NATHAN IWANIER SOLICITORS
478,Highways & Transport Services,Repair prin/oth rds not split,Walk Sheets,G00127,Third Party Payments          ,Private Contractors           ,EH10,Contract Payments                       ,1511.8,19/09/2014,REV,FM CONWAY LTD                 
479,Highways & Transport Services,Repair prin/oth rds not split,Walk Sheets,G00127,Third Party Payments          ,Private Contractors           ,EH56,Carriageway/Fway Maint                  ,1463.35,19/09/2014,REV,FM CONWAY LTD                 
480,Highways & Transport Services,Repair prin/oth rds not split,Walk Sheets,G00127,Third Party Payments          ,Private Contractors           ,EH56,Carriageway/Fway Maint                  ,23559.4,19/09/2014,REV,FM CONWAY LTD                 
481,Highways & Transport Services,Repair prin/oth rds not split,Walk Sheets,G00127,Third Party Payments          ,Private Contractors           ,EH56,Carriageway/Fway Maint                  ,11371.54,29/08/2014,REV,FM CONWAY LTD                 
482,Highways & Transport Services,Saf mtc prin/oth rds not split,Traffic Signs.,G00160,Third Party Payments          ,Private Contractors           ,EH01,Miscellaneous Agency Services           ,596.62,18/08/2014,REV,MAY GURNEY LTD T/A CARTLEDGE  
483,Highways & Transport Services,Saf mtc prin/oth rds not split,Traffic Signs.,G00160,Third Party Payments          ,Private Contractors           ,EH01,Miscellaneous Agency Services           ,2422.47,19/09/2014,REV,FM CONWAY LTD                 
484,Highways & Transport Services,Saf mtc prin/oth rds not split,Traffic Signs.,G00160,Third Party Payments          ,Private Contractors           ,EH01,Miscellaneous Agency Services           ,1412.25,29/08/2014,REV,FM CONWAY LTD                 
485,Highways & Transport Services,Saf mtc prin/oth rds not split,Traffic Signs.,G00160,Third Party Payments          ,Private Contractors           ,EH01,Miscellaneous Agency Services           ,6555.59,28/08/2014,REV,MAY GURNEY LTD T/A CARTLEDGE  
486,Highways & Transport Services,Saf mtc prin/oth rds not split,Traffic Signs.,G00160,Third Party Payments          ,Private Contractors           ,EH01,Miscellaneous Agency Services           ,511.57,28/08/2014,REV,MAY GURNEY LTD T/A CARTLEDGE  
487,Highways & Transport Services,Saf mtc prin/oth rds not split,Traffic Signs.,G00160,Third Party Payments          ,Private Contractors           ,EH01,Miscellaneous Agency Services           ,918.83,16/09/2014,REV,MAY GURNEY LTD T/A CARTLEDGE  
488,Highways & Transport Services,,TRAF & HWYS CAPITAL PROJECTS,G00210,Third Party Payments          ,Private Contractors           ,EH56,Carriageway/Fway Maint                  ,2372.38,29/08/2014,REV,FM CONWAY LTD                 
489,Highways & Transport Services,Transport Plg/Policy/Strategy,CPZ implementation & Consultat,G00211,Third Party Payments          ,Private Contractors           ,EH56,Carriageway/Fway Maint                  ,581.28,19/09/2014,REV,FM CONWAY LTD                 
490,Highways & Transport Services,Street Lighting.,Street Lighting .,G00260,Premises Related Expenditure  ,Energy Costs                  ,BB02,Electricity                             ,49044.75,03/09/2014,REV,SCOTTISHPOWER                 
491,Highways & Transport Services,Street Lighting.,Street Lighting .,G00260,Third Party Payments          ,Private Contractors           ,EH01,Miscellaneous Agency Services           ,1763.32,28/08/2014,REV,MAY GURNEY LTD T/A CARTLEDGE  
492,Highways & Transport Services,Street Lighting.,Street Lighting .,G00260,Third Party Payments          ,Private Contractors           ,EH01,Miscellaneous Agency Services           ,1456.34,28/08/2014,REV,MAY GURNEY LTD T/A CARTLEDGE  
493,Highways & Transport Services,Street Lighting.,Street Lighting .,G00260,Third Party Payments          ,Private Contractors           ,EH01,Miscellaneous Agency Services           ,13182,28/08/2014,REV,MAY GURNEY LTD T/A CARTLEDGE  
494,Highways & Transport Services,Street Lighting.,Street Lighting .,G00260,Third Party Payments          ,Private Contractors           ,EH01,Miscellaneous Agency Services           ,4629.85,16/09/2014,REV,MAY GURNEY LTD T/A CARTLEDGE  
495,Highways & Transport Services,Street Lighting.,Street Lighting .,G00260,Third Party Payments          ,Private Contractors           ,EH01,Miscellaneous Agency Services           ,1406,28/08/2014,REV,MAY GURNEY LTD T/A CARTLEDGE  
496,Highways & Transport Services,Off-street parking,Car Parks (Unloc),G00291,Premises Related Expenditure  ,RepairsAlterations&MtceOfBldgs,BA06,REPAIRS & MAINTENANCE GENERAL           ,500.14,18/08/2014,REV,MAY GURNEY LTD T/A CARTLEDGE  
497,Highways & Transport Services,Off-street parking,Coombe Lane,G00292,Premises Related Expenditure  ,Energy Costs                  ,BB02,Electricity                             ,764.7,08/09/2014,REV,SCOTTISHPOWER                 
498,Highways & Transport Services,Off-street parking,Coombe Lane,G00292,Premises Related Expenditure  ,Rents                         ,BC01,Miscellaneous Rents                     ,9562.5,21/08/2014,REV,CAPITA SYMONDS LTD            
499,Highways & Transport Services,Off-street parking,York Close CP,G00298,Premises Related Expenditure  ,Rents                         ,BC01,Miscellaneous Rents                     ,30460.5,01/09/2014,REV,TRANSPORT TRADING LTD PROP A/C
500,Highways & Transport Services,Off-street parking,St. Georges Car Park EAST,G00300,Premises Related Expenditure  ,Rents                         ,BC01,Miscellaneous Rents                     ,889.4,20/08/2014,REV,LLOYDS BANK SF NOMINEES LTD   
501,Highways & Transport Services,Off-street parking,St. Georges Car Park WEST M/S,G00302,Premises Related Expenditure  ,Energy Costs                  ,BB02,Electricity                             ,650.37,01/09/2014,REV,SCOTTISHPOWER                 
502,Highways & Transport Services,Off-street parking,St. Georges Car Park WEST M/S,G00302,Premises Related Expenditure  ,Rents                         ,BC01,Miscellaneous Rents                     ,3528.34,18/08/2014,REV,SACKVILLE SPF IV (GP) NO 1 LTD
503,Highways & Transport Services,On-street parking,On Street Parking.,G00311,Premises Related Expenditure  ,RepairsAlterations&MtceOfBldgs,BA06,Repairs & Maintenance General           ,660.6,24/09/2014,REV,FM CONWAY LTD                 
504,Highways & Transport Services,Safe routes inc schl x patrol,DFT Child Pedestrian,G00324,Supplies & Services           ,Services                      ,DF03,Consultants                             ,9160,16/09/2014,REV,VELO MONDIAL                  
505,Highways & Transport Services,Parking Enforcement not split,Civil Enforcement Officers,G00330,Premises Related Expenditure  ,Rents                         ,BC01,Miscellaneous Rents                     ,2782.84,11/09/2014,REV,WOODCOCK BROTHERS (WIMBLEDON) 
506,Highways & Transport Services,Parking Enforcement not split,Civil Enforcement Officers,G00330,Premises Related Expenditure  ,Water Services                ,BE01,Use of Water (Metered)                  ,984.12,02/09/2014,REV,THAMES WATER UTILITIES LTD    
507,Highways & Transport Services,Parking Enforcement not split,Civil Enforcement Officers,G00330,Premises Related Expenditure  ,Water Services                ,BE01,Use of Water (Metered)                  ,571.66,02/09/2014,REV,THAMES WATER UTILITIES LTD    
508,Highways & Transport Services,Parking Enforcement not split,Operational Running Costs,G00331,Supplies & Services           ,Equip Furniture/Materials     ,DA04,Materials                               ,1199,21/08/2014,REV,JD ASSOCIATES                 
509,Highways & Transport Services,Parking Enforcement not split,Operational Running Costs,G00331,Supplies & Services           ,Equip Furniture/Materials     ,DA09,Equip-Purchases                         ,11000,01/09/2014,REV,ZENCO SYSTEMS LTD             
510,Highways & Transport Services,Parking Enforcement not split,Operational Running Costs,G00331,Supplies & Services           ,Equip Furniture/Materials     ,DA09,Equip-Purchases                         ,5915,28/08/2014,REV,TEASDALE GROUP LTD            
511,Highways & Transport Services,Parking Enforcement not split,Operational Running Costs,G00331,Supplies & Services           ,Comms and Computing           ,DG09,Computer Purchases - Misc               ,2519.85,10/09/2014,REV,INCOM TELECOMMUNICATIONS      
512,Cultural Env Reg&Plan Services,Street Clean - Not highways,Street Cleansing (Inc. Gully),G00492,Employees                     ,Direct Employee Expenses      ,AA17,Agency Staff & Casual Paymts            ,3884.41,07/08/2014,REV,REDACTED
513,Cultural Env Reg&Plan Services,Street Clean - Not highways,Street Cleansing (Inc. Gully),G00492,Employees                     ,Direct Employee Expenses      ,AA17,Agency Staff & Casual Paymts            ,3509.25,07/07/2014,REV,REDACTED
514,Cultural Env Reg&Plan Services,Street Clean - Not highways,Street Cleansing (Inc. Gully),G00492,Supplies & Services           ,Equip Furniture/Materials     ,DA31,Waste Sacks & Bags                      ,3888,01/07/2014,REV,CROMWELL POLYTHENE            
515,Cultural Env Reg&Plan Services,Waste Disposal (not separated),Waste Disposal .,G00550,Third Party Payments          ,Private Contractors           ,EH66,Clinical Waste Disposal                 ,811.46,31/08/2014,REV,S.GRUNDON (WASTE) LTD.        
516,Cultural Env Reg&Plan Services,Waste Disposal (not separated),Waste Disposal .,G00550,Third Party Payments          ,Private Contractors           ,EH96,GULLY DISPOSAL                          ,1298.72,31/08/2014,REV,CORY ENVIRONMENTAL LIMITED    
517,Cultural Env Reg&Plan Services,Civic Amenity Sites,Garth Road Site,G00580,Premises Related Expenditure  ,RepairsAlterations&MtceOfBldgs,BA70,Maintenance of Weighbridge              ,7250,18/08/2014,REV,PRECIA MOLEN                  
518,Cultural Env Reg&Plan Services,Civic Amenity Sites,Garth Road Site,G00580,Premises Related Expenditure  ,Water Services                ,BE01,Use of Water (Metered)                  ,1304.36,25/07/2014,REV,SUTTON & EAST SURREY WATER PLC
519,Cultural Env Reg&Plan Services,Civic Amenity Sites,SLWP (Garth Rd Site)                    ,G00581,Transport Related Expenditure ,Direct Transport Costs        ,CA01,Petrol Derv & Oil                       ,1377.3,04/09/2014,REV,HALL FUELS                    
520,Cultural Env Reg&Plan Services,Recycling (Collection),Food Waste Service,G00648,Premises Related Expenditure  ,Cleaning and Domestic Supplies,BH03,Cleaning Services                       ,1682.64,18/09/2014,REV,KLEENCARE SERVICE LTD         
521,Cultural Env Reg&Plan Services,Recycling (Collection),Food Waste Service,G00648,Supplies & Services           ,Equip Furniture/Materials     ,DA04,Materials                               ,17600,29/08/2014,REV,LONDON LETTERBOX MARKETING    
522,Cultural Env Reg&Plan Services,Household Waste Collection,Refuse Collection (Operations),G00661,Transport Related Expenditure ,Direct Transport Costs        ,CA52,Reps Vehicles Ins Claims                ,1500,27/08/2014,REV,S.E.T.S SERVICES              
523,Cultural Env Reg&Plan Services,Household Waste Collection,Refuse Collection (Operations),G00661,Supplies & Services           ,Clothing Unfrms Laundry       ,DC02,Clothing & Uniforms                     ,6000,08/09/2014,REV,SAFETY MANAGEMENT             
524,Cultural Env Reg&Plan Services,Trade Waste Collection,Commercial Waste,G00663,Supplies & Services           ,Equip Furniture/Materials     ,DA08,Tools-Purchase                          ,581.14,29/08/2014,REV,BELL BRUSH                    
525,Cultural Env Reg&Plan Services,Trade Waste Collection,Commercial Waste Collection,G00665,Supplies & Services           ,Equip Furniture/Materials     ,DA32,Wheeled Bins                            ,1250,05/09/2014,REV,STRAIGHT PLC                  
526,Cultural Env Reg&Plan Services,Inspect/Enforce (Consumer P),Trading Standards,G00690,Employees                     ,Direct Employee Expenses      ,AA17,Agency Staff & Casual Paymts            ,740,29/05/2014,REV,REDACTED
527,Cultural Env Reg&Plan Services,Inspect/Enforce (Consumer P),Trading Standards,G00690,Supplies & Services           ,Services                      ,DF11,Counsel's Fees                          ,113564.96,23/07/2014,REV,KINGSTON SMITH & PARTNERS     
528,Cultural Env Reg&Plan Services,Pest Control,Pest Control,G00724,Supplies & Services           ,Equip Furniture/Materials     ,DA04,Materials                               ,603.64,08/09/2014,REV,KILLGERM CHEMICALS LIMITED    
529,Cultural Env Reg&Plan Services,Housing Standards,Housing/Env,G00730,Supplies & Services           ,Services                      ,DF11,Counsel's Fees                          ,3000,10/09/2014,REV,REDACTED
530,Cultural Env Reg&Plan Services,Housing Standards,Housing/Env,G00730,Supplies & Services           ,Services                      ,DF11,Counsel's Fees                          ,22000,28/07/2014,REV,REDACTED
531,Central Services,Grants - Voluntary Groups,Vestry Hall,G19290,Employees                     ,Direct Employee Expenses      ,AA17,Agency Staff & Casual Paymts            ,5148.13,10/09/2014,REV,REDACTED
532,Central Services,Grants - Voluntary Groups,Vestry Hall,G19290,Employees                     ,Direct Employee Expenses      ,AA17,Agency Staff & Casual Paymts            ,1087.12,31/08/2014,REV,REDACTED
533,Central Services,Grants - Voluntary Groups,Vestry Hall,G19290,Premises Related Expenditure  ,Cleaning and Domestic Supplies,BH03,Cleaning Services                       ,1383.56,01/09/2014,REV,BIRKIN CLEANING SERVICES LTD  
534,Highways & Transport Services,Safe routes inc schl x patrol,School & Road Safety TFL                ,H01083,Supplies & Services           ,Equip Furniture/Materials     ,DA04,Materials                               ,735,12/08/2014,REV,BLAKES DRIVER TRAINING        
535,Highways & Transport Services,Safe routes inc schl x patrol,School & Road Safety TFL                ,H01083,Supplies & Services           ,Equip Furniture/Materials     ,DA83,Projects                                ,1250,21/08/2014,REV,PERFORMANCE IN EDUCATION LLP  
536,Cultural Env Reg&Plan Services,DC Advice Apps & Reg not split,Development Control,H01130,Supplies & Services           ,Comms and Computing           ,DG08,Computer Hardware                       ,730,23/09/2014,REV,TOTAL COMPUTER NETWORKS       
537,Cultural Env Reg&Plan Services,DC Advice Apps & Reg not split,Development Control,H01130,Supplies & Services           ,Comms and Computing           ,DG09,Computer Purchases - Misc               ,-1230,26/08/2014,REV,TOTAL COMPUTER NETWORKS       
538,Cultural Env Reg&Plan Services,DC Advice Apps & Reg not split,Development Control,H01130,Customer and client receipts  ,Fees                          ,RB56,Application Fees X                      ,1450,19/09/2014,REV,GANCO PLC                     
539,Cultural Env Reg&Plan Services,Planning Policy not split,REGENERATION & INVESTMENT,H01174,Supplies & Services           ,Services                      ,DF03,Consultants                             ,1550,31/07/2014,REV,STUDIO WEAVE LTD              
540,Cultural Env Reg&Plan Services,Planning Policy not split,REGENERATION & INVESTMENT,H01174,Supplies & Services           ,Services                      ,DF35,Graphic Design                          ,1550,30/07/2014,REV,OMNI COLOUR PRESENTATIONS LTD 
541,Cultural Env Reg&Plan Services,Planning Policy not split,REGENERATION & INVESTMENT,H01174,Supplies & Services           ,Grants and Subscriptions      ,DJ01,Grants                                  ,5154,09/09/2014,REV,WIMBLEDON TECH CAMPUS         
542,Cultural Env Reg&Plan Services,Planning Policy not split,REGENERATION & INVESTMENT,H01174,Third Party Payments          ,Private Contractors           ,EH02,Miscellaneous Hired Services            ,7500,05/08/2014,REV,WIMBLEDON BOOKFEST            
543,Cultural Env Reg&Plan Services,Planning Policy not split,HPDG - Spatial Policy,H01183,Supplies & Services           ,Services                      ,DF03,Consultants                             ,1000,23/08/2014,REV,REDACTED
544,Cultural Env Reg&Plan Services,Planning Policy not split,HPDG - Spatial Policy,H01183,Supplies & Services           ,Services                      ,DF03,Consultants                             ,1500,16/09/2014,REV,SWBA                          
545,Cultural Env Reg&Plan Services,Planning Policy not split,HPDG - Spatial Policy,H01183,Supplies & Services           ,Services                      ,DF03,Consultants                             ,4500,23/08/2014,REV,REDACTED
546,Cultural Env Reg&Plan Services,Economic Dev (Not separated),REG &  PARTNERSHIPS STAFFING,H01200,Supplies & Services           ,Grants and Subscriptions      ,DJ01,Grants                                  ,3000,11/09/2014,REV,MERTON CHAMBER OF COMMERCE    
547,CS -Oth Operating Inc & Expend,Extraordinary Items & PY Adj.,MILES RD GENERATOR,H01203,Premises Related Expenditure  ,RepairsAlterations&MtceOfBldgs,BA06,Repairs & Maintenance General           ,1920,03/08/2014,REV,ARROW TILING LTD              
548,CS -Oth Operating Inc & Expend,Extraordinary Items & PY Adj.,MILES RD GENERATOR,H01203,Premises Related Expenditure  ,RepairsAlterations&MtceOfBldgs,BA06,Repairs & Maintenance General           ,1430,03/08/2014,REV,ARROW TILING LTD              
549,CS -Oth Operating Inc & Expend,Extraordinary Items & PY Adj.,MILES RD GENERATOR,H01203,Premises Related Expenditure  ,Rents                         ,BC01,Miscellaneous Rents                     ,8000,04/09/2014,REV,W&R BUXTON LTD PENSION FUND   
550,CS -Oth Operating Inc & Expend,Extraordinary Items & PY Adj.,MILES RD GENERATOR,H01203,Premises Related Expenditure  ,Fixtures and Fittings         ,BF01,Fixtures and Fittings                   ,2024,28/08/2014,REV,AQUARIUS BLINDS               
551,Cultural Env Reg&Plan Services,Economic Dev (Not separated),(LABGI)-BUSINESS SUPPORT,H01210,Supplies & Services           ,Grants and Subscriptions      ,DJ01,Grants                                  ,600,23/09/2014,REV,CAFFE D'ORO LTD               
552,Cultural Env Reg&Plan Services,Economic Dev (Not separated),(LABGI)-BUSINESS SUPPORT,H01210,Supplies & Services           ,Grants and Subscriptions      ,DJ01,Grants                                  ,600,23/09/2014,REV,CORLEONE RESTAURANT           
553,Cultural Env Reg&Plan Services,Economic Dev (Not separated),(LABGI)-BUSINESS SUPPORT,H01210,Supplies & Services           ,Grants and Subscriptions      ,DJ01,Grants                                  ,900,24/09/2014,REV,REDACTED
554,Cultural Env Reg&Plan Services,Economic Dev (Not separated),LABGI-BUSINESS SUPPORT SERVICE,H01219,Third Party Payments          ,Private Contractors           ,EH02,Miscellaneous Hired Services            ,9000,15/09/2014,REV,MERTON CHAMBER OF COMMERCE    
555,Cultural Env Reg&Plan Services,Economic Dev (Not separated),GO GREEN PLUS (S106),H01225,Supplies & Services           ,Grants and Subscriptions      ,DJ54,Contributions                           ,2227.31,31/08/2014,REV,MERTON CHAMBER OF COMMERCE    
556,CS -Oth Operating Inc & Expend,T/A Vehicle Maintenance etc,Transport-Contract Hire,J01374,Transport Related Expenditure ,Direct Transport Costs        ,CA01,Petrol Derv & Oil                       ,38161.61,18/08/2014,REV,HARVEST ENERGY LIMITED        
557,CS -Oth Operating Inc & Expend,T/A Vehicle Maintenance etc,Transport-Contract Hire,J01374,Transport Related Expenditure ,Direct Transport Costs        ,CA01,Petrol Derv & Oil                       ,38184.34,08/09/2014,REV,HARVEST ENERGY LIMITED        
558,CS -Oth Operating Inc & Expend,T/A Vehicle Maintenance etc,Transport-Contract Hire,J01374,Transport Related Expenditure ,Direct Transport Costs        ,CA52,Reps Vehicles Ins Claims                ,500,08/08/2014,REV,FLEETSPEED COACHWORKS LTD.    
559,CS -Oth Operating Inc & Expend,T/A Vehicle Maintenance etc,Transport-Contract Hire,J01374,Transport Related Expenditure ,Contract Hire and Op Leasing  ,CC53,Plant Hire for MRCS                     ,925,22/08/2014,REV,DRM MUNICIPAL SERVICES LIMITED
560,CS -Oth Operating Inc & Expend,T/A Vehicle Maintenance etc,Transport-Contract Hire,J01374,Transport Related Expenditure ,Contract Hire and Op Leasing  ,CC53,Plant Hire for MRCS                     ,693,31/08/2014,REV,REDACTED
561,CS -Oth Operating Inc & Expend,T/A Vehicle Maintenance etc,Transport-Contract Hire,J01374,Transport Related Expenditure ,Contract Hire and Op Leasing  ,CC53,Plant Hire for MRCS                     ,925,18/07/2014,REV,DRM MUNICIPAL SERVICES LIMITED
562,CS -Oth Operating Inc & Expend,T/A Vehicle Maintenance etc,Transport-Contract Hire,J01374,Transport Related Expenditure ,Contract Hire and Op Leasing  ,CC53,Plant Hire for MRCS                     ,925,19/09/2014,REV,DRM MUNICIPAL SERVICES LIMITED
563,CS -Oth Operating Inc & Expend,T/A Vehicle Maintenance etc,Transport-Contract Hire,J01374,Transport Related Expenditure ,Contract Hire and Op Leasing  ,CC53,Plant Hire for MRCS                     ,925,29/08/2014,REV,DRM MUNICIPAL SERVICES LIMITED
564,CS -Oth Operating Inc & Expend,T/A Vehicle Maintenance etc,Transport-Contract Hire,J01374,Transport Related Expenditure ,Contract Hire and Op Leasing  ,CC53,Plant Hire for MRCS                     ,925,12/09/2014,REV,DRM MUNICIPAL SERVICES LIMITED
565,CS -Oth Operating Inc & Expend,T/A Vehicle Maintenance etc,Transport-Contract Hire,J01374,Transport Related Expenditure ,Contract Hire and Op Leasing  ,CC53,Plant Hire for MRCS                     ,925,05/09/2014,REV,DRM MUNICIPAL SERVICES LIMITED
566,CS -Oth Operating Inc & Expend,T/A Vehicle Maintenance etc,Transport-Contract Hire,J01374,Transport Related Expenditure ,Contract Hire and Op Leasing  ,CC53,Plant Hire for MRCS                     ,610,26/08/2014,REV,PFB HIRE LTD                  
567,CS -Oth Operating Inc & Expend,T/A Vehicle Maintenance etc,Transport-Contract Hire,J01374,Transport Related Expenditure ,Contract Hire and Op Leasing  ,CC53,Plant Hire for MRCS                     ,610,19/08/2014,REV,PFB HIRE LTD                  
568,CS -Oth Operating Inc & Expend,T/A Vehicle Maintenance etc,Transport-Contract Hire,J01374,Transport Related Expenditure ,Contract Hire and Op Leasing  ,CC56,Plant Hire for Leisure                  ,1755,31/08/2014,REV,REDACTED
569,CS -Oth Operating Inc & Expend,T/A Vehicle Maintenance etc,Transport-Contract Hire,J01374,Transport Related Expenditure ,Contract Hire and Op Leasing  ,CC57,Pland Hire for Housing                  ,940,31/08/2014,REV,REDACTED
570,CS -Oth Operating Inc & Expend,T/A Vehicle Maintenance etc,Transport-Contract Hire,J01374,Transport Related Expenditure ,Contract Hire and Op Leasing  ,CC59,HIRING TRANSPORT OPERATIONS             ,2238.32,31/08/2014,REV,REDACTED
571,CS -Oth Operating Inc & Expend,T/A Vehicle Maintenance etc,Transport-Contract Hire,J01374,Transport Related Expenditure ,Contract Hire and Op Leasing  ,CC59,HIRING TRANSPORT OPERATIONS             ,1386,29/08/2014,REV,BURNT TREE VEHICLE RENTAL     
572,CS -Oth Operating Inc & Expend,T/A Vehicle Maintenance etc,Transport-Contract Hire,J01374,Transport Related Expenditure ,Contract Hire and Op Leasing  ,CC59,HIRING TRANSPORT OPERATIONS             ,1386,29/08/2014,REV,BURNT TREE VEHICLE RENTAL     
573,CS -Oth Operating Inc & Expend,T/A Vehicle Maintenance etc,Transport-Contract Hire,J01374,Transport Related Expenditure ,Contract Hire and Op Leasing  ,CC59,HIRING TRANSPORT OPERATIONS             ,1386,29/08/2014,REV,BURNT TREE VEHICLE RENTAL     
574,CS -Oth Operating Inc & Expend,T/A Vehicle Maintenance etc,Transport-Contract Hire,J01374,Transport Related Expenditure ,Contract Hire and Op Leasing  ,CC64,HIRING TRANSPORT SEN CABS               ,567,31/08/2014,REV,KENDALL CARS                  
575,CS -Oth Operating Inc & Expend,T/A Vehicle Maintenance etc,Transport-Contract Hire,J01374,Transport Related Expenditure ,Contract Hire and Op Leasing  ,CC66,HIRING TRANSPORT H&SS CAB CHILDREN      ,503.38,31/08/2014,REV,BARCLAYS ASSET & SALES FINANCE
576,CS -Oth Operating Inc & Expend,T/A Vehicle Maintenance etc,Transport-Contract Hire,J01374,Transport Related Expenditure ,Contract Hire and Op Leasing  ,CC67,HIRING TRANSPORT H&SS CAB ADULTS        ,770,31/08/2014,REV,KINGSTON ACCESSIBILITY TRAN LT
577,CS -Oth Operating Inc & Expend,T/A Vehicle Maintenance etc,Transport-Contract Hire,J01374,Transport Related Expenditure ,Contract Hire and Op Leasing  ,CC67,HIRING TRANSPORT H&SS CAB ADULTS        ,799,31/08/2014,REV,CAPITAL CARS                  
578,CS -Oth Operating Inc & Expend,T/A Vehicle Maintenance etc,Transport-Contract Hire,J01374,Transport Related Expenditure ,Contract Hire and Op Leasing  ,CC67,HIRING TRANSPORT H&SS CAB ADULTS        ,800,01/09/2014,REV,AERIAL CAR SERVICES LTD       
579,CS -Oth Operating Inc & Expend,T/A Vehicle Maintenance etc,Transport-Contract Hire,J01374,Transport Related Expenditure ,Contract Hire and Op Leasing  ,CC67,HIRING TRANSPORT H&SS CAB ADULTS        ,608,31/08/2014,REV,NVCAR HIRE LTD                
580,CS -Oth Operating Inc & Expend,T/A Vehicle Maintenance etc,Transport-Contract Hire,J01374,Transport Related Expenditure ,Contract Hire and Op Leasing  ,CC67,HIRING TRANSPORT H&SS CAB ADULTS        ,630,31/08/2014,REV,CAPITAL CARS                  
581,CS -Oth Operating Inc & Expend,T/A Vehicle Maintenance etc,Transport-Contract Hire,J01374,Transport Related Expenditure ,Contract Hire and Op Leasing  ,CC67,HIRING TRANSPORT H&SS CAB ADULTS        ,728,31/08/2014,REV,NVCAR HIRE LTD                
582,CS -Oth Operating Inc & Expend,T/A Vehicle Maintenance etc,Transport-Contract Hire,J01374,Transport Related Expenditure ,Contract Hire and Op Leasing  ,CC67,HIRING TRANSPORT H&SS CAB ADULTS        ,1088,31/08/2014,REV,A STAR TRANSPORT LIMITED      
583,CS -Oth Operating Inc & Expend,T/A Vehicle Maintenance etc,Transport-Contract Hire,J01374,Transport Related Expenditure ,Contract Hire and Op Leasing  ,CC67,HIRING TRANSPORT H&SS CAB ADULTS        ,944,31/08/2014,REV,CAPITAL CARS                  
584,CS -Oth Operating Inc & Expend,T/A Vehicle Maintenance etc,Transport-Contract Hire,J01374,Transport Related Expenditure ,Contract Hire and Op Leasing  ,CC67,HIRING TRANSPORT H&SS CAB ADULTS        ,660,31/08/2014,REV,GALPINS SERVICE               
585,CS -Oth Operating Inc & Expend,T/A Vehicle Maintenance etc,Transport-Workshop,J01376,Transport Related Expenditure ,Contract Hire and Op Leasing  ,CC60,Vehicle Hire for LB Sutton              ,3472,31/08/2014,REV,BARCLAYS ASSET & SALES FINANCE
586,CS -Oth Operating Inc & Expend,T/A Vehicle Maintenance etc,Transport-Workshop,J01376,Transport Related Expenditure ,Contract Hire and Op Leasing  ,CC65,Vehicle Hire for Education              ,925,21/08/2014,REV,GOLDEN SOVEREIGN COACHES      
587,CS -Oth Operating Inc & Expend,T/A Vehicle Maintenance etc,Transport-Workshop,J01376,Transport Related Expenditure ,Contract Hire and Op Leasing  ,CC65,Vehicle Hire for Education              ,1025,24/06/2014,REV,MAYDAY TRAVEL LTD             
588,CS -Oth Operating Inc & Expend,T/A Vehicle Maintenance etc,Transport-Workshop,J01376,Transport Related Expenditure ,Contract Hire and Op Leasing  ,CC65,Vehicle Hire for Education              ,712,31/08/2014,REV,BARCLAYS ASSET & SALES FINANCE
589,CS -Oth Operating Inc & Expend,T/A Vehicle Maintenance etc,Vehicle Workshops,J01378,Employees                     ,Direct Employee Expenses      ,AA17,Agency Staff & Casual Paymts            ,676.5,28/08/2014,REV,REDACTED
590,CS -Oth Operating Inc & Expend,T/A Vehicle Maintenance etc,Vehicle Workshops,J01378,Employees                     ,Direct Employee Expenses      ,AA17,Agency Staff & Casual Paymts            ,660,10/09/2014,REV,REDACTED
591,CS -Oth Operating Inc & Expend,T/A Vehicle Maintenance etc,Vehicle Workshops,J01378,Employees                     ,Direct Employee Expenses      ,AA17,Agency Staff & Casual Paymts            ,528,03/09/2014,REV,REDACTED
592,CS -Oth Operating Inc & Expend,T/A Vehicle Maintenance etc,Vehicle Workshops,J01378,Employees                     ,Direct Employee Expenses      ,AA17,Agency Staff & Casual Paymts            ,660,17/09/2014,REV,REDACTED
593,CS -Oth Operating Inc & Expend,T/A Vehicle Maintenance etc,Vehicle Workshops,J01378,Transport Related Expenditure ,Direct Transport Costs        ,CA02,Tyres                                   ,1470,12/09/2014,REV,MORDEN TYRE SERVICES LTD      
594,CS -Oth Operating Inc & Expend,T/A Vehicle Maintenance etc,Vehicle Workshops,J01378,Transport Related Expenditure ,Direct Transport Costs        ,CA02,Tyres                                   ,1255,26/08/2014,REV,MORDEN TYRE SERVICES LTD      
595,CS -Oth Operating Inc & Expend,T/A Vehicle Maintenance etc,Vehicle Workshops,J01378,Transport Related Expenditure ,Direct Transport Costs        ,CA02,Tyres                                   ,850,19/09/2014,REV,MORDEN TYRE SERVICES LTD      
596,CS -Oth Operating Inc & Expend,T/A Vehicle Maintenance etc,Vehicle Workshops,J01378,Transport Related Expenditure ,Direct Transport Costs        ,CA02,Tyres                                   ,875,15/09/2014,REV,MORDEN TYRE SERVICES LTD      
597,CS -Oth Operating Inc & Expend,T/A Vehicle Maintenance etc,Vehicle Workshops,J01378,Transport Related Expenditure ,Direct Transport Costs        ,CA02,Tyres                                   ,520,23/09/2014,REV,MORDEN TYRE SERVICES LTD      
598,CS -Oth Operating Inc & Expend,T/A Vehicle Maintenance etc,Vehicle Workshops,J01378,Transport Related Expenditure ,Direct Transport Costs        ,CA02,Tyres                                   ,1190,10/09/2014,REV,MORDEN TYRE SERVICES LTD      
599,CS -Oth Operating Inc & Expend,T/A Vehicle Maintenance etc,Vehicle Workshops,J01378,Transport Related Expenditure ,Direct Transport Costs        ,CA02,Tyres                                   ,940,22/08/2014,REV,MORDEN TYRE SERVICES LTD      
600,CS -Oth Operating Inc & Expend,T/A Vehicle Maintenance etc,Vehicle Workshops,J01378,Transport Related Expenditure ,Direct Transport Costs        ,CA05,Vehicle MOTs                            ,2000,19/09/2014,REV,V.O.S.A                       
601,CS -Oth Operating Inc & Expend,T/A Vehicle Maintenance etc,Vehicle Workshops,J01378,Transport Related Expenditure ,Direct Transport Costs        ,CA55,Specialist Maint. (Off Site)            ,1424.91,18/08/2014,REV,FLEETSPEED COACHWORKS LTD.    
602,CS -Oth Operating Inc & Expend,T/A Vehicle Maintenance etc,Vehicle Workshops,J01378,Transport Related Expenditure ,Direct Transport Costs        ,CA55,Specialist Maint. (Off Site)            ,698.59,28/08/2014,REV,JOHNSTON SWEEPERS LIMITED     
603,CS -Oth Operating Inc & Expend,T/A Vehicle Maintenance etc,Vehicle Workshops,J01378,Transport Related Expenditure ,Direct Transport Costs        ,CA55,Specialist Maint. (Off Site)            ,1161.55,30/08/2014,REV,REDACTED
604,CS -Oth Operating Inc & Expend,T/A Vehicle Maintenance etc,Vehicle Workshops,J01378,Transport Related Expenditure ,Direct Transport Costs        ,CA55,Specialist Maint. (Off Site)            ,709.23,29/08/2014,REV,REDACTED
605,CS -Oth Operating Inc & Expend,T/A Vehicle Maintenance etc,Vehicle Workshops,J01378,Transport Related Expenditure ,Direct Transport Costs        ,CA55,Specialist Maint. (Off Site)            ,618.38,08/09/2014,REV,REDACTED
606,CS -Oth Operating Inc & Expend,T/A Vehicle Maintenance etc,Vehicle Workshops,J01378,Transport Related Expenditure ,Direct Transport Costs        ,CA55,Specialist Maint. (Off Site)            ,3961.6,22/08/2014,REV,GEESINK NORBA                 
607,CS -Oth Operating Inc & Expend,T/A Vehicle Maintenance etc,Vehicle Workshops,J01378,Transport Related Expenditure ,Direct Transport Costs        ,CA55,Specialist Maint. (Off Site)            ,686.35,08/09/2014,REV,REDACTED
608,CS -Oth Operating Inc & Expend,T/A Vehicle Maintenance etc,Vehicle Workshops,J01378,Transport Related Expenditure ,Direct Transport Costs        ,CA56,Specialist Maint. (On Site)             ,540,17/09/2014,REV,AIR-WEIGH EUROPE              
609,CS -Oth Operating Inc & Expend,T/A Vehicle Maintenance etc,Vehicle Workshops,J01378,Transport Related Expenditure ,Direct Transport Costs        ,CA56,Specialist Maint. (On Site)             ,653.75,15/09/2014,REV,R.J.H.WELDING                 
610,CS -Oth Operating Inc & Expend,T/A Vehicle Maintenance etc,Vehicle Workshops,J01378,Transport Related Expenditure ,Direct Transport Costs        ,CA56,Specialist Maint. (On Site)             ,1595,04/09/2014,REV,GVS HIRE LTD                  
611,CS -Oth Operating Inc & Expend,T/A Vehicle Maintenance etc,Vehicle Workshops,J01378,Transport Related Expenditure ,Direct Transport Costs        ,CA56,Specialist Maint. (On Site)             ,2697.16,05/09/2014,REV,GEESINK NORBA                 
612,CS -Oth Operating Inc & Expend,T/A Vehicle Maintenance etc,Vehicle Workshops,J01378,Transport Related Expenditure ,Direct Transport Costs        ,CA56,Specialist Maint. (On Site)             ,523.15,21/08/2014,REV,T H WHITE LTD                 
613,CS -Oth Operating Inc & Expend,T/A Vehicle Maintenance etc,Vehicle Workshops,J01378,Transport Related Expenditure ,Direct Transport Costs        ,CA56,Specialist Maint. (On Site)             ,685.2,07/09/2014,REV,REDACTED
614,CS -Oth Operating Inc & Expend,T/A Vehicle Maintenance etc,Vehicle Workshops,J01378,Transport Related Expenditure ,Direct Transport Costs        ,CA56,Specialist Maint. (On Site)             ,1868.75,17/09/2014,REV,R.J.H.WELDING                 
615,CS -Oth Operating Inc & Expend,T/A Vehicle Maintenance etc,Vehicle Workshops,J01378,Transport Related Expenditure ,Direct Transport Costs        ,CA56,Specialist Maint. (On Site)             ,720.85,07/09/2014,REV,REDACTED
616,CS -Oth Operating Inc & Expend,T/A Vehicle Maintenance etc,Vehicle Workshops,J01378,Transport Related Expenditure ,Direct Transport Costs        ,CA72,Vehicle Parts                           ,708.36,03/09/2014,REV,VOLVO TRUCK & BUS (SOUTH)     
617,CS -Oth Operating Inc & Expend,T/A Vehicle Maintenance etc,Vehicle Workshops,J01378,Transport Related Expenditure ,Direct Transport Costs        ,CA72,Vehicle Parts                           ,584.58,12/09/2014,REV,IVECO RETAIL LTD              
618,CS -Oth Operating Inc & Expend,T/A Vehicle Maintenance etc,Vehicle Workshops,J01378,Transport Related Expenditure ,Direct Transport Costs        ,CA72,Vehicle Parts                           ,536.68,02/09/2014,REV,COMMERCIAL & PLANT LTD        
619,CS -Oth Operating Inc & Expend,T/A Vehicle Maintenance etc,Vehicle Workshops,J01378,Transport Related Expenditure ,Direct Transport Costs        ,CA72,Vehicle Parts                           ,1314.33,12/09/2014,REV,IVECO RETAIL LTD              
620,CS -Oth Operating Inc & Expend,T/A Vehicle Maintenance etc,Vehicle Workshops,J01378,Transport Related Expenditure ,Direct Transport Costs        ,CA72,Vehicle Parts                           ,996.14,28/08/2014,REV,NTM GB LIMITED                
621,CS -Oth Operating Inc & Expend,T/A Vehicle Maintenance etc,Vehicle Workshops,J01378,Transport Related Expenditure ,Direct Transport Costs        ,CA72,Vehicle Parts                           ,617.31,16/09/2014,REV,COMMERCIAL & PLANT LTD        
622,CS -Oth Operating Inc & Expend,T/A Vehicle Maintenance etc,Vehicle Workshops,J01378,Transport Related Expenditure ,Direct Transport Costs        ,CA72,Vehicle Parts                           ,909.9,19/08/2014,REV,DENNIS EAGLE LIMITED          
623,CS -Oth Operating Inc & Expend,T/A Vehicle Maintenance etc,Vehicle Workshops,J01378,Transport Related Expenditure ,Direct Transport Costs        ,CA72,Vehicle Parts                           ,779.92,10/09/2014,REV,DENNIS EAGLE LIMITED          
624,CS -Oth Operating Inc & Expend,T/A Vehicle Maintenance etc,Vehicle Workshops,J01378,Transport Related Expenditure ,Direct Transport Costs        ,CA72,Vehicle Parts                           ,548.1,12/09/2014,REV,STOCKWELL MOTORS              
625,CS -Oth Operating Inc & Expend,T/A Vehicle Maintenance etc,Vehicle Workshops,J01378,Transport Related Expenditure ,Direct Transport Costs        ,CA72,Vehicle Parts                           ,550.01,12/09/2014,REV,IVECO RETAIL LTD              
626,CS -Oth Operating Inc & Expend,T/A Vehicle Maintenance etc,Vehicle Workshops,J01378,Transport Related Expenditure ,Direct Transport Costs        ,CA72,Vehicle Parts                           ,648.08,12/09/2014,REV,IVECO RETAIL LTD              
627,CS -Oth Operating Inc & Expend,T/A Vehicle Maintenance etc,Vehicle Workshops,J01378,Transport Related Expenditure ,Direct Transport Costs        ,CA72,Vehicle Parts                           ,2089.56,28/08/2014,REV,FARID MUNICIPAL VEHICLES LTD  
628,CS -Oth Operating Inc & Expend,T/A Vehicle Maintenance etc,Vehicle Workshops,J01378,Transport Related Expenditure ,Direct Transport Costs        ,CA72,Vehicle Parts                           ,1184.21,02/09/2014,REV,DENNIS EAGLE LIMITED          
629,CS -Oth Operating Inc & Expend,T/A Vehicle Maintenance etc,Vehicle Workshops,J01378,Transport Related Expenditure ,Direct Transport Costs        ,CA72,Vehicle Parts                           ,713.46,12/09/2014,REV,IVECO RETAIL LTD              
630,CS -Oth Operating Inc & Expend,T/A Vehicle Maintenance etc,Vehicle Workshops,J01378,Transport Related Expenditure ,Direct Transport Costs        ,CA72,Vehicle Parts                           ,540.31,12/09/2014,REV,IVECO RETAIL LTD              
631,CS -Oth Operating Inc & Expend,T/A Vehicle Maintenance etc,Vehicle Workshops,J01378,Transport Related Expenditure ,Direct Transport Costs        ,CA72,Vehicle Parts                           ,1114.78,15/09/2014,REV,DENNIS EAGLE LIMITED          
632,CS -Oth Operating Inc & Expend,T/A Vehicle Maintenance etc,Vehicle Workshops,J01378,Transport Related Expenditure ,Direct Transport Costs        ,CA72,Vehicle Parts                           ,996.14,08/09/2014,REV,NTM GB LIMITED                
633,CS -Oth Operating Inc & Expend,T/A Vehicle Maintenance etc,Vehicle Workshops,J01378,Supplies & Services           ,Clothing Unfrms Laundry       ,DC01,Laundry                                 ,526.96,23/08/2014,REV,SUNLIGHT SERVICE GROUP LTD    
634,Cultural Env Reg&Plan Services,Mgt & Support (Env),Estates Mgt,J01420,Supplies & Services           ,Services                      ,DF03,CONSULTANTS                             ,2100,03/09/2014,REV,SURREY COUNTY COUNCIL         
635,Cultural Env Reg&Plan Services,Mgt & Support (Env),Estates Mgt,J01420,Supplies & Services           ,Services                      ,DF03,CONSULTANTS                             ,2525,31/07/2014,REV,QUINTON SCOTT                 
636,CS -Oth Operating Inc & Expend,Extraordinary Items & PY Adj.,Other Misc Props Budget,J01526,Premises Related Expenditure  ,Ground Maintenance Costs      ,BL03,Eversham Green Morden         -Maintenan,2800,14/08/2014,REV,WIMBLEDON TREE SURGEONS       
637,CS -Oth Operating Inc & Expend,Extraordinary Items & PY Adj.,Durnsford Rd Budget,J01580,Premises Related Expenditure  ,RepairsAlterations&MtceOfBldgs,BA06,REPAIRS & MAINTENANCE GENERAL           ,1200,20/08/2014,REV,CITY&URBAN PEST CONT&HYGIENE  
638,CS -Oth Operating Inc & Expend,Extraordinary Items & PY Adj.,Durnsford Rd Budget,J01580,Premises Related Expenditure  ,RepairsAlterations&MtceOfBldgs,BA79,SECURITY OF PREMISES                    ,936,30/06/2014,REV,OM METROPOLITAN TOTAL SEC.LTD 
639,CS -Oth Operating Inc & Expend,Extraordinary Items & PY Adj.,Durnsford Rd Budget,J01580,Premises Related Expenditure  ,RepairsAlterations&MtceOfBldgs,BA79,SECURITY OF PREMISES                    ,1001,31/07/2014,REV,OM METROPOLITAN TOTAL SEC.LTD 
640,Childrens & Education Services,Statutory & Regulatory Duties,Senior Mngt & Support Services,K01005,Supplies & Services           ,Services                      ,DF11,Counsel's Fees                          ,513.5,12/05/2014,REV,REDACTED
641,Childrens & Education Services,Statutory & Regulatory Duties,Senior Mngt & Support Services,K01005,Supplies & Services           ,Services                      ,DF11,Counsel's Fees                          ,510,19/08/2014,REV,REDACTED
642,Childrens & Education Services,Statutory & Regulatory Duties,Senior Mngt & Support Services,K01005,Supplies & Services           ,Services                      ,DF11,Counsel's Fees                          ,737.5,15/08/2014,REV,REDACTED
643,Childrens & Education Services,Statutory & Regulatory Duties,Senior Mngt & Support Services,K01005,Supplies & Services           ,Services                      ,DF14,Doctors and Other Fees                  ,691.88,18/12/2013,REV,REDACTED
644,Childrens & Education Services,Statutory & Regulatory Duties,Schools IT Support,K02008,Supplies & Services           ,Comms and Computing           ,DG50,Other IT Expenditure                    ,725,05/08/2014,REV,ATOMWIDE LTD                  
645,Childrens & Education Services,Statutory & Regulatory Duties,Schools IT Support,K02008,Supplies & Services           ,Comms and Computing           ,DG50,Other IT Expenditure                    ,1025,23/07/2014,REV,ATOMWIDE LTD                  
646,Childrens & Education Services,Statutory & Regulatory Duties,Schools IT Support,K02008,Supplies & Services           ,Comms and Computing           ,DG50,Other IT Expenditure                    ,875,05/08/2014,REV,ATOMWIDE LTD                  
647,Childrens & Education Services,Statutory & Regulatory Duties,Schools IT Support,K02008,Supplies & Services           ,Comms and Computing           ,DG50,Other IT Expenditure                    ,1025,05/08/2014,REV,ATOMWIDE LTD                  
648,Childrens & Education Services,Statutory & Regulatory Duties,Schools IT Support,K02008,Supplies & Services           ,Comms and Computing           ,DG50,Other IT Expenditure                    ,500,05/08/2014,REV,ATOMWIDE LTD                  
649,Childrens & Education Services,Statutory & Regulatory Duties,Research and Statistics,K03016,Employees                     ,Indirect Employee Expenses    ,AB02,Recruitment Adverts                     ,940,23/09/2014,REV,PENNA COMMUNICATIONS (NO 2 A/C
650,Childrens & Education Services,Statutory & Regulatory Duties,Research and Statistics,K03016,Employees                     ,Indirect Employee Expenses    ,AB02,Recruitment Adverts                     ,940,23/09/2014,REV,PENNA COMMUNICATIONS (NO 2 A/C
651,Childrens & Education Services,Statutory & Regulatory Duties,Research and Statistics,K03016,Supplies & Services           ,Services                      ,DF09,Miscellaneous Fees                      ,4500,04/09/2014,REV,GREATER LONDON AUTHORITY      
652,Childrens & Education Services,Asset Management,PFI Unitary Charges,K03023,Third Party Payments          ,Private Contractors           ,EH02,Miscellaneous Hired Services            ,1045,02/09/2014,REV,THE CRESCENT FENCING CO.      
653,Childrens & Education Services,Asset Management,PFI Unitary Charges,K03023,Third Party Payments          ,Private Contractors           ,EH02,Miscellaneous Hired Services            ,14250,06/08/2014,REV,NEWSCHOOLS (MERTON) LIMITED   
654,Childrens & Education Services,Asset Management,PFI Unitary Charges,K03023,Third Party Payments          ,Private Contractors           ,EH02,Miscellaneous Hired Services            ,6725,02/09/2014,REV,THE CRESCENT FENCING CO.      
655,Childrens & Education Services,Asset Management,PFI Unitary Charges,K03023,Third Party Payments          ,Private Contractors           ,EH02,Miscellaneous Hired Services            ,6450,29/08/2014,REV,ICL SOLUTIONS                 
656,Childrens & Education Services,Asset Management,PFI Unitary Charges,K03023,Third Party Payments          ,Private Contractors           ,EH02,Miscellaneous Hired Services            ,637.24,26/08/2014,REV,NEWSCHOOLS (MERTON) LIMITED   
657,Childrens & Education Services,Asset Management,PFI Unitary Charges,K03023,Third Party Payments          ,Private Contractors           ,EH10,Contract Payments                       ,3088646.73,01/09/2014,REV,NEWSCHOOLS (MERTON) LIMITED   
658,Childrens & Education Services,Statutory & Regulatory Duties,Head of Special Educatn Needs,K04017,Supplies & Services           ,Services                      ,DF03,Consultants                             ,1700,01/09/2014,REV,REDACTED
659,Childrens & Education Services,Statutory & Regulatory Duties,Head of Special Educatn Needs,K04017,Supplies & Services           ,Expenses                      ,DH02,Conferences                             ,700,28/08/2014,REV,CAPITA CONFERENCES            
660,Childrens & Education Services,Education Psychology Service,Education Psychology.,K04018,Employees                     ,Direct Employee Expenses      ,AA17,Agency Staff & Casual Paymts            ,1600,26/08/2014,REV,REDACTED
661,Childrens & Education Services,Behavioural Support,Statement Support Team,K04034,Employees                     ,Direct Employee Expenses      ,AA17,Agency Staff & Casual Paymts            ,10000,09/08/2014,REV,REDACTED
662,Childrens & Education Services,Behavioural Support,Statement Support Team,K04034,Employees                     ,Direct Employee Expenses      ,AA17,Agency Staff & Casual Paymts            ,5450,09/08/2014,REV,REDACTED
663,Childrens & Education Services,Behavioural Support,Statement Support Team,K04034,Employees                     ,Indirect Employee Expenses    ,AB02,Recruitment Adverts                     ,1290,11/09/2014,REV,PENNA COMMUNICATIONS (NO 2 A/C
664,Childrens & Education Services,Pupil Referral Units,Expanded Pupil Referral Unit,K05099,Third Party Payments          ,Private Contractors           ,EH01,Miscellaneous Agency Services           ,4879.11,25/07/2014,REV,SW LONDON ST GEORGES NHS TRUST
665,Childrens & Education Services,Nursery schools,GSSG Central Administration,K05400,Supplies & Services           ,Equip Furniture/Materials     ,DA09,Equip-Purchases                         ,2613.6,14/08/2014,REV,UNIQUE OFFICE SOLUTIONS LTD   
666,Childrens & Education Services,Nursery schools,GSSG Central Administration,K05400,Supplies & Services           ,Equip Furniture/Materials     ,DA09,Equip-Purchases                         ,1724.8,14/08/2014,REV,UNIQUE OFFICE SOLUTIONS LTD   
667,Childrens & Education Services,GENERATED ACCOUNT,Mitcham MAT,K05411,Supplies & Services           ,Services                      ,DF09,Miscellaneous Fees                      ,760,15/07/2014,REV,PRE SCHOOL LEARNING ALLIANCE  
668,Childrens & Education Services,GENERATED ACCOUNT,Mitcham MAT (Premises),K05412,Premises Related Expenditure  ,RepairsAlterations&MtceOfBldgs,BA01,DDM - General Building                  ,6470,06/08/2014,REV,RED MONKEY PLAY LTD           
669,Childrens & Education Services,GENERATED ACCOUNT,Mitcham MAT (Premises),K05412,Premises Related Expenditure  ,Energy Costs                  ,BB02,Electricity                             ,679.63,13/05/2014,REV,SCOTTISHPOWER                 
670,Childrens & Education Services,GENERATED ACCOUNT,Mitcham MAT (Premises),K05412,Premises Related Expenditure  ,Cleaning and Domestic Supplies,BH03,Cleaning Services                       ,1208.78,01/09/2014,REV,BIRKIN CLEANING SERVICES LTD  
671,Childrens & Education Services,GENERATED ACCOUNT,Morden MAT,K05413,Premises Related Expenditure  ,RepairsAlterations&MtceOfBldgs,BA01,DDM - General Building                  ,2343,15/09/2014,REV,GILLETT FLOORING CONTRACTORS  
672,Childrens & Education Services,Nursery schools,Lavender CC Non Childcare,K05415,Premises Related Expenditure  ,Cleaning and Domestic Supplies,BH03,Cleaning Services                       ,1212.14,01/09/2014,REV,BIRKIN CLEANING SERVICES LTD  
673,Childrens & Education Services,Nursery schools,E.Years-Intergenerational Cntr,K05416,Premises Related Expenditure  ,RepairsAlterations&MtceOfBldgs,BA06,Repairs & Maintenance General           ,3200,08/08/2014,REV,ICAX LTD                      
674,Childrens & Education Services,Nursery schools,E.Years-Intergenerational Cntr,K05416,Premises Related Expenditure  ,RepairsAlterations&MtceOfBldgs,BA06,Repairs & Maintenance General           ,650,17/09/2014,REV,REDACTED
675,Childrens & Education Services,Nursery schools,E.Years-Intergenerational Cntr,K05416,Premises Related Expenditure  ,Energy Costs                  ,BB02,Electricity                             ,746.1,05/09/2014,REV,SCOTTISHPOWER                 
676,Childrens & Education Services,Nursery schools,E.Years-Intergenerational Cntr,K05416,Premises Related Expenditure  ,Cleaning and Domestic Supplies,BH03,Cleaning Services                       ,811.96,01/09/2014,REV,BIRKIN CLEANING SERVICES LTD  
677,Childrens & Education Services,Nursery schools,EY-Support Separating Parents,K05417,Employees                     ,Direct Employee Expenses      ,AA74,Public Duties (AP)                      ,2649.36,07/09/2014,REV,REDACTED
678,Childrens & Education Services,Vocational - Adult Education,AE-Adult Education Main,K06049,Premises Related Expenditure  ,Energy Costs                  ,BB02,Electricity                             ,1099.93,01/08/2014,REV,SCOTTISHPOWER                 
679,Childrens & Education Services,Vocational - Adult Education,AE-Adult Education Main,K06049,Premises Related Expenditure  ,Energy Costs                  ,BB02,Electricity                             ,984.49,06/05/2014,REV,SCOTTISHPOWER                 
680,Childrens & Education Services,Vocational - Adult Education,AE-Adult Education Main,K06049,Premises Related Expenditure  ,Energy Costs                  ,BB03,Gas (incl. Butane)                      ,682.49,04/09/2014,REV,GAZPROM MARKETING&TRADING LTD 
681,Childrens & Education Services,Vocational - Adult Education,AE-Adult Education Main,K06049,Premises Related Expenditure  ,Water Services                ,BE01,Use of Water (Metered)                  ,2076.44,08/09/2014,REV,THAMES WATER UTILITIES LTD.   
682,Childrens & Education Services,Vocational - Adult Education,AE-Adult Education Main,K06049,Premises Related Expenditure  ,Cleaning and Domestic Supplies,BH03,Cleaning Services                       ,2747.9,30/08/2014,REV,JULIUS RUTHERFOORD & CO LTD   
683,Childrens & Education Services,Vocational - Adult Education,AE-Adult Education Main,K06049,Supplies & Services           ,Equip Furniture/Materials     ,DA09,Equip-Purchases                         ,-679.99,08/08/2014,REV,NISBETS                       
684,Childrens & Education Services,Vocational - Adult Education,AE-Adult Education Main,K06049,Supplies & Services           ,Equip Furniture/Materials     ,DA09,Equip-Purchases                         ,1559.84,12/08/2014,REV,EBUYER UK LTD                 
685,Childrens & Education Services,Vocational - Adult Education,AE-Adult Education Main,K06049,Supplies & Services           ,Equip Furniture/Materials     ,DA09,Equip-Purchases                         ,1120.49,06/06/2014,REV,NISBETS                       
686,Childrens & Education Services,Vocational - Adult Education,AE-Adult Education Main,K06049,Supplies & Services           ,Services                      ,DF02,Misc Advertising/Publicity              ,1104,29/08/2014,REV,NEWSQUEST (LONDON)LTD         
687,Childrens & Education Services,Vocational - Adult Education,AE-Adult Education Main,K06049,Supplies & Services           ,Services                      ,DF02,Misc Advertising/Publicity              ,515,01/09/2014,REV,TIME & LEISURE                
688,Childrens & Education Services,Vocational - Adult Education,AE-Adult Education Main,K06049,Supplies & Services           ,Services                      ,DF03,Consultants                             ,4640,12/09/2014,REV,W3 ADVISORY LTD               
689,Childrens & Education Services,Vocational - Adult Education,AE-Adult Education Main,K06049,Supplies & Services           ,Comms and Computing           ,DG02,Software Licences                       ,875,03/09/2014,REV,SOFTWARE SOLUTIONS(WARWICK)LTD
690,Childrens & Education Services,Vocational - Adult Education,AE-Adult Education Main,K06049,Supplies & Services           ,Comms and Computing           ,DG07,Computer Software                       ,840,10/09/2014,REV,STUDIO ELEVEN LTD             
691,Childrens & Education Services,Youth Centres (Residential),Youth Service,K06053,Premises Related Expenditure  ,Cleaning and Domestic Supplies,BH03,Cleaning Services                       ,506.69,01/09/2014,REV,BIRKIN CLEANING SERVICES LTD  
692,Childrens & Education Services,Youth Centres (Residential),Youth Service,K06053,Supplies & Services           ,Comms and Computing           ,DG09,Computer Purchases - Misc               ,1039,24/09/2014,REV,TOTAL COMPUTER NETWORKS       
693,Childrens & Education Services,Youth Centres (Residential),Youth Service,K06053,Supplies & Services           ,Expenses                      ,DH12,Young Peoples Expenses                  ,2193.83,22/09/2014,REV,YOUTH FUN DAYS                
694,Childrens & Education Services,Youth Centres (Residential),Youth Service,K06053,Supplies & Services           ,Expenses                      ,DH12,Young Peoples Expenses                  ,800,15/09/2014,REV,REDACTED
695,Childrens & Education Services,Youth Centres (Residential),Youth Service,K06053,Supplies & Services           ,Expenses                      ,DH12,Young Peoples Expenses                  ,1500,07/08/2014,REV,KINETIC COACHING IN SPORT LTD 
696,Childrens & Education Services,Youth Centres (Residential),Duke of Edinburgh Awrds,K06055,Premises Related Expenditure  ,Rents                         ,BC03,Room/venue rental hire                  ,1500,15/09/2014,REV,YMCA LONDON SOUTH WEST        
697,Childrens & Education Services,Youth Centres (Residential),Detached Projects,K06066,Supplies & Services           ,Expenses                      ,DH12,Young Peoples Expenses                  ,682.5,23/07/2014,REV,REDACTED
698,Childrens & Education Services,Youth Centres (Residential),Youth Office Premises Cost,K06073,Premises Related Expenditure  ,RepairsAlterations&MtceOfBldgs,BA01,DDM - General Building                  ,975,14/07/2014,REV,STP SOLUTIONS                 
699,Childrens & Education Services,Youth Centres (Residential),Youth Office Premises Cost,K06073,Premises Related Expenditure  ,RepairsAlterations&MtceOfBldgs,BA01,DDM - General Building                  ,2548.29,14/07/2014,REV,STP SOLUTIONS                 
700,Childrens & Education Services,Youth Centres (Residential),Youth Opps Fund (GF C G),K06093,Supplies & Services           ,Grants and Subscriptions      ,DJ01,Grants                                  ,680,09/09/2014,REV,SYMMETRICAL FUTURES           
701,Childrens & Education Services,Youth Centres (Residential),Youth Opps Fund (GF C G),K06093,Supplies & Services           ,Grants and Subscriptions      ,DJ01,Grants                                  ,2379.2,29/08/2014,REV,CHURCH OF PENTECOST - ROSEHILL
702,Childrens & Education Services,Youth Centres (Residential),Youth Opps Fund (GF C G),K06093,Supplies & Services           ,Grants and Subscriptions      ,DJ01,Grants                                  ,1056,05/09/2014,REV,WIMBLEDON COLLEGE SCHOOL      
703,Childrens & Education Services,Vocational - Adult Education,AE-Mind & Body,K06104,Supplies & Services           ,Equip Furniture/Materials     ,DA04,Materials                               ,750.02,23/09/2014,REV,ELLISONS                      
704,Childrens & Education Services,Vocational - Adult Education,AE-Craft,K06105,Supplies & Services           ,Equip Furniture/Materials     ,DA04,Materials                               ,761.88,24/09/2014,REV,REDACTED
705,Childrens & Education Services,Pupil Support,Young Person Substance Misuse,K06114,Third Party Payments          ,Private Contractors           ,EH01,Miscellaneous Agency Services           ,54993.25,30/07/2014,REV,CATCH 22                      
706,Childrens & Education Services,Pupil Support,Young Person Substance Misuse,K06114,Third Party Payments          ,Private Contractors           ,EH01,Miscellaneous Agency Services           ,54993.25,01/09/2014,REV,CATCH 22                      
707,Childrens & Education Services,Pupil Support,Children & Yth Participation,K06115,Supplies & Services           ,Expenses                      ,DH50,Special Projects                        ,500,21/08/2014,REV,JIGSAW4U                      
708,Childrens & Education Services,Pupil Referral Units,Safer Schls Police Officers             ,K06116,Third Party Payments          ,Private Contractors           ,EH02,Miscellaneous Hired Services            ,12500,20/08/2014,REV,MET POLICE AUTHORITY          
709,Childrens & Education Services,Asset Management,S106 Bid,K08077,Premises Related Expenditure  ,RepairsAlterations&MtceOfBldgs,BA06,Repairs & Maintenance General           ,31397.5,09/09/2014,REV,ADREM CONTRACTS LTD           
710,Childrens & Education Services,Asset Management,S106 Bid,K08077,Premises Related Expenditure  ,RepairsAlterations&MtceOfBldgs,BA29,Build Maint Mgt Fees                    ,15000,18/08/2014,REV,PORTAKABIN LIMITED            
711,Childrens & Education Services,Asset Management,S106 Bid,K08077,Premises Related Expenditure  ,RepairsAlterations&MtceOfBldgs,BA79,Security of Premises                    ,1160,01/09/2014,REV,SIGHT & SOUND                 
712,Childrens & Education Services,Asset Management,Centre Commissioned Servs,K08078,Supplies & Services           ,Grants and Subscriptions      ,DJ01,Grants                                  ,18281.25,20/08/2014,REV,ST MARKS FAMILY CENTRE        
713,Childrens & Education Services,Asset Management,Centre Commissioned Servs,K08078,Supplies & Services           ,Grants and Subscriptions      ,DJ01,Grants                                  ,5000,03/09/2014,REV,YOUTH EMPOWERMENT CRIME SCHEME
714,Childrens & Education Services,Asset Management,Centre Commissioned Servs,K08078,Supplies & Services           ,Grants and Subscriptions      ,DJ01,Grants                                  ,9000,05/09/2014,REV,HERCULES WIMBLEDON ATHELETICS 
715,Childrens & Education Services,Asset Management,Centre Commissioned Servs,K08078,Supplies & Services           ,Grants and Subscriptions      ,DJ01,Grants                                  ,18281.25,20/08/2014,REV,ST MARKS FAMILY CENTRE        
716,Childrens & Education Services,Asset Management,Stouthall,K09082,Premises Related Expenditure  ,RepairsAlterations&MtceOfBldgs,BA01,DDM - General Building                  ,16994.41,15/09/2014,REV,HENSTAFF CONSTRUCTION LTD     
717,Childrens & Education Services,Asset Management,Stouthall,K09082,Premises Related Expenditure  ,RepairsAlterations&MtceOfBldgs,BA06,Repairs & Maintenance General           ,955.5,20/08/2014,REV,CALOW LTD                     
718,Childrens & Education Services,Asset Management,Stouthall,K09082,Premises Related Expenditure  ,RepairsAlterations&MtceOfBldgs,BA06,Repairs & Maintenance General           ,1020,30/12/2012,REV,CALOW LTD                     
719,Childrens & Education Services,Asset Management,Stouthall,K09082,Premises Related Expenditure  ,RepairsAlterations&MtceOfBldgs,BA06,Repairs & Maintenance General           ,1300,30/12/2012,REV,CALOW LTD                     
720,Childrens & Education Services,Asset Management,Stouthall,K09082,Premises Related Expenditure  ,RepairsAlterations&MtceOfBldgs,BA79,Security of Premises                    ,13368,27/08/2014,REV,G.P HADEN ASSOCIATES          
721,Childrens & Education Services,Asset Management,Stouthall,K09082,Premises Related Expenditure  ,Energy Costs                  ,BB03,Gas (incl. Butane)                      ,1635.24,21/08/2014,REV,FLOGAS CO UK                  
722,Childrens & Education Services,Asset Management,Stouthall,K09082,Premises Related Expenditure  ,Rents                         ,BC01,Miscellaneous Rents                     ,4125,12/09/2014,REV,ROBERT MORGAN & SONS LTD      
723,Childrens & Education Services,Asset Management,Stouthall,K09082,Premises Related Expenditure  ,Ground Maintenance Costs      ,BL03,Maintenance of Grounds                  ,600,31/08/2014,REV,A Y LANDSCAPES LTD            
724,Childrens & Education Services,Asset Management,Stouthall,K09082,Premises Related Expenditure  ,Ground Maintenance Costs      ,BL03,Maintenance of Grounds                  ,1000,31/08/2014,REV,A Y LANDSCAPES LTD            
725,Childrens & Education Services,Asset Management,Stouthall,K09082,Third Party Payments          ,Private Contractors           ,EH02,Miscellaneous Hired Services            ,1640,31/08/2014,REV,CURRAN WEBB LTD               
726,Childrens & Education Services,Statutory & Regulatory Duties,Profess Develop Cntre,K09084,Premises Related Expenditure  ,Cleaning and Domestic Supplies,BH03,Cleaning Services                       ,2329.26,30/08/2014,REV,JULIUS RUTHERFOORD & CO LTD   
727,Childrens & Education Services,Admissions & Planning Sch Prov,Schools Admin & Pupil Benefits,K90001,Transport Related Expenditure ,Public Transport              ,CD50,Home Sch/Coll Trans(Trav Exps)          ,500,09/08/2014,REV,TRANSPORT TRADING LTD         
728,Childrens & Education Services,Sch Meals & Milk-Not Delegated,Free School Meals,K90002,Supplies & Services           ,Grants and Subscriptions      ,DJ80,Free School Meals                       ,94377.12,17/06/2014,REV,ISS COLLECTIONS LTD           
729,Childrens & Education Services,Sch Meals & Milk-Not Delegated,Free School Meals,K90002,Supplies & Services           ,Grants and Subscriptions      ,DJ80,Free School Meals                       ,139624.89,02/07/2014,REV,ISS COLLECTIONS LTD           
730,Childrens & Education Services,Sch Meals & Milk-Not Delegated,Free School Meals,K90002,Supplies & Services           ,Grants and Subscriptions      ,DJ80,Free School Meals                       ,7030,30/05/2014,REV,PARENTPAY LTD                 
731,Childrens & Education Services,Sch Meals & Milk-Not Delegated,Free School Meals,K90002,Supplies & Services           ,Grants and Subscriptions      ,DJ80,Free School Meals                       ,136364.88,17/06/2014,REV,ISS COLLECTIONS LTD           
732,Childrens & Education Services,Facilitating School Improvemnt,Virtual Schools - Home Tutors,K90015,Employees                     ,Direct Employee Expenses      ,AA17,Agency Staff & Casual Paymts            ,614.25,31/08/2014,REV,REDACTED
733,Childrens & Education Services,Facilitating School Improvemnt,Virtual Schools - Home Tutors,K90015,Employees                     ,Direct Employee Expenses      ,AA17,Agency Staff & Casual Paymts            ,1044.24,31/07/2014,REV,REDACTED
734,Childrens & Education Services,Facilitating School Improvemnt,Virtual Schools - PEA's,K90016,Supplies & Services           ,Expenses                      ,DH12,Young Peoples Expenses                  ,1100.82,17/09/2014,REV,BOOK TRUST                    
735,Childrens & Education Services,Support for SEN Pupils,Non-Delegated Statements,K90024,Supplies & Services           ,Equip Furniture/Materials     ,DA53,Specialist Equipment                    ,607.69,15/08/2014,REV,REDACTED
736,Childrens & Education Services,Support for SEN Pupils,Non-Delegated Statements,K90024,Supplies & Services           ,Services                      ,DF09,Miscellaneous Fees                      ,639.1,31/08/2014,REV,DEEPSTORE LTD                 
737,Childrens & Education Services,Support for SEN Pupils,Non-Delegated Statements,K90024,Supplies & Services           ,Services                      ,DF09,Miscellaneous Fees                      ,1320,08/09/2014,REV,RIVER COUNSELLING AGENCY      
738,Childrens & Education Services,Support for SEN Pupils,Non-Delegated Statements,K90024,Supplies & Services           ,Services                      ,DF09,Miscellaneous Fees                      ,1140,15/09/2014,REV,RIVER COUNSELLING AGENCY      
739,Childrens & Education Services,Support for SEN Pupils,Non-Delegated Statements,K90024,Supplies & Services           ,Services                      ,DF09,Miscellaneous Fees                      ,750,26/08/2014,REV,REDACTED
740,Childrens & Education Services,Support for SEN Pupils,Non-Delegated Statements,K90024,Supplies & Services           ,Services                      ,DF09,Miscellaneous Fees                      ,7615,12/08/2014,REV,THE LINK PRIMARY DAY SCHOOL   
741,Childrens & Education Services,Support for SEN Pupils,Non-Delegated Statements,K90024,Third Party Payments          ,Other Local Authorities       ,EB48,OLA PAYMENTS-STATEMENTS                 ,7470.75,11/09/2014,REV,EARLSFIELD PRIMARY SCHOOL     
742,Childrens & Education Services,Support for SEN Pupils,Non-Delegated Statements,K90024,Third Party Payments          ,Other Local Authorities       ,EB48,OLA PAYMENTS-STATEMENTS                 ,59834.78,25/09/2014,REV,GLENTHORNE HIGH SCHOOL        
743,Childrens & Education Services,Support for SEN Pupils,Non-Delegated Statements,K90024,Third Party Payments          ,Other Local Authorities       ,EB48,OLA PAYMENTS-STATEMENTS                 ,2608.66,23/09/2014,REV,ALL SAINTS BENHILTON C.E.SCH  
744,Childrens & Education Services,Support for SEN Pupils,Non-Delegated Statements,K90024,Third Party Payments          ,Other Local Authorities       ,EB48,OLA PAYMENTS-STATEMENTS                 ,11162.92,25/09/2014,REV,SUTTON GRAMMAR SCHOOL         
745,Childrens & Education Services,Support for SEN Pupils,Non-Delegated Statements,K90024,Third Party Payments          ,Other Local Authorities       ,EB48,OLA PAYMENTS-STATEMENTS                 ,2608.67,26/09/2014,REV,SWAFFIELD PRIMARY SCHOOL      
746,Childrens & Education Services,Support for SEN Pupils,Non-Delegated Statements,K90024,Third Party Payments          ,Other Local Authorities       ,EB49,OLA PAYMENTS-RESIDENTIAL                ,96287,06/08/2014,REV,WANDSWORTH CORPORATION        
747,Childrens & Education Services,Support for SEN Pupils,Non-Delegated Statements,K90024,Third Party Payments          ,Other Local Authorities       ,EB50,OLA-Payments - Day Schools              ,89564.22,06/08/2014,REV,WANDSWORTH CORPORATION        
748,Childrens & Education Services,Support for SEN Pupils,Non-Delegated Statements,K90024,Third Party Payments          ,Other Local Authorities       ,EB50,OLA-Payments - Day Schools              ,92879.12,20/08/2014,REV,SOUTHWARK COUNCIL             
749,Childrens & Education Services,Support for SEN Pupils,Non-Delegated Statements,K90024,Third Party Payments          ,Other Local Authorities       ,EB50,OLA-Payments - Day Schools              ,2616.7,20/11/2013,REV,LONDON BOROUGH OF SUTTON      
750,Childrens & Education Services,Support for SEN Pupils,Non-Delegated Statements,K90024,Third Party Payments          ,Other Local Authorities       ,EB50,OLA-Payments - Day Schools              ,14880.2,30/09/2014,REV,TURNEY SCHOOL                 
751,Childrens & Education Services,Support for SEN Pupils,Non-Delegated Statements,K90024,Third Party Payments          ,Other Local Authorities       ,EB55,Placements                              ,2293.2,24/07/2014,REV,WIMBLEDON HOUSE DAY NURSERY   
752,Childrens & Education Services,Support for SEN Pupils,Non-Delegated Statements,K90024,Third Party Payments          ,Other Establishments          ,EG01,Alternative SEN Provision               ,802.9,06/08/2014,REV,REDACTED
753,Childrens & Education Services,Support for SEN Pupils,Non-Delegated Statements,K90024,Third Party Payments          ,Other Establishments          ,EG01,Alternative SEN Provision               ,1010.5,06/08/2014,REV,REDACTED
754,Childrens & Education Services,Support for SEN Pupils,Non-Delegated Statements,K90024,Third Party Payments          ,Other Establishments          ,EG50,Ind Day Schs Payments                   ,6605,06/08/2014,REV,COLLINGHAM COLLEGE            
755,Childrens & Education Services,Support for SEN Pupils,Non-Delegated Statements,K90024,Third Party Payments          ,Other Establishments          ,EG50,Ind Day Schs Payments                   ,6692,12/08/2014,REV,THE LINK PRIMARY DAY SCHOOL   
756,Childrens & Education Services,Support for SEN Pupils,Non-Delegated Statements,K90024,Third Party Payments          ,Other Establishments          ,EG50,Ind Day Schs Payments                   ,8367.86,06/08/2014,REV,HOPE VIEW SCHOOL              
757,Childrens & Education Services,Support for SEN Pupils,Non-Delegated Statements,K90024,Third Party Payments          ,Other Establishments          ,EG50,Ind Day Schs Payments                   ,586.09,01/09/2014,REV,JIGSAW                        
758,Childrens & Education Services,Support for SEN Pupils,Non-Delegated Statements,K90024,Third Party Payments          ,Other Establishments          ,EG50,Ind Day Schs Payments                   ,18939.33,01/09/2014,REV,JIGSAW                        
759,Childrens & Education Services,Support for SEN Pupils,Non-Delegated Statements,K90024,Third Party Payments          ,Other Establishments          ,EG50,Ind Day Schs Payments                   ,12376.75,18/09/2014,REV,THE CHILDRENS TRUST           
760,Childrens & Education Services,Support for SEN Pupils,Non-Delegated Statements,K90024,Third Party Payments          ,Other Establishments          ,EG50,Ind Day Schs Payments                   ,1370.83,19/08/2014,REV,REED'S SCHOOL                 
761,Childrens & Education Services,Support for SEN Pupils,Non-Delegated Statements,K90024,Third Party Payments          ,Other Establishments          ,EG50,Ind Day Schs Payments                   ,5319,05/08/2014,REV,LVS HASSOCKS                  
762,Childrens & Education Services,Support for SEN Pupils,Non-Delegated Statements,K90024,Third Party Payments          ,Other Establishments          ,EG50,Ind Day Schs Payments                   ,6692,12/08/2014,REV,THE LINK PRIMARY DAY SCHOOL   
763,Childrens & Education Services,Admissions & Planning Sch Prov,Retained Schools Budgets,K90030,Supplies & Services           ,Prntng Stnry Gen Off Exp      ,DE22,Marketing                               ,8475,31/08/2014,REV,GREBOT DONNELLY  ASSOCIAT. LTD
764,Childrens & Education Services,Admissions & Planning Sch Prov,Retained Schools Budgets,K90030,Supplies & Services           ,Prntng Stnry Gen Off Exp      ,DE22,Marketing                               ,4950,31/08/2014,REV,GREBOT DONNELLY  ASSOCIAT. LTD
765,Childrens & Education Services,Admissions & Planning Sch Prov,Retained Schools Budgets,K90030,Supplies & Services           ,Expenses                      ,DH17,Advances                                ,5000,17/09/2014,REV,PAVILLION OPERA EDU TRUST     
766,Childrens & Education Services,Facilitating School Improvemnt,SSQ CORE OFFER (DSG),K90040,Supplies & Services           ,Services                      ,DF03,Consultants                             ,15000,12/09/2014,REV,LONDON BOROUGH OF SUTTON      
767,Childrens & Education Services,Facilitating School Improvemnt,SSQ CORE OFFER (DSG),K90040,Supplies & Services           ,Expenses                      ,DH02,Conferences                             ,525,23/09/2014,REV,DIGON CONSULTANCY             
768,Childrens & Education Services,Nursery schools,EARLY YEARS NURSERY GRANTS,K90042,Supplies & Services           ,Grants and Subscriptions      ,DJ57,Nursery Grant Payment-4yr olds          ,907.2,05/09/2014,REV,REDACTED
769,Childrens & Education Services,Nursery schools,EARLY YEARS NURSERY GRANTS,K90042,Supplies & Services           ,Grants and Subscriptions      ,DJ57,Nursery Grant Payment-4yr olds          ,2587.2,05/09/2014,REV,LOVE LANE DAY NURSERY         
770,Childrens & Education Services,Nursery schools,EARLY YEARS NURSERY GRANTS,K90042,Supplies & Services           ,Grants and Subscriptions      ,DJ57,Nursery Grant Payment-4yr olds          ,5821.2,05/09/2014,REV,NUTURE DAY NURSERIES          
771,Childrens & Education Services,Nursery schools,EARLY YEARS NURSERY GRANTS,K90042,Supplies & Services           ,Grants and Subscriptions      ,DJ57,Nursery Grant Payment-4yr olds          ,907.2,05/09/2014,REV,REDACTED
772,Childrens & Education Services,Nursery schools,EARLY YEARS NURSERY GRANTS,K90042,Supplies & Services           ,Grants and Subscriptions      ,DJ57,Nursery Grant Payment-4yr olds          ,1814,05/09/2014,REV,REDACTED
773,Childrens & Education Services,Nursery schools,EARLY YEARS NURSERY GRANTS,K90042,Supplies & Services           ,Grants and Subscriptions      ,DJ57,Nursery Grant Payment-4yr olds          ,3880,05/09/2014,REV,NURTURE SW20                  
774,Childrens & Education Services,Nursery schools,EARLY YEARS NURSERY GRANTS,K90042,Supplies & Services           ,Grants and Subscriptions      ,DJ57,Nursery Grant Payment-4yr olds          ,6468,19/09/2014,REV,KIDDIES KOTTAGE NURSERY       
775,Childrens & Education Services,Nursery schools,EARLY YEARS NURSERY GRANTS,K90042,Supplies & Services           ,Grants and Subscriptions      ,DJ57,Nursery Grant Payment-4yr olds          ,1814.4,19/09/2014,REV,REDACTED
776,Childrens & Education Services,Nursery schools,EARLY YEARS NURSERY GRANTS,K90042,Supplies & Services           ,Grants and Subscriptions      ,DJ57,Nursery Grant Payment-4yr olds          ,3880.8,19/09/2014,REV,FUNKY OWLS NURSERY            
777,Childrens & Education Services,Nursery schools,EARLY YEARS NURSERY GRANTS,K90042,Supplies & Services           ,Grants and Subscriptions      ,DJ57,Nursery Grant Payment-4yr olds          ,907.2,05/09/2014,REV,REDACTED
778,Childrens & Education Services,Nursery schools,EARLY YEARS NURSERY GRANTS,K90042,Supplies & Services           ,Grants and Subscriptions      ,DJ57,Nursery Grant Payment-4yr olds          ,2077.74,05/09/2014,REV,LITTLE HANDS MONTESSORI       
779,Childrens & Education Services,Nursery schools,EARLY YEARS NURSERY GRANTS,K90042,Supplies & Services           ,Grants and Subscriptions      ,DJ58,Nursery Grant Payment-3yr olds          ,907.2,05/09/2014,REV,REDACTED
780,Childrens & Education Services,Oth U5s Provn Not Prim or Spec,DAVID NICHOLAS CRECHE,K90045,Premises Related Expenditure  ,RepairsAlterations&MtceOfBldgs,BA06,Repairs & Maintenance General           ,4000,27/08/2014,REV,IMAGINE LANDSCAPES            
781,Childrens & Education Services,Nursery schools,EARLY YEARS FUNDING,K90046,Premises Related Expenditure  ,RepairsAlterations&MtceOfBldgs,BA79,Security of Premises                    ,1816,10/09/2014,REV,ACE CONSULT UK LTD            
782,Childrens & Education Services,Nursery schools,EARLY YEARS FUNDING,K90046,Premises Related Expenditure  ,RepairsAlterations&MtceOfBldgs,BA79,Security of Premises                    ,4080,01/08/2014,REV,ACE CONSULT UK LTD            
783,Childrens & Education Services,Support for SEN Pupils,ART SEN Residential (DSG),K90050,Third Party Payments          ,Other Establishments          ,EG51,Ind Resid Schs Payments                 ,43430.33,01/08/2014,REV,CAMBIAN ASPERGER SYNDROME SERV
784,Childrens & Education Services,Support for SEN Pupils,ART SEN Residential (DSG),K90050,Third Party Payments          ,Other Establishments          ,EG51,Ind Resid Schs Payments                 ,-519.72,22/08/2014,REV,CAMBIAN ASPERGER SYNDROME SERV
785,Childrens & Education Services,Support for SEN Pupils,ART SEN Residential (DSG),K90050,Third Party Payments          ,Other Establishments          ,EG51,Ind Resid Schs Payments                 ,13304,31/07/2014,REV,ST DOMINIC'S SCHOOL           
786,Childrens & Education Services,Support for SEN Pupils,ART SEN Residential (DSG),K90050,Third Party Payments          ,Other Establishments          ,EG51,Ind Resid Schs Payments                 ,48100,19/05/2014,REV,COTSWOLD CHINE SCHOOL         
787,Childrens & Education Services,Support for SEN Pupils,ART SEN Residential (DSG),K90050,Third Party Payments          ,Other Establishments          ,EG51,Ind Resid Schs Payments                 ,42520.26,06/08/2014,REV,CAMBIAN ASPERGER SYNDROME SERV
788,Childrens & Education Services,Support for SEN Pupils,ART SEN Residential (DSG),K90050,Third Party Payments          ,Other Establishments          ,EG51,Ind Resid Schs Payments                 ,24517,23/07/2014,REV,ST JOSEPHS SCHOOL             
789,Childrens & Education Services,Support for SEN Pupils,ART SEN Residential (DSG),K90050,Third Party Payments          ,Other Establishments          ,EG51,Ind Resid Schs Payments                 ,12684.66,15/07/2014,REV,THE RAYNERS SPECIAL EDUC TRUST
790,Childrens & Education Services,Support for SEN Pupils,ART SEN Residential (DSG),K90050,Third Party Payments          ,Other Establishments          ,EG51,Ind Resid Schs Payments                 ,59644.54,30/06/2014,REV,ACORN PARK SCHOOL             
791,Childrens & Education Services,Support for SEN Pupils,ART SEN Residential (DSG),K90050,Third Party Payments          ,Other Establishments          ,EG51,Ind Resid Schs Payments                 ,13592.08,14/07/2014,REV,MOOR HOUSE SCHOOL             
792,Childrens & Education Services,Nursery schools,2Year Old Offer                         ,K90051,Supplies & Services           ,Services                      ,DF02,Misc Advertising/Publicity              ,1391,16/09/2014,REV,ACCESS POINT LTD              
793,Childrens & Education Services,Nursery schools,2Year Old Offer                         ,K90051,Supplies & Services           ,Grants and Subscriptions      ,DJ01,Grants                                  ,1134,05/09/2014,REV,REDACTED
794,Childrens & Education Services,Nursery schools,2Year Old Offer                         ,K90051,Supplies & Services           ,Grants and Subscriptions      ,DJ01,Grants                                  ,907.2,05/09/2014,REV,REDACTED
795,Childrens & Education Services,Nursery schools,2Year Old Offer                         ,K90051,Supplies & Services           ,Grants and Subscriptions      ,DJ01,Grants                                  ,1134,05/09/2014,REV,REDACTED
796,Childrens & Education Services,Nursery schools,2Year Old Offer                         ,K90051,Supplies & Services           ,Grants and Subscriptions      ,DJ58,Nursery Grant Payment-3yr olds          ,907.2,05/09/2014,REV,REDACTED
797,Childrens & Education Services,Nursery schools,2Year Old Offer                         ,K90051,Supplies & Services           ,Grants and Subscriptions      ,DJ58,Nursery Grant Payment-3yr olds          ,12700,03/09/2014,REV,HASLEMERE HOUSE DAY NURSERY   
798,Childrens & Education Services,Nursery schools,2Year Old Offer                         ,K90051,Supplies & Services           ,Grants and Subscriptions      ,DJ58,Nursery Grant Payment-3yr olds          ,1134,05/09/2014,REV,REDACTED
799,Childrens & Education Services,Nursery schools,2Year Old Offer                         ,K90051,Supplies & Services           ,Grants and Subscriptions      ,DJ58,Nursery Grant Payment-3yr olds          ,11340,05/09/2014,REV,JOLLYTIME PLAYGROUP           
800,Childrens & Education Services,Nursery schools,2Year Old Offer                         ,K90051,Supplies & Services           ,Grants and Subscriptions      ,DJ58,Nursery Grant Payment-3yr olds          ,16329.4,03/09/2014,REV,KINGSWOOD DAYCARE NURSERY     
801,Childrens & Education Services,Nursery schools,2Year Old Offer                         ,K90051,Supplies & Services           ,Grants and Subscriptions      ,DJ58,Nursery Grant Payment-3yr olds          ,3628.8,04/09/2014,REV,BUILDING BLOCKS KIDS CLUB PLUS
802,Childrens & Education Services,Nursery schools,2Year Old Offer                         ,K90051,Supplies & Services           ,Grants and Subscriptions      ,DJ58,Nursery Grant Payment-3yr olds          ,907.2,04/09/2014,REV,LOVE LANE DAY NURSERY         
803,Childrens & Education Services,Nursery schools,2Year Old Offer                         ,K90051,Supplies & Services           ,Grants and Subscriptions      ,DJ58,Nursery Grant Payment-3yr olds          ,1134,05/09/2014,REV,REDACTED
804,Childrens & Education Services,Nursery schools,2Year Old Offer                         ,K90051,Supplies & Services           ,Grants and Subscriptions      ,DJ58,Nursery Grant Payment-3yr olds          ,13608,05/09/2014,REV,HASLEMERE PRIMARY SCHOOL      
805,Childrens & Education Services,Nursery schools,2Year Old Offer                         ,K90051,Supplies & Services           ,Grants and Subscriptions      ,DJ58,Nursery Grant Payment-3yr olds          ,3110.4,04/09/2014,REV,LITTLE HANDS MONTESSORI       
806,Childrens & Education Services,Nursery schools,2Year Old Offer                         ,K90051,Supplies & Services           ,Grants and Subscriptions      ,DJ58,Nursery Grant Payment-3yr olds          ,907.2,05/09/2014,REV,REDACTED
807,Childrens & Education Services,Nursery schools,2Year Old Offer                         ,K90051,Supplies & Services           ,Grants and Subscriptions      ,DJ58,Nursery Grant Payment-3yr olds          ,22680,09/09/2014,REV,ARK AT SHERWOOD LTD           
808,Childrens & Education Services,Nursery schools,2Year Old Offer                         ,K90051,Supplies & Services           ,Grants and Subscriptions      ,DJ58,Nursery Grant Payment-3yr olds          ,12519.36,05/09/2014,REV,REDACTED
809,Childrens & Education Services,Nursery schools,2Year Old Offer                         ,K90051,Supplies & Services           ,Grants and Subscriptions      ,DJ58,Nursery Grant Payment-3yr olds          ,648,05/09/2014,REV,MINI TREASURES DAY NURSERY    
810,Childrens & Education Services,Nursery schools,2Year Old Offer                         ,K90051,Supplies & Services           ,Grants and Subscriptions      ,DJ58,Nursery Grant Payment-3yr olds          ,1814.4,19/09/2014,REV,FUNKY OWLS NURSERY            
811,Childrens & Education Services,Nursery schools,2Year Old Offer                         ,K90051,Supplies & Services           ,Grants and Subscriptions      ,DJ58,Nursery Grant Payment-3yr olds          ,5443.2,04/09/2014,REV,LITTLE CATERPILLARS           
812,Childrens & Education Services,Nursery schools,2Year Old Offer                         ,K90051,Supplies & Services           ,Grants and Subscriptions      ,DJ58,Nursery Grant Payment-3yr olds          ,20412,09/09/2014,REV,ST MARKS PRIMARY SCHOOL       
813,Childrens & Education Services,Nursery schools,2Year Old Offer                         ,K90051,Supplies & Services           ,Grants and Subscriptions      ,DJ58,Nursery Grant Payment-3yr olds          ,907.2,05/09/2014,REV,REDACTED
814,Childrens & Education Services,Nursery schools,2Year Old Offer                         ,K90051,Supplies & Services           ,Grants and Subscriptions      ,DJ58,Nursery Grant Payment-3yr olds          ,6350.4,02/09/2014,REV,LA PETITE FLEUR PRE-SCHOOL    
815,Childrens & Education Services,Nursery schools,2Year Old Offer                         ,K90051,Supplies & Services           ,Grants and Subscriptions      ,DJ58,Nursery Grant Payment-3yr olds          ,907.2,02/09/2014,REV,HOLY CROSS PLAYGROUP          
816,Childrens & Education Services,Nursery schools,2Year Old Offer                         ,K90051,Supplies & Services           ,Grants and Subscriptions      ,DJ58,Nursery Grant Payment-3yr olds          ,3628.8,02/09/2014,REV,MMI PRE SCHOOL                
817,Childrens & Education Services,Nursery schools,2Year Old Offer                         ,K90051,Supplies & Services           ,Grants and Subscriptions      ,DJ58,Nursery Grant Payment-3yr olds          ,5443.2,02/09/2014,REV,SACRED HEART FUN CLUB         
818,Childrens & Education Services,Nursery schools,2Year Old Offer                         ,K90051,Supplies & Services           ,Grants and Subscriptions      ,DJ58,Nursery Grant Payment-3yr olds          ,1134,05/09/2014,REV,REDACTED
819,Childrens & Education Services,Nursery schools,2Year Old Offer                         ,K90051,Supplies & Services           ,Grants and Subscriptions      ,DJ58,Nursery Grant Payment-3yr olds          ,1814.4,02/09/2014,REV,FIRST LITTLE STEPS            
820,Childrens & Education Services,Nursery schools,2Year Old Offer                         ,K90051,Supplies & Services           ,Grants and Subscriptions      ,DJ58,Nursery Grant Payment-3yr olds          ,907.2,05/09/2014,REV,REDACTED
821,Childrens & Education Services,Nursery schools,2Year Old Offer                         ,K90051,Supplies & Services           ,Grants and Subscriptions      ,DJ58,Nursery Grant Payment-3yr olds          ,1134,05/09/2014,REV,REDACTED
822,Childrens & Education Services,Nursery schools,2Year Old Offer                         ,K90051,Supplies & Services           ,Grants and Subscriptions      ,DJ58,Nursery Grant Payment-3yr olds          ,1134,05/09/2014,REV,REDACTED
823,Childrens & Education Services,Nursery schools,2Year Old Offer                         ,K90051,Supplies & Services           ,Grants and Subscriptions      ,DJ58,Nursery Grant Payment-3yr olds          ,1814.4,05/09/2014,REV,REDACTED
824,Childrens & Education Services,Nursery schools,2Year Old Offer                         ,K90051,Supplies & Services           ,Grants and Subscriptions      ,DJ58,Nursery Grant Payment-3yr olds          ,4536,04/09/2014,REV,KIDDIES KOTTAGE NURSERY       
825,Childrens & Education Services,Support for SEN Pupils,Non-Maintained Post 16 SEN              ,K90052,Third Party Payments          ,Other Establishments          ,EG53,Ind Specialist Providers                ,38669,31/07/2014,REV,NCYPE                         
826,Cultural Env Reg&Plan Services,Library DoS not split,Libraries Service-Civic Centre,L50001,Premises Related Expenditure  ,RepairsAlterations&MtceOfBldgs,BA79,Security of Premises                    ,819,01/06/2014,REV,SIGHT & SOUND                 
827,Cultural Env Reg&Plan Services,Library DoS not split,Libraries Service-Civic Centre,L50001,Premises Related Expenditure  ,RepairsAlterations&MtceOfBldgs,BA79,Security of Premises                    ,982.8,01/09/2014,REV,SIGHT & SOUND                 
828,Cultural Env Reg&Plan Services,Library DoS not split,Libraries Service-Civic Centre,L50001,Premises Related Expenditure  ,RepairsAlterations&MtceOfBldgs,BA79,Security of Premises                    ,7126.46,01/09/2014,REV,SIGHT & SOUND                 
829,Cultural Env Reg&Plan Services,Library DoS not split,Libraries Service-Civic Centre,L50001,Premises Related Expenditure  ,RepairsAlterations&MtceOfBldgs,BA79,Security of Premises                    ,936,01/08/2014,REV,SIGHT & SOUND                 
830,Cultural Env Reg&Plan Services,Library DoS not split,Libraries Service-Civic Centre,L50001,Premises Related Expenditure  ,RepairsAlterations&MtceOfBldgs,BA79,Security of Premises                    ,7233.36,01/08/2014,REV,SIGHT & SOUND                 
831,Cultural Env Reg&Plan Services,Library DoS not split,Libraries Service-Civic Centre,L50001,Supplies & Services           ,Equip Furniture/Materials     ,DA04,Materials                               ,650,11/09/2014,REV,EMOS INFORMATION SERVICES     
832,Cultural Env Reg&Plan Services,Library DoS not split,Libraries Service-Civic Centre,L50001,Supplies & Services           ,Equip Furniture/Materials     ,DA09,Equip-Purchases                         ,850,30/06/2014,REV,SSD LIMITED                   
833,Cultural Env Reg&Plan Services,Library DoS not split,Libraries Service-Civic Centre,L50001,Supplies & Services           ,Equip Furniture/Materials     ,DA09,Equip-Purchases                         ,1595,30/06/2014,REV,SSD LIMITED                   
834,Cultural Env Reg&Plan Services,Library DoS not split,Libraries Service-Civic Centre,L50001,Supplies & Services           ,Prntng Stnry Gen Off Exp      ,DE03,Stationery                              ,1224.5,27/08/2014,REV,SPECTRUM PLASTICS             
835,Cultural Env Reg&Plan Services,Library DoS not split,Libraries Service-Civic Centre,L50001,Supplies & Services           ,Services                      ,DF03,Consultants                             ,6000,28/05/2014,REV,BNP PARIBAS REAL EST.ADVISORY 
836,Cultural Env Reg&Plan Services,Library DoS not split,MITCHAM LIBRARY,L83071,Employees                     ,Indirect Employee Expenses    ,AB02,Recruitment Adverts                     ,585,11/09/2014,REV,PENNA COMMUNICATIONS (NO 2 A/C
837,Cultural Env Reg&Plan Services,Library DoS not split,MITCHAM LIBRARY,L83071,Premises Related Expenditure  ,Cleaning and Domestic Supplies,BH03,Cleaning Services                       ,992.31,01/09/2014,REV,BIRKIN CLEANING SERVICES LTD  
838,Cultural Env Reg&Plan Services,Library DoS not split,Pollards Hill Library,L83073,Premises Related Expenditure  ,Cleaning and Domestic Supplies,BH03,Cleaning Services                       ,961.84,01/09/2014,REV,BIRKIN CLEANING SERVICES LTD  
839,Cultural Env Reg&Plan Services,Library DoS not split,Morden Library,L84081,Premises Related Expenditure  ,Cleaning and Domestic Supplies,BH03,Cleaning Services                       ,982.67,01/09/2014,REV,BIRKIN CLEANING SERVICES LTD  
840,Cultural Env Reg&Plan Services,Library DoS not split,Raynes Park Library,L84083,Premises Related Expenditure  ,Cleaning and Domestic Supplies,BH03,Cleaning Services                       ,585.74,01/09/2014,REV,BIRKIN CLEANING SERVICES LTD  
841,Cultural Env Reg&Plan Services,Library DoS not split,Wimbledon Library,L85091,Premises Related Expenditure  ,Energy Costs                  ,BB02,Electricity                             ,531.34,01/09/2014,REV,SCOTTISHPOWER                 
842,Cultural Env Reg&Plan Services,Library DoS not split,Wimbledon Library,L85091,Premises Related Expenditure  ,Cleaning and Domestic Supplies,BH03,Cleaning Services                       ,1183.99,01/09/2014,REV,BIRKIN CLEANING SERVICES LTD  
843,Housing Services,Bed / breakfast accommodation,TEMPORARY ACCOMMODATION,N47160,Third Party Payments          ,Private Contractors           ,EH01,Miscellaneous Agency Services           ,980,01/09/2014,REV,FASTMOVE PROPERTIES           
844,Housing Services,Bed / breakfast accommodation,TEMPORARY ACCOMMODATION,N47160,Third Party Payments          ,Private Contractors           ,EH01,Miscellaneous Agency Services           ,1615,30/06/2014,REV,EURO HOTEL (LEYTON) LTD       
845,Housing Services,Bed / breakfast accommodation,TEMPORARY ACCOMMODATION,N47160,Third Party Payments          ,Private Contractors           ,EH01,Miscellaneous Agency Services           ,44407,31/08/2014,REV,VENTURE HOUSING(LONDON)LTD    
846,Housing Services,Bed / breakfast accommodation,TEMPORARY ACCOMMODATION,N47160,Third Party Payments          ,Private Contractors           ,EH01,Miscellaneous Agency Services           ,15583,01/09/2014,REV,CREST MANOR LTD               
847,Housing Services,Bed / breakfast accommodation,TEMPORARY ACCOMMODATION,N47160,Third Party Payments          ,Private Contractors           ,EH01,Miscellaneous Agency Services           ,1450,31/08/2014,REV,SW LONDON LETTINGS LTD        
848,Housing Services,Bed / breakfast accommodation,TEMPORARY ACCOMMODATION,N47160,Third Party Payments          ,Private Contractors           ,EH01,Miscellaneous Agency Services           ,3790,01/09/2014,REV,CHALLONER HOUSE LTD           
849,Housing Services,Bed / breakfast accommodation,TEMPORARY ACCOMMODATION,N47160,Third Party Payments          ,Private Contractors           ,EH01,Miscellaneous Agency Services           ,65389.1,31/08/2014,REV,ROOMS & STUDIOS MANAGEMENT    
850,Housing Services,Bed / breakfast accommodation,TEMPORARY ACCOMMODATION,N47160,Third Party Payments          ,Private Contractors           ,EH01,Miscellaneous Agency Services           ,13345,31/07/2014,REV,EURO HOTELS ( WEMBLEY) LTD    
851,Housing Services,Bed / breakfast accommodation,TEMPORARY ACCOMMODATION,N47160,Third Party Payments          ,Private Contractors           ,EH01,Miscellaneous Agency Services           ,1550,31/08/2014,REV,SW LONDON LETTINGS LTD        
852,Housing Services,Bed / breakfast accommodation,TEMPORARY ACCOMMODATION,N47160,Third Party Payments          ,Private Contractors           ,EH01,Miscellaneous Agency Services           ,1395,01/09/2014,REV,SK HOUSING LTD                
853,Housing Services,Bed / breakfast accommodation,TEMPORARY ACCOMMODATION,N47160,Third Party Payments          ,Private Contractors           ,EH01,Miscellaneous Agency Services           ,1550,01/09/2014,REV,FASTMOVE PROPERTIES           
854,Housing Services,Bed / breakfast accommodation,TEMPORARY ACCOMMODATION,N47160,Third Party Payments          ,Private Contractors           ,EH01,Miscellaneous Agency Services           ,936,01/08/2014,REV,HYTYME B&B                    
855,Housing Services,Bed / breakfast accommodation,TEMPORARY ACCOMMODATION,N47160,Third Party Payments          ,Private Contractors           ,EH01,Miscellaneous Agency Services           ,2015,31/08/2014,REV,SW LONDON LETTINGS LTD        
856,Housing Services,Bed / breakfast accommodation,TEMPORARY ACCOMMODATION,N47160,Third Party Payments          ,Private Contractors           ,EH01,Miscellaneous Agency Services           ,1190,01/09/2014,REV,FASTMOVE PROPERTIES           
857,Housing Services,Bed / breakfast accommodation,TEMPORARY ACCOMMODATION,N47160,Third Party Payments          ,Private Contractors           ,EH01,Miscellaneous Agency Services           ,1440,31/07/2014,REV,EURO HOTELS (HOUNSLOW)        
858,Housing Services,Bed / breakfast accommodation,TEMPORARY ACCOMMODATION,N47160,Third Party Payments          ,Private Contractors           ,EH01,Miscellaneous Agency Services           ,3940,31/08/2014,REV,EHOMES AND SHELTERS LTD       
859,Housing Services,Bed / breakfast accommodation,TEMPORARY ACCOMMODATION,N47160,Third Party Payments          ,Private Contractors           ,EH01,Miscellaneous Agency Services           ,770,31/07/2014,REV,EURO HOTELS (HOUNSLOW)        
860,Housing Services,Bed / breakfast accommodation,TEMPORARY ACCOMMODATION,N47160,Third Party Payments          ,Private Contractors           ,EH01,Miscellaneous Agency Services           ,2325,31/08/2014,REV,SW LONDON LETTINGS LTD        
861,Housing Services,Bed / breakfast accommodation,TEMPORARY ACCOMMODATION,N47160,Third Party Payments          ,Private Contractors           ,EH01,Miscellaneous Agency Services           ,650,31/08/2014,REV,EURO HOTELS (THORNTON HEATH)  
862,Housing Services,Bed / breakfast accommodation,TEMPORARY ACCOMMODATION,N47160,Third Party Payments          ,Private Contractors           ,EH01,Miscellaneous Agency Services           ,62689.55,31/07/2014,REV,ROOMS & STUDIOS MANAGEMENT    
863,Housing Services,Bed / breakfast accommodation,TEMPORARY ACCOMMODATION,N47160,Third Party Payments          ,Private Contractors           ,EH01,Miscellaneous Agency Services           ,10463,01/09/2014,REV,HB PROPERTY SERVICES          
864,Housing Services,Bed / breakfast accommodation,TEMPORARY ACCOMMODATION,N47160,Third Party Payments          ,Private Contractors           ,EH01,Miscellaneous Agency Services           ,528,01/09/2014,REV,HYTYME B&B                    
865,Housing Services,Bed / breakfast accommodation,Homelessness Prevention,N47171,Transfer Payments             ,Housing Benefits              ,FA11,Sanctuary Scheme Rent Rescue            ,1698,26/09/2014,REV,KILOSTATE ESTATE AGENTS       
866,Housing Services,Bed / breakfast accommodation,Homelessness Prevention,N47171,Transfer Payments             ,Housing Benefits              ,FA11,Sanctuary Scheme Rent Rescue            ,2000,04/09/2014,REV,REDACTED
867,Housing Services,Bed / breakfast accommodation,Homelessness Prevention,N47171,Transfer Payments             ,Housing Benefits              ,FA12,Rent Deposits                           ,4000,17/09/2014,REV,REDACTED
868,Housing Services,Bed / breakfast accommodation,Homelessness Prevention,N47171,Transfer Payments             ,Housing Benefits              ,FA12,Rent Deposits                           ,1400,04/09/2014,REV,ASHLEY ESTATES                
869,Housing Services,Bed / breakfast accommodation,Homelessness Prevention,N47171,Transfer Payments             ,Housing Benefits              ,FA12,Rent Deposits                           ,4000,10/09/2014,REV,REDACTED
870,Housing Services,Bed / breakfast accommodation,Homelessness Prevention,N47171,Transfer Payments             ,Housing Benefits              ,FA12,Rent Deposits                           ,4000,10/09/2014,REV,REDACTED
871,Housing Services,Bed / breakfast accommodation,Homelessness Prevention,N47171,Transfer Payments             ,Housing Benefits              ,FA12,Rent Deposits                           ,4000,17/09/2014,REV,REDACTED
872,Housing Services,Bed / breakfast accommodation,Homelessness Prevention,N47171,Transfer Payments             ,Housing Benefits              ,FA12,Rent Deposits                           ,2000,17/09/2014,REV,REDACTED
873,Housing Services,Bed / breakfast accommodation,Homelessness Prevention,N47171,Transfer Payments             ,Housing Benefits              ,FA12,Rent Deposits                           ,2000,17/09/2014,REV,DICKSONS ESTATE AGENTS        
874,Housing Services,Bed / breakfast accommodation,Homelessness Prevention,N47171,Transfer Payments             ,Housing Benefits              ,FA12,Rent Deposits                           ,4000,22/09/2014,REV,REDACTED
875,Housing Services,Hsg Dept Supp Staff & Costs,Housing Needs & Enablg-central,N51000,Supplies & Services           ,Services                      ,DF14,Doctors and other fees                  ,1119.39,01/09/2014,REV,REDACTED
876,Highways & Transport Services,Saf mtc prin/oth rds not split,Highways GM Contract                    ,P04006,Premises Related Expenditure  ,Ground Maintenance Costs      ,BL50,Nature Conservation                     ,3005.19,12/09/2014,REV,BARKLANDS TREE SPECIALISTS    
877,Highways & Transport Services,Saf mtc prin/oth rds not split,Highways GM Contract                    ,P04006,Premises Related Expenditure  ,Ground Maintenance Costs      ,BL50,Nature Conservation                     ,2325,12/09/2014,REV,BARKLANDS TREE SPECIALISTS    
878,Highways & Transport Services,Saf mtc prin/oth rds not split,Highways GM Contract                    ,P04006,Premises Related Expenditure  ,Ground Maintenance Costs      ,BL50,Nature Conservation                     ,7988.71,05/09/2014,REV,BARKLANDS TREE SPECIALISTS    
879,Highways & Transport Services,Saf mtc prin/oth rds not split,Highways GM Contract                    ,P04006,Supplies & Services           ,Equip Furniture/Materials     ,DA02,Op. Leasing Equipment                   ,2100,29/08/2014,REV,ERNEST DOE & SONS LTD         
880,Highways & Transport Services,Saf mtc prin/oth rds not split,Highways GM Contract                    ,P04006,Supplies & Services           ,Equip Furniture/Materials     ,DA09,Equip-Purchases                         ,1205.72,16/09/2014,REV,SPALDINGS (UK) LTD            
881,Cultural Env Reg&Plan Services,Parks & Open Spaces,Park Utilities                          ,P04007,Premises Related Expenditure  ,Energy Costs                  ,BB02,Electricity                             ,1426.43,08/09/2014,REV,SCOTTISHPOWER                 
882,Cultural Env Reg&Plan Services,Parks & Open Spaces,Park Utilities                          ,P04007,Premises Related Expenditure  ,Energy Costs                  ,BB02,Electricity                             ,506.63,01/09/2014,REV,SCOTTISHPOWER                 
883,Cultural Env Reg&Plan Services,Parks & Open Spaces,Park Utilities                          ,P04007,Premises Related Expenditure  ,Energy Costs                  ,BB02,Electricity                             ,873.86,01/08/2014,REV,SCOTTISHPOWER                 
884,Cultural Env Reg&Plan Services,Parks & Open Spaces,Park Utilities                          ,P04007,Premises Related Expenditure  ,Water Services                ,BE01,Use of Water (Metered)                  ,1339.54,13/08/2014,REV,THAMES WATER UTILITIES LTD    
885,Cultural Env Reg&Plan Services,Parks & Open Spaces,Park Utilities                          ,P04007,Premises Related Expenditure  ,Water Services                ,BE01,Use of Water (Metered)                  ,4113.7,18/08/2014,REV,THAMES WATER UTILITIES LTD    
886,Cultural Env Reg&Plan Services,Parks & Open Spaces,Park Utilities                          ,P04007,Premises Related Expenditure  ,Water Services                ,BE01,Use of Water (Metered)                  ,623.55,19/08/2014,REV,THAMES WATER UTILITIES LTD    
887,Cultural Env Reg&Plan Services,Parks & Open Spaces,Park Utilities                          ,P04007,Premises Related Expenditure  ,Water Services                ,BE01,Use of Water (Metered)                  ,1269.94,19/08/2014,REV,THAMES WATER UTILITIES LTD    
888,Cultural Env Reg&Plan Services,Parks & Open Spaces,Park Utilities                          ,P04007,Premises Related Expenditure  ,Water Services                ,BE01,Use of Water (Metered)                  ,602.92,18/08/2014,REV,THAMES WATER UTILITIES LTD    
889,Cultural Env Reg&Plan Services,Parks & Open Spaces,Park Utilities                          ,P04007,Premises Related Expenditure  ,Water Services                ,BE01,Use of Water (Metered)                  ,974.1,27/06/2014,REV,SUTTON AND EAST SURREY WATER  
890,Cultural Env Reg&Plan Services,Parks & Open Spaces,Park Utilities                          ,P04007,Premises Related Expenditure  ,Water Services                ,BE01,Use of Water (Metered)                  ,1033.69,27/06/2014,REV,SUTTON AND EAST SURREY WATER  
891,Cultural Env Reg&Plan Services,Mgt & Sup (Cult),Leisure Dev  Service Support,P04060,Supplies & Services           ,Equip Furniture/Materials     ,DA30,Memorial seats - purchase               ,666,06/07/2014,REV,WOODCRAFT UK                  
892,Cultural Env Reg&Plan Services,Sports Dev & Community Rec,OLYMPICS&PARA LOOK&FEEL FUND,P04810,Third Party Payments          ,Private Contractors           ,EH02,Miscellaneous Hired Services            ,1000,26/08/2014,REV,SURREY COUNTY LTA             
893,Cultural Env Reg&Plan Services,Sports Dev & Community Rec,Healthier Communities,P04900,Premises Related Expenditure  ,Ground Maintenance Costs      ,BL03,Maintenance of Grounds                  ,684,29/08/2014,REV,G BURLEY & SONS LTD           
894,Cultural Env Reg&Plan Services,Sports Dev & Community Rec,Healthier Communities,P04900,Supplies & Services           ,Clothing Unfrms Laundry       ,DC02,Clothing & Uniforms                     ,622.44,07/07/2014,REV,UPPER AND LOWER LEISUREWEAR   
895,Cultural Env Reg&Plan Services,Parks & Open Spaces,"Pks,Rec Grds (Unloc)",P05005,Premises Related Expenditure  ,RepairsAlterations&MtceOfBldgs,BA06,REPAIRS & MAINTENANCE GENERAL           ,800,08/09/2014,REV,JUST METAL UK LTD             
896,Cultural Env Reg&Plan Services,Parks & Open Spaces,"Pks,Rec Grds (Unloc)",P05005,Premises Related Expenditure  ,RepairsAlterations&MtceOfBldgs,BA06,REPAIRS & MAINTENANCE GENERAL           ,2500,02/09/2014,REV,TAYLOR BUILDING COMPANY LTD   
897,Cultural Env Reg&Plan Services,Parks & Open Spaces,"Pks,Rec Grds (Unloc)",P05005,Premises Related Expenditure  ,Ground Maintenance Costs      ,BL02,Maintenance of paths                    ,700,18/09/2014,REV,REDDINGTON & SONS             
898,Cultural Env Reg&Plan Services,Parks & Open Spaces,"Pks,Rec Grds (Unloc)",P05005,Premises Related Expenditure  ,Ground Maintenance Costs      ,BL02,Maintenance of paths                    ,820,10/09/2014,REV,REDDINGTON & SONS             
899,Cultural Env Reg&Plan Services,Parks & Open Spaces,"Pks,Rec Grds (Unloc)",P05005,Premises Related Expenditure  ,Ground Maintenance Costs      ,BL03,Maintenance of Grounds                  ,2266,18/09/2014,REV,REDACTED
900,Cultural Env Reg&Plan Services,Parks & Open Spaces,"Pks,Rec Grds (Unloc)",P05005,Premises Related Expenditure  ,Ground Maintenance Costs      ,BL50,TREE WORK & CONSERVATION                ,6057,31/07/2014,REV,MICROBEE LTD                  
901,Cultural Env Reg&Plan Services,Parks & Open Spaces,"Pks,Rec Grds (Unloc)",P05005,Premises Related Expenditure  ,Ground Maintenance Costs      ,BL50,TREE WORK & CONSERVATION                ,1760,22/08/2014,REV,MICROBEE LTD                  
902,Cultural Env Reg&Plan Services,Parks & Open Spaces,"Pks,Rec Grds (Unloc)",P05005,Premises Related Expenditure  ,Ground Maintenance Costs      ,BL50,TREE WORK & CONSERVATION                ,8561,30/07/2014,REV,MICROBEE LTD                  
903,Cultural Env Reg&Plan Services,Parks & Open Spaces,"Pks,Rec Grds (Unloc)",P05005,Premises Related Expenditure  ,Ground Maintenance Costs      ,BL50,TREE WORK & CONSERVATION                ,1270,27/06/2014,REV,TREELINE SERVICES LTD         
904,Cultural Env Reg&Plan Services,Parks & Open Spaces,"Pks,Rec Grds (Unloc)",P05005,Premises Related Expenditure  ,Ground Maintenance Costs      ,BL50,TREE WORK & CONSERVATION                ,692,12/09/2014,REV,TREELINE SERVICES LTD         
905,Cultural Env Reg&Plan Services,Parks & Open Spaces,"Pks,Rec Grds (Unloc)",P05005,Premises Related Expenditure  ,Ground Maintenance Costs      ,BL50,TREE WORK & CONSERVATION                ,2933,18/08/2014,REV,MICROBEE LTD                  
906,Cultural Env Reg&Plan Services,Parks & Open Spaces,"Pks,Rec Grds (Unloc)",P05005,Premises Related Expenditure  ,Ground Maintenance Costs      ,BL51,Playground Maintenance                  ,2085,08/09/2014,REV,JUST METAL UK LTD             
907,Cultural Env Reg&Plan Services,Parks & Open Spaces,"Pks,Rec Grds (Unloc)",P05005,Premises Related Expenditure  ,Ground Maintenance Costs      ,BL51,Playground Maintenance                  ,715,29/08/2014,REV,HAGS - SMP LIMITED            
908,Cultural Env Reg&Plan Services,Parks & Open Spaces,"Pks,Rec Grds (Unloc)",P05005,Supplies & Services           ,Equip Furniture/Materials     ,DA04,Materials                               ,500,08/08/2014,REV,P J HARVEY & CO LTD           
909,Cultural Env Reg&Plan Services,Sports Dev & Community Rec,Leisure Development,P05068,Third Party Payments          ,Private Contractors           ,EH02,Miscellaneous Hired Services            ,1015.04,31/08/2014,REV,WRFC LTD                      
910,Cultural Env Reg&Plan Services,Sports Dev & Community Rec,Leisure Development,P05068,Third Party Payments          ,Private Contractors           ,EH02,Miscellaneous Hired Services            ,1190,26/08/2014,REV,DEEN CITY FARM                
911,Cultural Env Reg&Plan Services,Sports Dev & Community Rec,Leisure Development,P05068,Third Party Payments          ,Private Contractors           ,EH02,Miscellaneous Hired Services            ,1170,09/09/2014,REV,THE WIMBLEDON CLUB            
912,Cultural Env Reg&Plan Services,Parks & Open Spaces,Mitcham Parks,P05109,Supplies & Services           ,Equip Furniture/Materials     ,DA04,Materials                               ,5306.08,12/08/2014,REV,RIGBY TAYLOR LTD              
913,Cultural Env Reg&Plan Services,Parks & Open Spaces,Mitcham Parks,P05109,Supplies & Services           ,Clothing Unfrms Laundry       ,DC02,Clothing & Uniforms                     ,1149.83,29/08/2014,REV,SAFETY MANAGEMENT             
914,Cultural Env Reg&Plan Services,Parks & Open Spaces,Wimbledon Parks,P05111,Premises Related Expenditure  ,Rents                         ,BC01,Miscellaneous Rents                     ,666.34,01/09/2014,REV,TRANSPORT TRADING LTD PROP A/C
915,Cultural Env Reg&Plan Services,Allotments,Allotments (Unloc),P06090,Premises Related Expenditure  ,Ground Maintenance Costs      ,BL03,Maintenance of Grounds                  ,1070,18/09/2014,REV,ADVANCED TREE SERVICES LTD    
916,Cultural Env Reg&Plan Services,Open Spaces Tsp Plant W/S HA,"Trans,Plnt WHA(Unl)",P08110,Transport Related Expenditure ,Direct Transport Costs        ,CA02,Tyres                                   ,570,21/08/2014,REV,MORDEN TYRE SERVICES LTD      
917,Cultural Env Reg&Plan Services,Open Spaces Tsp Plant W/S HA,"Trans,Plnt WHA(Unl)",P08110,Transport Related Expenditure ,Direct Transport Costs        ,CA04,R & M of Veh - General                  ,576.34,29/07/2014,REV,HAYNES BROS LTD               
918,Cultural Env Reg&Plan Services,Open Spaces Tsp Plant W/S HA,"Trans,Plnt WHA(Unl)",P08110,Transport Related Expenditure ,Direct Transport Costs        ,CA04,R & M of Veh - General                  ,1670.48,28/08/2014,REV,HAYNES BROS LTD               
919,Cultural Env Reg&Plan Services,Open Spaces Tsp Plant W/S HA,"Trans,Plnt WHA(Unl)",P08110,Supplies & Services           ,Equip Furniture/Materials     ,DA09,Equip-Purchases                         ,1060.34,04/09/2014,REV,SPALDINGS (UK) LTD            
920,Cultural Env Reg&Plan Services,Open Spaces Tsp Plant W/S HA,"Trans,Plnt WHA(Unl)",P08110,Supplies & Services           ,Equip Furniture/Materials     ,DA09,Equip-Purchases                         ,1078,13/08/2014,REV,GROUNDSERV                    
921,Cultural Env Reg&Plan Services,Cemeteries,Cemeteries (Unloc),P10125,Premises Related Expenditure  ,Ground Maintenance Costs      ,BL03,Maintenance of Grounds                  ,2177.18,16/09/2014,REV,GROUNDSERV                    
922,Cultural Env Reg&Plan Services,Arts Development & Support,Arts (General Funding),P14172,Supplies & Services           ,Expenses                      ,DH50,Special Projects                        ,1268.55,18/09/2014,REV,WEX PHOTOGRAPHIC LTD          
923,Cultural Env Reg&Plan Services,Arts Development & Support,Arts (General Funding),P14172,Supplies & Services           ,Grants and Subscriptions      ,DJ01,Grants                                  ,1200,03/09/2014,REV,WIMBLEDON MUSIC FESTIVAL      
924,Cultural Env Reg&Plan Services,Indoor Sports & Rec,Clnt Offrs-CivicCntr,P17203,Premises Related Expenditure  ,Energy Costs                  ,BB02,Electricity                             ,897.02,05/09/2014,REV,SCOTTISHPOWER                 
925,Cultural Env Reg&Plan Services,Indoor Sports & Rec,Clnt Offrs-CivicCntr,P17203,Premises Related Expenditure  ,Energy Costs                  ,BB02,Electricity                             ,1132.87,15/08/2014,REV,SCOTTISHPOWER                 
926,Cultural Env Reg&Plan Services,Indoor Sports & Rec,Clnt Offrs-CivicCntr,P17203,Supplies & Services           ,Services                      ,DF03,Consultants                             ,1200,09/09/2014,REV,REDACTED
927,Cultural Env Reg&Plan Services,Indoor Sports & Rec,Clnt Offrs-CivicCntr,P17203,Third Party Payments          ,Joint Authorities             ,EC01,Contract Payments                       ,17031.67,01/09/2014,REV,GREENWICH LEISURE LTD         
928,Cultural Env Reg&Plan Services,Mgt & Sup (Cult),Tree Safety (Schools),P18320,Premises Related Expenditure  ,Ground Maintenance Costs      ,BL50,NATURE CONSERVATION                     ,550,08/09/2014,REV,FLYNN TREE CARE               
929,Cultural Env Reg&Plan Services,Mgt & Sup (Cult),Tree Safety (Schools),P18320,Premises Related Expenditure  ,Ground Maintenance Costs      ,BL50,NATURE CONSERVATION                     ,500,26/08/2014,REV,FLYNN TREE CARE               
930,Cultural Env Reg&Plan Services,Mgt & Sup (Cult),Tree Safety (Schools),P18320,Premises Related Expenditure  ,Ground Maintenance Costs      ,BL50,NATURE CONSERVATION                     ,1500,26/08/2014,REV,FLYNN TREE CARE               
931,,,Mtchm Cmmon Consvtors,W0000W,Premises Related Expenditure  ,Ground Maintenance Costs      ,BL03,Maintenance of Grounds                  ,1575,08/09/2014,REV,LITTLE OAK TREE CARE          
932,,,Mrton & Sttn Jnt Brd                    ,W0000X,Premises Related Expenditure  ,RepairsAlterations&MtceOfBldgs,BA06,Repairs & Maintenance General           ,677.52,18/08/2014,REV,GROUNDSERV                    
933,,,Mrton & Sttn Jnt Brd                    ,W0000X,Premises Related Expenditure  ,RepairsAlterations&MtceOfBldgs,BA67,Remvl Rubbish/Spoil                     ,4200,31/08/2014,REV,REDACTED
934,,,Mrton & Sttn Jnt Brd                    ,W0000X,Supplies & Services           ,Services                      ,DF58,Audit Fee                               ,1300,21/08/2014,REV,PKF LITTLEJOHN                
935,Childrens & Education Services,Strategic Management,DS Director SSR Costs,W0AA01,Employees                     ,Indirect Employee Expenses    ,AB13,Health Staff in PCT Pool                ,917.52,30/07/2014,REV,REDACTED
936,Childrens & Education Services,Strategic Management,DS Director SSR Costs,W0AA01,Employees                     ,Indirect Employee Expenses    ,AB13,Health Staff in PCT Pool                ,917.52,26/06/2014,REV,REDACTED
937,Childrens & Education Services,CS - Commiss'ing & Social Work,CH Unallocated grants,W1AA01,Supplies & Services           ,Grants and Subscriptions      ,DJ03,External legal expenses                 ,4000,23/09/2014,REV,REDACTED
938,Childrens & Education Services,Other Family Support Services,Transforming Families                   ,W1AA05,Supplies & Services           ,Catering                      ,DB50,Refreshments                            ,1700,01/09/2014,REV,S TERAOKA T/A SURREY CATERING 
